Body Name,Date Paid,Transaction Number,Amount,Supplier Name,Supplier Type,Expense Area,Cost Centre Description,Expense Type
Cambridgeshire County Council,26-Feb-20,51301312745,"-136,700.40",VIRGIN MEDIA LTD,COMPANY,"Telephony, CPSN & MFD",EastNet,Computer hardware - purchase
Cambridgeshire County Council,24-Feb-20,51301318561,"-17,618.05",THORNBURY NURSING SERVICES,CARE ESTABLISHMENT,SEN Placements,Placements - Education,Independent School Placements
Cambridgeshire County Council,03-Feb-20,51301295465,"-16,034.00",ACORN PARK SCHOOL,EDUCATION,SEN Placements,Placements - Education,Independent School Placements
Cambridgeshire County Council,25-Feb-20,51300570111,"-12,330.00",MERCK SHARP & DOHME (MDSI) LIMITED,TRADE SUPPLIER,NHS - PH Health Checks,NHS Health Checks - Prescribed Cardio Vascular Health Check,Computer hardware - purchase
Cambridgeshire County Council,25-Feb-20,51301314240,"-9,475.81",UK POWER NETWORKS (OPERATIONS) LTD,COMPANY,GCP - Cross City Cycling,GCP - Cross City Cycling,"New Construction, Conversion and Renovation"
Cambridgeshire County Council,27-Feb-20,51301319353,"-7,365.00",SOUTH CAMBRIDGESHIRE DISTRICT COUNCIL,OTHER PUBLIC BODIES,Corporate Offices,"Daisy Children's Centre, Varrier Jones Drive, Papworth Everard",Business rates
Cambridgeshire County Council,27-Feb-20,51301319355,"-6,928.15",SOUTH CAMBRIDGESHIRE DISTRICT COUNCIL,OTHER PUBLIC BODIES,Corporate Offices,"Caldecote Childrens Centre, Highfirld Road",Business rates
Cambridgeshire County Council,25-Feb-20,51301302124,"-6,788.32",HUNTINGDON MENCAP LTD,CARE ESTABLISHMENT,LD - Hunts Locality - Cost of Care,LD - Huntingdonshire - Care,Domiciliary Care
Cambridgeshire County Council,19-Feb-20,51301297199,"-6,384.00",WCL UK LTD,TRADE SUPPLIER,ICT Service,ICT Service Sales,Materials for resale
Cambridgeshire County Council,03-Feb-20,51301307316,"-5,646.84",CARETECH COMMUNITY SERVICES,CARE ESTABLISHMENT,LD - Hunts Locality - Cost of Care,LD - Huntingdonshire - Care,Supported Living
Cambridgeshire County Council,20-Feb-20,51301317319,"-4,341.93",CAMPHILL MILTON KEYNES COMMUNITIES,CARE ESTABLISHMENT,LD - South Locality - Cost of Care,LD - South Cambs - Care,Day Care
Cambridgeshire County Council,13-Feb-20,51301313611,"-4,250.40",GLENHOLME HEALTHCARE LTD,CARE ESTABLISHMENT,LD - Young Adults Team,LD - Young Adults - Care,Residential Care
Cambridgeshire County Council,13-Feb-20,51301313611,"-4,250.40",GLENHOLME HEALTHCARE LTD,CARE ESTABLISHMENT,LD - Young Adults Team,LD - Young Adults - Care,Residential Care
Cambridgeshire County Council,13-Feb-20,51301313611,"-4,250.40",GLENHOLME HEALTHCARE LTD,CARE ESTABLISHMENT,LD - Young Adults Team,LD - Young Adults - Care,Residential Care
Cambridgeshire County Council,13-Feb-20,51301313611,"-4,250.40",GLENHOLME HEALTHCARE LTD,CARE ESTABLISHMENT,LD - Young Adults Team,LD - Young Adults - Care,Residential Care
Cambridgeshire County Council,13-Feb-20,51301313611,"-4,250.40",GLENHOLME HEALTHCARE LTD,CARE ESTABLISHMENT,LD - Young Adults Team,LD - Young Adults - Care,Residential Care
Cambridgeshire County Council,13-Feb-20,51301313611,"-4,250.40",GLENHOLME HEALTHCARE LTD,CARE ESTABLISHMENT,LD - Young Adults Team,LD - Young Adults - Care,Residential Care
Cambridgeshire County Council,13-Feb-20,51301313611,"-4,250.40",GLENHOLME HEALTHCARE LTD,CARE ESTABLISHMENT,LD - Young Adults Team,LD - Young Adults - Care,Residential Care
Cambridgeshire County Council,13-Feb-20,51301313611,"-4,250.40",GLENHOLME HEALTHCARE LTD,CARE ESTABLISHMENT,LD - Young Adults Team,LD - Young Adults - Care,Residential Care
Cambridgeshire County Council,13-Feb-20,51301313611,"-4,250.40",GLENHOLME HEALTHCARE LTD,CARE ESTABLISHMENT,LD - Young Adults Team,LD - Young Adults - Care,Residential Care
Cambridgeshire County Council,13-Feb-20,51301313611,"-4,250.40",GLENHOLME HEALTHCARE LTD,CARE ESTABLISHMENT,LD - Young Adults Team,LD - Young Adults - Care,Residential Care
Cambridgeshire County Council,13-Feb-20,51301313611,"-4,250.40",GLENHOLME HEALTHCARE LTD,CARE ESTABLISHMENT,LD - Young Adults Team,LD - Young Adults - Care,Residential Care
Cambridgeshire County Council,13-Feb-20,51301313611,"-4,250.40",GLENHOLME HEALTHCARE LTD,CARE ESTABLISHMENT,LD - Young Adults Team,LD - Young Adults - Care,Residential Care
Cambridgeshire County Council,13-Feb-20,51301313611,"-4,250.40",GLENHOLME HEALTHCARE LTD,CARE ESTABLISHMENT,LD - Young Adults Team,LD - Young Adults - Care,Residential Care
Cambridgeshire County Council,13-Feb-20,51301313611,"-4,250.40",GLENHOLME HEALTHCARE LTD,CARE ESTABLISHMENT,LD - Young Adults Team,LD - Young Adults - Care,Residential Care
Cambridgeshire County Council,13-Feb-20,51301313611,"-4,250.40",GLENHOLME HEALTHCARE LTD,CARE ESTABLISHMENT,LD - Young Adults Team,LD - Young Adults - Care,Residential Care
Cambridgeshire County Council,13-Feb-20,51301313611,"-4,250.40",GLENHOLME HEALTHCARE LTD,CARE ESTABLISHMENT,LD - Young Adults Team,LD - Young Adults - Care,Residential Care
Cambridgeshire County Council,13-Feb-20,51301313611,"-4,250.40",GLENHOLME HEALTHCARE LTD,CARE ESTABLISHMENT,LD - Young Adults Team,LD - Young Adults - Care,Residential Care
Cambridgeshire County Council,13-Feb-20,51301313611,"-4,250.40",GLENHOLME HEALTHCARE LTD,CARE ESTABLISHMENT,LD - Young Adults Team,LD - Young Adults - Care,Residential Care
Cambridgeshire County Council,13-Feb-20,51301313611,"-4,250.40",GLENHOLME HEALTHCARE LTD,CARE ESTABLISHMENT,LD - Young Adults Team,LD - Young Adults - Care,Residential Care
Cambridgeshire County Council,13-Feb-20,51301313611,"-4,250.40",GLENHOLME HEALTHCARE LTD,CARE ESTABLISHMENT,LD - Young Adults Team,LD - Young Adults - Care,Residential Care
Cambridgeshire County Council,13-Feb-20,51301313611,"-4,250.40",GLENHOLME HEALTHCARE LTD,CARE ESTABLISHMENT,LD - Young Adults Team,LD - Young Adults - Care,Residential Care
Cambridgeshire County Council,13-Feb-20,51301313611,"-4,250.40",GLENHOLME HEALTHCARE LTD,CARE ESTABLISHMENT,LD - Young Adults Team,LD - Young Adults - Care,Residential Care
Cambridgeshire County Council,13-Feb-20,51301313611,"-4,250.40",GLENHOLME HEALTHCARE LTD,CARE ESTABLISHMENT,LD - Young Adults Team,LD - Young Adults - Care,Residential Care
Cambridgeshire County Council,13-Feb-20,51301313611,"-4,250.40",GLENHOLME HEALTHCARE LTD,CARE ESTABLISHMENT,LD - Young Adults Team,LD - Young Adults - Care,Residential Care
Cambridgeshire County Council,13-Feb-20,51301313611,"-4,250.40",GLENHOLME HEALTHCARE LTD,CARE ESTABLISHMENT,LD - Young Adults Team,LD - Young Adults - Care,Residential Care
Cambridgeshire County Council,13-Feb-20,51301313611,"-4,250.40",GLENHOLME HEALTHCARE LTD,CARE ESTABLISHMENT,LD - Young Adults Team,LD - Young Adults - Care,Residential Care
Cambridgeshire County Council,13-Feb-20,51301313611,"-4,250.40",GLENHOLME HEALTHCARE LTD,CARE ESTABLISHMENT,LD - Young Adults Team,LD - Young Adults - Care,Residential Care
Cambridgeshire County Council,13-Feb-20,51301313611,"-4,250.40",GLENHOLME HEALTHCARE LTD,CARE ESTABLISHMENT,LD - Young Adults Team,LD - Young Adults - Care,Residential Care
Cambridgeshire County Council,13-Feb-20,51301313611,"-4,250.40",GLENHOLME HEALTHCARE LTD,CARE ESTABLISHMENT,LD - Young Adults Team,LD - Young Adults - Care,Residential Care
Cambridgeshire County Council,13-Feb-20,51301313611,"-4,250.40",GLENHOLME HEALTHCARE LTD,CARE ESTABLISHMENT,LD - Young Adults Team,LD - Young Adults - Care,Residential Care
Cambridgeshire County Council,13-Feb-20,51301313611,"-4,250.40",GLENHOLME HEALTHCARE LTD,CARE ESTABLISHMENT,LD - Young Adults Team,LD - Young Adults - Care,Residential Care
Cambridgeshire County Council,13-Feb-20,51301313611,"-4,250.40",GLENHOLME HEALTHCARE LTD,CARE ESTABLISHMENT,LD - Young Adults Team,LD - Young Adults - Care,Residential Care
Cambridgeshire County Council,13-Feb-20,51301313611,"-4,250.40",GLENHOLME HEALTHCARE LTD,CARE ESTABLISHMENT,LD - Young Adults Team,LD - Young Adults - Care,Residential Care
Cambridgeshire County Council,13-Feb-20,51301313611,"-4,250.40",GLENHOLME HEALTHCARE LTD,CARE ESTABLISHMENT,LD - Young Adults Team,LD - Young Adults - Care,Residential Care
Cambridgeshire County Council,13-Feb-20,51301313611,"-4,250.40",GLENHOLME HEALTHCARE LTD,CARE ESTABLISHMENT,LD - Young Adults Team,LD - Young Adults - Care,Residential Care
Cambridgeshire County Council,13-Feb-20,51301313611,"-4,250.40",GLENHOLME HEALTHCARE LTD,CARE ESTABLISHMENT,LD - Young Adults Team,LD - Young Adults - Care,Residential Care
Cambridgeshire County Council,13-Feb-20,51301313611,"-4,250.40",GLENHOLME HEALTHCARE LTD,CARE ESTABLISHMENT,LD - Young Adults Team,LD - Young Adults - Care,Residential Care
Cambridgeshire County Council,13-Feb-20,51301313611,"-4,250.40",GLENHOLME HEALTHCARE LTD,CARE ESTABLISHMENT,LD - Young Adults Team,LD - Young Adults - Care,Residential Care
Cambridgeshire County Council,28-Feb-20,51301322651,"-3,790.15",Accomplish Group Support Limited,CARE ESTABLISHMENT,LD - Hunts Locality - Cost of Care,LD - Huntingdonshire - Care,Short Term Other
Cambridgeshire County Council,28-Feb-20,51301322651,"-3,790.15",Accomplish Group Support Limited,CARE ESTABLISHMENT,LD - Hunts Locality - Cost of Care,LD - Huntingdonshire - Care,Short Term Other
Cambridgeshire County Council,28-Feb-20,51301322651,"-3,790.15",Accomplish Group Support Limited,CARE ESTABLISHMENT,LD - Hunts Locality - Cost of Care,LD - Huntingdonshire - Care,Short Term Other
Cambridgeshire County Council,28-Feb-20,51301322651,"-3,790.15",Accomplish Group Support Limited,CARE ESTABLISHMENT,LD - Hunts Locality - Cost of Care,LD - Huntingdonshire - Care,Short Term Other
Cambridgeshire County Council,28-Feb-20,51301322651,"-3,790.15",Accomplish Group Support Limited,CARE ESTABLISHMENT,LD - Hunts Locality - Cost of Care,LD - Huntingdonshire - Care,Short Term Other
Cambridgeshire County Council,28-Feb-20,51301322651,"-3,790.15",Accomplish Group Support Limited,CARE ESTABLISHMENT,LD - Hunts Locality - Cost of Care,LD - Huntingdonshire - Care,Short Term Other
Cambridgeshire County Council,28-Feb-20,51301322651,"-3,790.15",Accomplish Group Support Limited,CARE ESTABLISHMENT,LD - Hunts Locality - Cost of Care,LD - Huntingdonshire - Care,Short Term Other
Cambridgeshire County Council,28-Feb-20,51301322651,"-3,790.15",Accomplish Group Support Limited,CARE ESTABLISHMENT,LD - Hunts Locality - Cost of Care,LD - Huntingdonshire - Care,Short Term Other
Cambridgeshire County Council,28-Feb-20,51301322651,"-3,790.15",Accomplish Group Support Limited,CARE ESTABLISHMENT,LD - Hunts Locality - Cost of Care,LD - Huntingdonshire - Care,Short Term Other
Cambridgeshire County Council,20-Feb-20,51301317600,"-3,647.87",SENSE NATIONAL DEAF & BLIND,CARE ESTABLISHMENT,LD - Fenland Locality - Cost of Care,LD - Fenland  - Care,Residential Care
Cambridgeshire County Council,20-Feb-20,51301317600,"-3,647.87",SENSE NATIONAL DEAF & BLIND,CARE ESTABLISHMENT,LD - Fenland Locality - Cost of Care,LD - Fenland  - Care,Residential Care
Cambridgeshire County Council,20-Feb-20,51301317600,"-3,647.87",SENSE NATIONAL DEAF & BLIND,CARE ESTABLISHMENT,LD - Fenland Locality - Cost of Care,LD - Fenland  - Care,Residential Care
Cambridgeshire County Council,20-Feb-20,51301317600,"-3,647.87",SENSE NATIONAL DEAF & BLIND,CARE ESTABLISHMENT,LD - Fenland Locality - Cost of Care,LD - Fenland  - Care,Residential Care
Cambridgeshire County Council,20-Feb-20,51301317600,"-3,647.87",SENSE NATIONAL DEAF & BLIND,CARE ESTABLISHMENT,LD - Fenland Locality - Cost of Care,LD - Fenland  - Care,Residential Care
Cambridgeshire County Council,20-Feb-20,51301317600,"-3,647.87",SENSE NATIONAL DEAF & BLIND,CARE ESTABLISHMENT,LD - Fenland Locality - Cost of Care,LD - Fenland  - Care,Residential Care
Cambridgeshire County Council,20-Feb-20,51301317600,"-3,647.87",SENSE NATIONAL DEAF & BLIND,CARE ESTABLISHMENT,LD - Fenland Locality - Cost of Care,LD - Fenland  - Care,Residential Care
Cambridgeshire County Council,20-Feb-20,51301317600,"-3,647.87",SENSE NATIONAL DEAF & BLIND,CARE ESTABLISHMENT,LD - Fenland Locality - Cost of Care,LD - Fenland  - Care,Residential Care
Cambridgeshire County Council,20-Feb-20,51301317600,"-3,647.87",SENSE NATIONAL DEAF & BLIND,CARE ESTABLISHMENT,LD - Fenland Locality - Cost of Care,LD - Fenland  - Care,Residential Care
Cambridgeshire County Council,20-Feb-20,51301317600,"-3,647.87",SENSE NATIONAL DEAF & BLIND,CARE ESTABLISHMENT,LD - Fenland Locality - Cost of Care,LD - Fenland  - Care,Residential Care
Cambridgeshire County Council,20-Feb-20,51301317600,"-3,647.87",SENSE NATIONAL DEAF & BLIND,CARE ESTABLISHMENT,LD - Fenland Locality - Cost of Care,LD - Fenland  - Care,Residential Care
Cambridgeshire County Council,20-Feb-20,51301317600,"-3,647.87",SENSE NATIONAL DEAF & BLIND,CARE ESTABLISHMENT,LD - Fenland Locality - Cost of Care,LD - Fenland  - Care,Residential Care
Cambridgeshire County Council,20-Feb-20,51301317600,"-3,647.87",SENSE NATIONAL DEAF & BLIND,CARE ESTABLISHMENT,LD - Fenland Locality - Cost of Care,LD - Fenland  - Care,Residential Care
Cambridgeshire County Council,20-Feb-20,51301317600,"-3,647.87",SENSE NATIONAL DEAF & BLIND,CARE ESTABLISHMENT,LD - Fenland Locality - Cost of Care,LD - Fenland  - Care,Residential Care
Cambridgeshire County Council,20-Feb-20,51301317600,"-3,647.87",SENSE NATIONAL DEAF & BLIND,CARE ESTABLISHMENT,LD - Fenland Locality - Cost of Care,LD - Fenland  - Care,Residential Care
Cambridgeshire County Council,20-Feb-20,51301317600,"-3,647.87",SENSE NATIONAL DEAF & BLIND,CARE ESTABLISHMENT,LD - Fenland Locality - Cost of Care,LD - Fenland  - Care,Residential Care
Cambridgeshire County Council,20-Feb-20,51301317600,"-3,647.87",SENSE NATIONAL DEAF & BLIND,CARE ESTABLISHMENT,LD - Fenland Locality - Cost of Care,LD - Fenland  - Care,Residential Care
Cambridgeshire County Council,20-Feb-20,51301317600,"-3,647.87",SENSE NATIONAL DEAF & BLIND,CARE ESTABLISHMENT,LD - Fenland Locality - Cost of Care,LD - Fenland  - Care,Residential Care
Cambridgeshire County Council,20-Feb-20,51301317600,"-3,647.87",SENSE NATIONAL DEAF & BLIND,CARE ESTABLISHMENT,LD - Fenland Locality - Cost of Care,LD - Fenland  - Care,Residential Care
Cambridgeshire County Council,20-Feb-20,51301317600,"-3,647.87",SENSE NATIONAL DEAF & BLIND,CARE ESTABLISHMENT,LD - Fenland Locality - Cost of Care,LD - Fenland  - Care,Residential Care
Cambridgeshire County Council,20-Feb-20,51301317600,"-3,647.87",SENSE NATIONAL DEAF & BLIND,CARE ESTABLISHMENT,LD - Fenland Locality - Cost of Care,LD - Fenland  - Care,Residential Care
Cambridgeshire County Council,20-Feb-20,51301317600,"-3,647.87",SENSE NATIONAL DEAF & BLIND,CARE ESTABLISHMENT,LD - Fenland Locality - Cost of Care,LD - Fenland  - Care,Residential Care
Cambridgeshire County Council,20-Feb-20,51301317600,"-3,647.87",SENSE NATIONAL DEAF & BLIND,CARE ESTABLISHMENT,LD - Fenland Locality - Cost of Care,LD - Fenland  - Care,Residential Care
Cambridgeshire County Council,20-Feb-20,51301317600,"-3,647.87",SENSE NATIONAL DEAF & BLIND,CARE ESTABLISHMENT,LD - Fenland Locality - Cost of Care,LD - Fenland  - Care,Residential Care
Cambridgeshire County Council,20-Feb-20,51301317600,"-3,647.87",SENSE NATIONAL DEAF & BLIND,CARE ESTABLISHMENT,LD - Fenland Locality - Cost of Care,LD - Fenland  - Care,Residential Care
Cambridgeshire County Council,20-Feb-20,51301317600,"-3,647.87",SENSE NATIONAL DEAF & BLIND,CARE ESTABLISHMENT,LD - Fenland Locality - Cost of Care,LD - Fenland  - Care,Residential Care
Cambridgeshire County Council,13-Feb-20,51301313611,"-3,643.20",GLENHOLME HEALTHCARE LTD,CARE ESTABLISHMENT,LD - Young Adults Team,LD - Young Adults - Care,Residential Care
Cambridgeshire County Council,05-Feb-20,51301305558,"-3,402.79",SOUTH CAMBRIDGESHIRE DISTRICT COUNCIL,OTHER PUBLIC BODIES,Corporate Offices,Cottenham Archives Store,Business rates
Cambridgeshire County Council,13-Feb-20,51301313603,"-3,274.77",GLENHOLME HEALTHCARE LTD,CARE ESTABLISHMENT,LD - Young Adults Team,LD - Young Adults - Special Needs,Residential Care
Cambridgeshire County Council,13-Feb-20,51301313603,"-3,274.77",GLENHOLME HEALTHCARE LTD,CARE ESTABLISHMENT,LD - Young Adults Team,LD - Young Adults - Special Needs,Residential Care
Cambridgeshire County Council,13-Feb-20,51301313603,"-3,274.77",GLENHOLME HEALTHCARE LTD,CARE ESTABLISHMENT,LD - Young Adults Team,LD - Young Adults - Special Needs,Residential Care
Cambridgeshire County Council,13-Feb-20,51301313603,"-3,274.77",GLENHOLME HEALTHCARE LTD,CARE ESTABLISHMENT,LD - Young Adults Team,LD - Young Adults - Special Needs,Residential Care
Cambridgeshire County Council,13-Feb-20,51301313603,"-3,274.77",GLENHOLME HEALTHCARE LTD,CARE ESTABLISHMENT,LD - Young Adults Team,LD - Young Adults - Special Needs,Residential Care
Cambridgeshire County Council,13-Feb-20,51301313603,"-3,274.77",GLENHOLME HEALTHCARE LTD,CARE ESTABLISHMENT,LD - Young Adults Team,LD - Young Adults - Special Needs,Residential Care
Cambridgeshire County Council,13-Feb-20,51301313603,"-3,274.77",GLENHOLME HEALTHCARE LTD,CARE ESTABLISHMENT,LD - Young Adults Team,LD - Young Adults - Special Needs,Residential Care
Cambridgeshire County Council,13-Feb-20,51301313603,"-3,274.77",GLENHOLME HEALTHCARE LTD,CARE ESTABLISHMENT,LD - Young Adults Team,LD - Young Adults - Special Needs,Residential Care
Cambridgeshire County Council,13-Feb-20,51301313603,"-3,274.77",GLENHOLME HEALTHCARE LTD,CARE ESTABLISHMENT,LD - Young Adults Team,LD - Young Adults - Special Needs,Residential Care
Cambridgeshire County Council,13-Feb-20,51301313603,"-3,274.77",GLENHOLME HEALTHCARE LTD,CARE ESTABLISHMENT,LD - Young Adults Team,LD - Young Adults - Special Needs,Residential Care
Cambridgeshire County Council,13-Feb-20,51301313603,"-3,274.77",GLENHOLME HEALTHCARE LTD,CARE ESTABLISHMENT,LD - Young Adults Team,LD - Young Adults - Special Needs,Residential Care
Cambridgeshire County Council,13-Feb-20,51301313603,"-3,274.77",GLENHOLME HEALTHCARE LTD,CARE ESTABLISHMENT,LD - Young Adults Team,LD - Young Adults - Special Needs,Residential Care
Cambridgeshire County Council,13-Feb-20,51301313603,"-3,274.77",GLENHOLME HEALTHCARE LTD,CARE ESTABLISHMENT,LD - Young Adults Team,LD - Young Adults - Special Needs,Residential Care
Cambridgeshire County Council,13-Feb-20,51301313603,"-3,274.77",GLENHOLME HEALTHCARE LTD,CARE ESTABLISHMENT,LD - Young Adults Team,LD - Young Adults - Special Needs,Residential Care
Cambridgeshire County Council,13-Feb-20,51301313603,"-3,274.77",GLENHOLME HEALTHCARE LTD,CARE ESTABLISHMENT,LD - Young Adults Team,LD - Young Adults - Special Needs,Residential Care
Cambridgeshire County Council,13-Feb-20,51301313603,"-3,274.77",GLENHOLME HEALTHCARE LTD,CARE ESTABLISHMENT,LD - Young Adults Team,LD - Young Adults - Special Needs,Residential Care
Cambridgeshire County Council,13-Feb-20,51301313603,"-3,274.77",GLENHOLME HEALTHCARE LTD,CARE ESTABLISHMENT,LD - Young Adults Team,LD - Young Adults - Special Needs,Residential Care
Cambridgeshire County Council,13-Feb-20,51301313603,"-3,274.77",GLENHOLME HEALTHCARE LTD,CARE ESTABLISHMENT,LD - Young Adults Team,LD - Young Adults - Special Needs,Residential Care
Cambridgeshire County Council,13-Feb-20,51301313603,"-3,274.77",GLENHOLME HEALTHCARE LTD,CARE ESTABLISHMENT,LD - Young Adults Team,LD - Young Adults - Special Needs,Residential Care
Cambridgeshire County Council,13-Feb-20,51301313603,"-3,274.77",GLENHOLME HEALTHCARE LTD,CARE ESTABLISHMENT,LD - Young Adults Team,LD - Young Adults - Special Needs,Residential Care
Cambridgeshire County Council,13-Feb-20,51301313603,"-3,274.77",GLENHOLME HEALTHCARE LTD,CARE ESTABLISHMENT,LD - Young Adults Team,LD - Young Adults - Special Needs,Residential Care
Cambridgeshire County Council,13-Feb-20,51301313603,"-3,274.77",GLENHOLME HEALTHCARE LTD,CARE ESTABLISHMENT,LD - Young Adults Team,LD - Young Adults - Special Needs,Residential Care
Cambridgeshire County Council,13-Feb-20,51301313603,"-3,274.77",GLENHOLME HEALTHCARE LTD,CARE ESTABLISHMENT,LD - Young Adults Team,LD - Young Adults - Special Needs,Residential Care
Cambridgeshire County Council,13-Feb-20,51301313603,"-3,274.77",GLENHOLME HEALTHCARE LTD,CARE ESTABLISHMENT,LD - Young Adults Team,LD - Young Adults - Special Needs,Residential Care
Cambridgeshire County Council,13-Feb-20,51301313603,"-3,274.77",GLENHOLME HEALTHCARE LTD,CARE ESTABLISHMENT,LD - Young Adults Team,LD - Young Adults - Special Needs,Residential Care
Cambridgeshire County Council,13-Feb-20,51301313603,"-3,274.77",GLENHOLME HEALTHCARE LTD,CARE ESTABLISHMENT,LD - Young Adults Team,LD - Young Adults - Special Needs,Residential Care
Cambridgeshire County Council,13-Feb-20,51301313603,"-3,274.77",GLENHOLME HEALTHCARE LTD,CARE ESTABLISHMENT,LD - Young Adults Team,LD - Young Adults - Special Needs,Residential Care
Cambridgeshire County Council,13-Feb-20,51301313603,"-3,274.77",GLENHOLME HEALTHCARE LTD,CARE ESTABLISHMENT,LD - Young Adults Team,LD - Young Adults - Special Needs,Residential Care
Cambridgeshire County Council,13-Feb-20,51301313603,"-3,274.77",GLENHOLME HEALTHCARE LTD,CARE ESTABLISHMENT,LD - Young Adults Team,LD - Young Adults - Special Needs,Residential Care
Cambridgeshire County Council,13-Feb-20,51301313603,"-3,274.77",GLENHOLME HEALTHCARE LTD,CARE ESTABLISHMENT,LD - Young Adults Team,LD - Young Adults - Special Needs,Residential Care
Cambridgeshire County Council,13-Feb-20,51301313603,"-3,274.77",GLENHOLME HEALTHCARE LTD,CARE ESTABLISHMENT,LD - Young Adults Team,LD - Young Adults - Special Needs,Residential Care
Cambridgeshire County Council,28-Feb-20,51301322651,"-3,248.70",Accomplish Group Support Limited,CARE ESTABLISHMENT,LD - Hunts Locality - Cost of Care,LD - Huntingdonshire - Care,Short Term Other
Cambridgeshire County Council,28-Feb-20,51301321915,"-3,215.00",Accomplish Group Support Limited,CARE ESTABLISHMENT,LD - East Locality - Cost of Care,LD - East Cambs - Care,Residential Care
Cambridgeshire County Council,28-Feb-20,51301321915,"-3,215.00",Accomplish Group Support Limited,CARE ESTABLISHMENT,LD - East Locality - Cost of Care,LD - East Cambs - Care,Residential Care
Cambridgeshire County Council,28-Feb-20,51301321915,"-3,215.00",Accomplish Group Support Limited,CARE ESTABLISHMENT,LD - East Locality - Cost of Care,LD - East Cambs - Care,Residential Care
Cambridgeshire County Council,28-Feb-20,51301321915,"-3,215.00",Accomplish Group Support Limited,CARE ESTABLISHMENT,LD - East Locality - Cost of Care,LD - East Cambs - Care,Residential Care
Cambridgeshire County Council,28-Feb-20,51301321915,"-3,215.00",Accomplish Group Support Limited,CARE ESTABLISHMENT,LD - East Locality - Cost of Care,LD - East Cambs - Care,Residential Care
Cambridgeshire County Council,28-Feb-20,51301321915,"-3,215.00",Accomplish Group Support Limited,CARE ESTABLISHMENT,LD - East Locality - Cost of Care,LD - East Cambs - Care,Residential Care
Cambridgeshire County Council,28-Feb-20,51301321915,"-3,215.00",Accomplish Group Support Limited,CARE ESTABLISHMENT,LD - East Locality - Cost of Care,LD - East Cambs - Care,Residential Care
Cambridgeshire County Council,28-Feb-20,51301321915,"-3,215.00",Accomplish Group Support Limited,CARE ESTABLISHMENT,LD - East Locality - Cost of Care,LD - East Cambs - Care,Residential Care
Cambridgeshire County Council,28-Feb-20,51301321915,"-3,215.00",Accomplish Group Support Limited,CARE ESTABLISHMENT,LD - East Locality - Cost of Care,LD - East Cambs - Care,Residential Care
Cambridgeshire County Council,28-Feb-20,51301321915,"-3,215.00",Accomplish Group Support Limited,CARE ESTABLISHMENT,LD - East Locality - Cost of Care,LD - East Cambs - Care,Residential Care
Cambridgeshire County Council,28-Feb-20,51301321915,"-3,215.00",Accomplish Group Support Limited,CARE ESTABLISHMENT,LD - East Locality - Cost of Care,LD - East Cambs - Care,Residential Care
Cambridgeshire County Council,28-Feb-20,51301321915,"-3,215.00",Accomplish Group Support Limited,CARE ESTABLISHMENT,LD - East Locality - Cost of Care,LD - East Cambs - Care,Residential Care
Cambridgeshire County Council,28-Feb-20,51301321915,"-3,215.00",Accomplish Group Support Limited,CARE ESTABLISHMENT,LD - East Locality - Cost of Care,LD - East Cambs - Care,Residential Care
Cambridgeshire County Council,28-Feb-20,51301321915,"-3,215.00",Accomplish Group Support Limited,CARE ESTABLISHMENT,LD - East Locality - Cost of Care,LD - East Cambs - Care,Residential Care
Cambridgeshire County Council,28-Feb-20,51301321915,"-3,215.00",Accomplish Group Support Limited,CARE ESTABLISHMENT,LD - East Locality - Cost of Care,LD - East Cambs - Care,Residential Care
Cambridgeshire County Council,28-Feb-20,51301321915,"-3,215.00",Accomplish Group Support Limited,CARE ESTABLISHMENT,LD - East Locality - Cost of Care,LD - East Cambs - Care,Residential Care
Cambridgeshire County Council,28-Feb-20,51301321915,"-3,215.00",Accomplish Group Support Limited,CARE ESTABLISHMENT,LD - East Locality - Cost of Care,LD - East Cambs - Care,Residential Care
Cambridgeshire County Council,28-Feb-20,51301321915,"-3,215.00",Accomplish Group Support Limited,CARE ESTABLISHMENT,LD - East Locality - Cost of Care,LD - East Cambs - Care,Residential Care
Cambridgeshire County Council,13-Feb-20,51301313610,"-3,171.96",GLENHOLME HEALTHCARE LTD,CARE ESTABLISHMENT,LD - Young Adults Team,LD - Young Adults - Care,Residential Care
Cambridgeshire County Council,13-Feb-20,51301313610,"-3,171.96",GLENHOLME HEALTHCARE LTD,CARE ESTABLISHMENT,LD - Young Adults Team,LD - Young Adults - Care,Residential Care
Cambridgeshire County Council,13-Feb-20,51301313610,"-3,171.96",GLENHOLME HEALTHCARE LTD,CARE ESTABLISHMENT,LD - Young Adults Team,LD - Young Adults - Care,Residential Care
Cambridgeshire County Council,13-Feb-20,51301313610,"-3,171.96",GLENHOLME HEALTHCARE LTD,CARE ESTABLISHMENT,LD - Young Adults Team,LD - Young Adults - Care,Residential Care
Cambridgeshire County Council,13-Feb-20,51301313610,"-3,171.96",GLENHOLME HEALTHCARE LTD,CARE ESTABLISHMENT,LD - Young Adults Team,LD - Young Adults - Care,Residential Care
Cambridgeshire County Council,13-Feb-20,51301313610,"-3,171.96",GLENHOLME HEALTHCARE LTD,CARE ESTABLISHMENT,LD - Young Adults Team,LD - Young Adults - Care,Residential Care
Cambridgeshire County Council,13-Feb-20,51301313610,"-3,171.96",GLENHOLME HEALTHCARE LTD,CARE ESTABLISHMENT,LD - Young Adults Team,LD - Young Adults - Care,Residential Care
Cambridgeshire County Council,13-Feb-20,51301313610,"-3,171.96",GLENHOLME HEALTHCARE LTD,CARE ESTABLISHMENT,LD - Young Adults Team,LD - Young Adults - Care,Residential Care
Cambridgeshire County Council,13-Feb-20,51301313610,"-3,171.96",GLENHOLME HEALTHCARE LTD,CARE ESTABLISHMENT,LD - Young Adults Team,LD - Young Adults - Care,Residential Care
Cambridgeshire County Council,13-Feb-20,51301313610,"-3,171.96",GLENHOLME HEALTHCARE LTD,CARE ESTABLISHMENT,LD - Young Adults Team,LD - Young Adults - Care,Residential Care
Cambridgeshire County Council,13-Feb-20,51301313610,"-3,171.96",GLENHOLME HEALTHCARE LTD,CARE ESTABLISHMENT,LD - Young Adults Team,LD - Young Adults - Care,Residential Care
Cambridgeshire County Council,13-Feb-20,51301313610,"-3,171.96",GLENHOLME HEALTHCARE LTD,CARE ESTABLISHMENT,LD - Young Adults Team,LD - Young Adults - Care,Residential Care
Cambridgeshire County Council,13-Feb-20,51301313610,"-3,171.96",GLENHOLME HEALTHCARE LTD,CARE ESTABLISHMENT,LD - Young Adults Team,LD - Young Adults - Care,Residential Care
Cambridgeshire County Council,13-Feb-20,51301313610,"-3,171.96",GLENHOLME HEALTHCARE LTD,CARE ESTABLISHMENT,LD - Young Adults Team,LD - Young Adults - Care,Residential Care
Cambridgeshire County Council,13-Feb-20,51301313610,"-3,171.96",GLENHOLME HEALTHCARE LTD,CARE ESTABLISHMENT,LD - Young Adults Team,LD - Young Adults - Care,Residential Care
Cambridgeshire County Council,13-Feb-20,51301313610,"-3,171.96",GLENHOLME HEALTHCARE LTD,CARE ESTABLISHMENT,LD - Young Adults Team,LD - Young Adults - Care,Residential Care
Cambridgeshire County Council,13-Feb-20,51301313610,"-3,171.96",GLENHOLME HEALTHCARE LTD,CARE ESTABLISHMENT,LD - Young Adults Team,LD - Young Adults - Care,Residential Care
Cambridgeshire County Council,13-Feb-20,51301313610,"-3,171.96",GLENHOLME HEALTHCARE LTD,CARE ESTABLISHMENT,LD - Young Adults Team,LD - Young Adults - Care,Residential Care
Cambridgeshire County Council,13-Feb-20,51301313610,"-3,171.96",GLENHOLME HEALTHCARE LTD,CARE ESTABLISHMENT,LD - Young Adults Team,LD - Young Adults - Care,Residential Care
Cambridgeshire County Council,13-Feb-20,51301313610,"-3,171.96",GLENHOLME HEALTHCARE LTD,CARE ESTABLISHMENT,LD - Young Adults Team,LD - Young Adults - Care,Residential Care
Cambridgeshire County Council,13-Feb-20,51301313610,"-3,171.96",GLENHOLME HEALTHCARE LTD,CARE ESTABLISHMENT,LD - Young Adults Team,LD - Young Adults - Care,Residential Care
Cambridgeshire County Council,13-Feb-20,51301313610,"-3,171.96",GLENHOLME HEALTHCARE LTD,CARE ESTABLISHMENT,LD - Young Adults Team,LD - Young Adults - Care,Residential Care
Cambridgeshire County Council,13-Feb-20,51301313610,"-3,171.96",GLENHOLME HEALTHCARE LTD,CARE ESTABLISHMENT,LD - Young Adults Team,LD - Young Adults - Care,Residential Care
Cambridgeshire County Council,13-Feb-20,51301313610,"-3,171.96",GLENHOLME HEALTHCARE LTD,CARE ESTABLISHMENT,LD - Young Adults Team,LD - Young Adults - Care,Residential Care
Cambridgeshire County Council,13-Feb-20,51301313610,"-3,171.96",GLENHOLME HEALTHCARE LTD,CARE ESTABLISHMENT,LD - Young Adults Team,LD - Young Adults - Care,Residential Care
Cambridgeshire County Council,13-Feb-20,51301313610,"-3,171.96",GLENHOLME HEALTHCARE LTD,CARE ESTABLISHMENT,LD - Young Adults Team,LD - Young Adults - Care,Residential Care
Cambridgeshire County Council,13-Feb-20,51301313610,"-3,171.96",GLENHOLME HEALTHCARE LTD,CARE ESTABLISHMENT,LD - Young Adults Team,LD - Young Adults - Care,Residential Care
Cambridgeshire County Council,13-Feb-20,51301313610,"-3,171.96",GLENHOLME HEALTHCARE LTD,CARE ESTABLISHMENT,LD - Young Adults Team,LD - Young Adults - Care,Residential Care
Cambridgeshire County Council,13-Feb-20,51301313610,"-3,171.96",GLENHOLME HEALTHCARE LTD,CARE ESTABLISHMENT,LD - Young Adults Team,LD - Young Adults - Care,Residential Care
Cambridgeshire County Council,13-Feb-20,51301313610,"-3,171.96",GLENHOLME HEALTHCARE LTD,CARE ESTABLISHMENT,LD - Young Adults Team,LD - Young Adults - Care,Residential Care
Cambridgeshire County Council,13-Feb-20,51301313610,"-3,171.96",GLENHOLME HEALTHCARE LTD,CARE ESTABLISHMENT,LD - Young Adults Team,LD - Young Adults - Care,Residential Care
Cambridgeshire County Council,13-Feb-20,51301313610,"-3,171.96",GLENHOLME HEALTHCARE LTD,CARE ESTABLISHMENT,LD - Young Adults Team,LD - Young Adults - Care,Residential Care
Cambridgeshire County Council,13-Feb-20,51301313610,"-3,171.96",GLENHOLME HEALTHCARE LTD,CARE ESTABLISHMENT,LD - Young Adults Team,LD - Young Adults - Care,Residential Care
Cambridgeshire County Council,13-Feb-20,51301313610,"-3,171.96",GLENHOLME HEALTHCARE LTD,CARE ESTABLISHMENT,LD - Young Adults Team,LD - Young Adults - Care,Residential Care
Cambridgeshire County Council,13-Feb-20,51301313610,"-3,171.96",GLENHOLME HEALTHCARE LTD,CARE ESTABLISHMENT,LD - Young Adults Team,LD - Young Adults - Care,Residential Care
Cambridgeshire County Council,13-Feb-20,51301313610,"-3,171.96",GLENHOLME HEALTHCARE LTD,CARE ESTABLISHMENT,LD - Young Adults Team,LD - Young Adults - Care,Residential Care
Cambridgeshire County Council,13-Feb-20,51301313610,"-3,171.96",GLENHOLME HEALTHCARE LTD,CARE ESTABLISHMENT,LD - Young Adults Team,LD - Young Adults - Care,Residential Care
Cambridgeshire County Council,13-Feb-20,51301313610,"-3,171.96",GLENHOLME HEALTHCARE LTD,CARE ESTABLISHMENT,LD - Young Adults Team,LD - Young Adults - Care,Residential Care
Cambridgeshire County Council,13-Feb-20,51301313610,"-3,171.96",GLENHOLME HEALTHCARE LTD,CARE ESTABLISHMENT,LD - Young Adults Team,LD - Young Adults - Care,Residential Care
Cambridgeshire County Council,28-Feb-20,51301321885,"-2,971.84",Accomplish Group Support Limited,CARE ESTABLISHMENT,LD - Young Adults Team,LD - Young Adults - Care,Residential Care
Cambridgeshire County Council,28-Feb-20,51301321885,"-2,971.84",Accomplish Group Support Limited,CARE ESTABLISHMENT,LD - Young Adults Team,LD - Young Adults - Care,Residential Care
Cambridgeshire County Council,28-Feb-20,51301321885,"-2,971.84",Accomplish Group Support Limited,CARE ESTABLISHMENT,LD - Young Adults Team,LD - Young Adults - Care,Residential Care
Cambridgeshire County Council,28-Feb-20,51301321885,"-2,971.84",Accomplish Group Support Limited,CARE ESTABLISHMENT,LD - Young Adults Team,LD - Young Adults - Care,Residential Care
Cambridgeshire County Council,28-Feb-20,51301321885,"-2,971.84",Accomplish Group Support Limited,CARE ESTABLISHMENT,LD - Young Adults Team,LD - Young Adults - Care,Residential Care
Cambridgeshire County Council,28-Feb-20,51301321885,"-2,971.84",Accomplish Group Support Limited,CARE ESTABLISHMENT,LD - Young Adults Team,LD - Young Adults - Care,Residential Care
Cambridgeshire County Council,28-Feb-20,51301321885,"-2,971.84",Accomplish Group Support Limited,CARE ESTABLISHMENT,LD - Young Adults Team,LD - Young Adults - Care,Residential Care
Cambridgeshire County Council,28-Feb-20,51301321885,"-2,971.84",Accomplish Group Support Limited,CARE ESTABLISHMENT,LD - Young Adults Team,LD - Young Adults - Care,Residential Care
Cambridgeshire County Council,28-Feb-20,51301321885,"-2,971.84",Accomplish Group Support Limited,CARE ESTABLISHMENT,LD - Young Adults Team,LD - Young Adults - Care,Residential Care
Cambridgeshire County Council,28-Feb-20,51301321885,"-2,971.84",Accomplish Group Support Limited,CARE ESTABLISHMENT,LD - Young Adults Team,LD - Young Adults - Care,Residential Care
Cambridgeshire County Council,28-Feb-20,51301321885,"-2,971.84",Accomplish Group Support Limited,CARE ESTABLISHMENT,LD - Young Adults Team,LD - Young Adults - Care,Residential Care
Cambridgeshire County Council,28-Feb-20,51301321885,"-2,971.84",Accomplish Group Support Limited,CARE ESTABLISHMENT,LD - Young Adults Team,LD - Young Adults - Care,Residential Care
Cambridgeshire County Council,28-Feb-20,51301321885,"-2,971.84",Accomplish Group Support Limited,CARE ESTABLISHMENT,LD - Young Adults Team,LD - Young Adults - Care,Residential Care
Cambridgeshire County Council,28-Feb-20,51301321885,"-2,971.84",Accomplish Group Support Limited,CARE ESTABLISHMENT,LD - Young Adults Team,LD - Young Adults - Care,Residential Care
Cambridgeshire County Council,28-Feb-20,51301321885,"-2,971.84",Accomplish Group Support Limited,CARE ESTABLISHMENT,LD - Young Adults Team,LD - Young Adults - Care,Residential Care
Cambridgeshire County Council,28-Feb-20,51301321885,"-2,971.84",Accomplish Group Support Limited,CARE ESTABLISHMENT,LD - Young Adults Team,LD - Young Adults - Care,Residential Care
Cambridgeshire County Council,28-Feb-20,51301321885,"-2,971.84",Accomplish Group Support Limited,CARE ESTABLISHMENT,LD - Young Adults Team,LD - Young Adults - Care,Residential Care
Cambridgeshire County Council,28-Feb-20,51301321885,"-2,971.84",Accomplish Group Support Limited,CARE ESTABLISHMENT,LD - Young Adults Team,LD - Young Adults - Care,Residential Care
Cambridgeshire County Council,28-Feb-20,51301321885,"-2,971.84",Accomplish Group Support Limited,CARE ESTABLISHMENT,LD - Young Adults Team,LD - Young Adults - Care,Residential Care
Cambridgeshire County Council,28-Feb-20,51301321885,"-2,971.84",Accomplish Group Support Limited,CARE ESTABLISHMENT,LD - Young Adults Team,LD - Young Adults - Care,Residential Care
Cambridgeshire County Council,20-Feb-20,51301318352,"-2,839.68",THE ADOLESCENT & CHILDRENS TRUST (TACT) UK LTD,TRUST (OTHER),LAC Placements,Placements - independent fostering,Agency Placements - Out of  County
Cambridgeshire County Council,11-Feb-20,51301312650,"-2,821.84",KISIMUL SCHOOL,CARE ESTABLISHMENT,LD - East Locality - Cost of Care,LD - East Cambs - Care,Residential Care
Cambridgeshire County Council,11-Feb-20,51301312650,"-2,821.84",KISIMUL SCHOOL,CARE ESTABLISHMENT,LD - East Locality - Cost of Care,LD - East Cambs - Care,Residential Care
Cambridgeshire County Council,11-Feb-20,51301312650,"-2,821.84",KISIMUL SCHOOL,CARE ESTABLISHMENT,LD - East Locality - Cost of Care,LD - East Cambs - Care,Residential Care
Cambridgeshire County Council,11-Feb-20,51301312650,"-2,821.84",KISIMUL SCHOOL,CARE ESTABLISHMENT,LD - East Locality - Cost of Care,LD - East Cambs - Care,Residential Care
Cambridgeshire County Council,11-Feb-20,51301312650,"-2,821.84",KISIMUL SCHOOL,CARE ESTABLISHMENT,LD - East Locality - Cost of Care,LD - East Cambs - Care,Residential Care
Cambridgeshire County Council,11-Feb-20,51301312650,"-2,821.84",KISIMUL SCHOOL,CARE ESTABLISHMENT,LD - East Locality - Cost of Care,LD - East Cambs - Care,Residential Care
Cambridgeshire County Council,11-Feb-20,51301312650,"-2,821.84",KISIMUL SCHOOL,CARE ESTABLISHMENT,LD - East Locality - Cost of Care,LD - East Cambs - Care,Residential Care
Cambridgeshire County Council,11-Feb-20,51301312650,"-2,821.84",KISIMUL SCHOOL,CARE ESTABLISHMENT,LD - East Locality - Cost of Care,LD - East Cambs - Care,Residential Care
Cambridgeshire County Council,11-Feb-20,51301312650,"-2,821.84",KISIMUL SCHOOL,CARE ESTABLISHMENT,LD - East Locality - Cost of Care,LD - East Cambs - Care,Residential Care
Cambridgeshire County Council,11-Feb-20,51301312650,"-2,821.84",KISIMUL SCHOOL,CARE ESTABLISHMENT,LD - East Locality - Cost of Care,LD - East Cambs - Care,Residential Care
Cambridgeshire County Council,11-Feb-20,51301312650,"-2,821.84",KISIMUL SCHOOL,CARE ESTABLISHMENT,LD - East Locality - Cost of Care,LD - East Cambs - Care,Residential Care
Cambridgeshire County Council,11-Feb-20,51301312650,"-2,821.84",KISIMUL SCHOOL,CARE ESTABLISHMENT,LD - East Locality - Cost of Care,LD - East Cambs - Care,Residential Care
Cambridgeshire County Council,11-Feb-20,51301312650,"-2,821.84",KISIMUL SCHOOL,CARE ESTABLISHMENT,LD - East Locality - Cost of Care,LD - East Cambs - Care,Residential Care
Cambridgeshire County Council,11-Feb-20,51301312650,"-2,821.84",KISIMUL SCHOOL,CARE ESTABLISHMENT,LD - East Locality - Cost of Care,LD - East Cambs - Care,Residential Care
Cambridgeshire County Council,11-Feb-20,51301312650,"-2,821.84",KISIMUL SCHOOL,CARE ESTABLISHMENT,LD - East Locality - Cost of Care,LD - East Cambs - Care,Residential Care
Cambridgeshire County Council,11-Feb-20,51301312650,"-2,821.84",KISIMUL SCHOOL,CARE ESTABLISHMENT,LD - East Locality - Cost of Care,LD - East Cambs - Care,Residential Care
Cambridgeshire County Council,11-Feb-20,51301312650,"-2,821.84",KISIMUL SCHOOL,CARE ESTABLISHMENT,LD - East Locality - Cost of Care,LD - East Cambs - Care,Residential Care
Cambridgeshire County Council,11-Feb-20,51301312650,"-2,821.84",KISIMUL SCHOOL,CARE ESTABLISHMENT,LD - East Locality - Cost of Care,LD - East Cambs - Care,Residential Care
Cambridgeshire County Council,24-Feb-20,51301303495,"-2,810.82",APS Group,COMPANY,Customer Services,Contact Centre - Operations,Specialist Supplies and Materials
Cambridgeshire County Council,13-Feb-20,51301313603,"-2,806.95",GLENHOLME HEALTHCARE LTD,CARE ESTABLISHMENT,LD - Young Adults Team,LD - Young Adults - Special Needs,Residential Care
Cambridgeshire County Council,28-Feb-20,51301325267,"-2,789.73",BROOKFIELD CARE,CARE ESTABLISHMENT,OPMH - Hunts & Fens,Older People Mental Health Hunts,Domiciliary Care
Cambridgeshire County Council,03-Feb-20,51301307316,"-2,776.29",CARETECH COMMUNITY SERVICES,CARE ESTABLISHMENT,LD - Hunts Locality - Cost of Care,LD - Huntingdonshire - Care,Supported Living
Cambridgeshire County Council,28-Feb-20,51301321915,"-2,755.71",Accomplish Group Support Limited,CARE ESTABLISHMENT,LD - East Locality - Cost of Care,LD - East Cambs - Care,Residential Care
Cambridgeshire County Council,11-Feb-20,51301312651,"-2,655.39",KISIMUL SCHOOL,CARE ESTABLISHMENT,LD - East Locality - Cost of Care,LD - East Cambs - Care,Residential Care
Cambridgeshire County Council,11-Feb-20,51301312651,"-2,655.39",KISIMUL SCHOOL,CARE ESTABLISHMENT,LD - East Locality - Cost of Care,LD - East Cambs - Care,Residential Care
Cambridgeshire County Council,11-Feb-20,51301312651,"-2,655.39",KISIMUL SCHOOL,CARE ESTABLISHMENT,LD - East Locality - Cost of Care,LD - East Cambs - Care,Residential Care
Cambridgeshire County Council,11-Feb-20,51301312651,"-2,655.39",KISIMUL SCHOOL,CARE ESTABLISHMENT,LD - East Locality - Cost of Care,LD - East Cambs - Care,Residential Care
Cambridgeshire County Council,11-Feb-20,51301312651,"-2,655.39",KISIMUL SCHOOL,CARE ESTABLISHMENT,LD - East Locality - Cost of Care,LD - East Cambs - Care,Residential Care
Cambridgeshire County Council,11-Feb-20,51301312651,"-2,655.39",KISIMUL SCHOOL,CARE ESTABLISHMENT,LD - East Locality - Cost of Care,LD - East Cambs - Care,Residential Care
Cambridgeshire County Council,11-Feb-20,51301312651,"-2,655.39",KISIMUL SCHOOL,CARE ESTABLISHMENT,LD - East Locality - Cost of Care,LD - East Cambs - Care,Residential Care
Cambridgeshire County Council,11-Feb-20,51301312651,"-2,655.39",KISIMUL SCHOOL,CARE ESTABLISHMENT,LD - East Locality - Cost of Care,LD - East Cambs - Care,Residential Care
Cambridgeshire County Council,11-Feb-20,51301312651,"-2,655.39",KISIMUL SCHOOL,CARE ESTABLISHMENT,LD - East Locality - Cost of Care,LD - East Cambs - Care,Residential Care
Cambridgeshire County Council,11-Feb-20,51301312651,"-2,655.39",KISIMUL SCHOOL,CARE ESTABLISHMENT,LD - East Locality - Cost of Care,LD - East Cambs - Care,Residential Care
Cambridgeshire County Council,11-Feb-20,51301312651,"-2,655.39",KISIMUL SCHOOL,CARE ESTABLISHMENT,LD - East Locality - Cost of Care,LD - East Cambs - Care,Residential Care
Cambridgeshire County Council,11-Feb-20,51301312651,"-2,655.39",KISIMUL SCHOOL,CARE ESTABLISHMENT,LD - East Locality - Cost of Care,LD - East Cambs - Care,Residential Care
Cambridgeshire County Council,11-Feb-20,51301312651,"-2,655.39",KISIMUL SCHOOL,CARE ESTABLISHMENT,LD - East Locality - Cost of Care,LD - East Cambs - Care,Residential Care
Cambridgeshire County Council,11-Feb-20,51301312651,"-2,655.39",KISIMUL SCHOOL,CARE ESTABLISHMENT,LD - East Locality - Cost of Care,LD - East Cambs - Care,Residential Care
Cambridgeshire County Council,11-Feb-20,51301312651,"-2,655.39",KISIMUL SCHOOL,CARE ESTABLISHMENT,LD - East Locality - Cost of Care,LD - East Cambs - Care,Residential Care
Cambridgeshire County Council,11-Feb-20,51301312651,"-2,655.39",KISIMUL SCHOOL,CARE ESTABLISHMENT,LD - East Locality - Cost of Care,LD - East Cambs - Care,Residential Care
Cambridgeshire County Council,11-Feb-20,51301312651,"-2,655.39",KISIMUL SCHOOL,CARE ESTABLISHMENT,LD - East Locality - Cost of Care,LD - East Cambs - Care,Residential Care
Cambridgeshire County Council,11-Feb-20,51301312651,"-2,655.39",KISIMUL SCHOOL,CARE ESTABLISHMENT,LD - East Locality - Cost of Care,LD - East Cambs - Care,Residential Care
Cambridgeshire County Council,13-Feb-20,51301313605,"-2,639.66",GLENHOLME HEALTHCARE LTD,CARE ESTABLISHMENT,LD - Young Adults Team,LD - Young Adults - Special Needs,Residential Care
Cambridgeshire County Council,13-Feb-20,51301313605,"-2,639.66",GLENHOLME HEALTHCARE LTD,CARE ESTABLISHMENT,LD - Young Adults Team,LD - Young Adults - Special Needs,Residential Care
Cambridgeshire County Council,13-Feb-20,51301313605,"-2,639.66",GLENHOLME HEALTHCARE LTD,CARE ESTABLISHMENT,LD - Young Adults Team,LD - Young Adults - Special Needs,Residential Care
Cambridgeshire County Council,13-Feb-20,51301313605,"-2,639.66",GLENHOLME HEALTHCARE LTD,CARE ESTABLISHMENT,LD - Young Adults Team,LD - Young Adults - Special Needs,Residential Care
Cambridgeshire County Council,13-Feb-20,51301313605,"-2,639.66",GLENHOLME HEALTHCARE LTD,CARE ESTABLISHMENT,LD - Young Adults Team,LD - Young Adults - Special Needs,Residential Care
Cambridgeshire County Council,13-Feb-20,51301313605,"-2,639.66",GLENHOLME HEALTHCARE LTD,CARE ESTABLISHMENT,LD - Young Adults Team,LD - Young Adults - Special Needs,Residential Care
Cambridgeshire County Council,13-Feb-20,51301313605,"-2,639.66",GLENHOLME HEALTHCARE LTD,CARE ESTABLISHMENT,LD - Young Adults Team,LD - Young Adults - Special Needs,Residential Care
Cambridgeshire County Council,13-Feb-20,51301313605,"-2,639.66",GLENHOLME HEALTHCARE LTD,CARE ESTABLISHMENT,LD - Young Adults Team,LD - Young Adults - Special Needs,Residential Care
Cambridgeshire County Council,13-Feb-20,51301313605,"-2,639.66",GLENHOLME HEALTHCARE LTD,CARE ESTABLISHMENT,LD - Young Adults Team,LD - Young Adults - Special Needs,Residential Care
Cambridgeshire County Council,13-Feb-20,51301313605,"-2,639.66",GLENHOLME HEALTHCARE LTD,CARE ESTABLISHMENT,LD - Young Adults Team,LD - Young Adults - Special Needs,Residential Care
Cambridgeshire County Council,13-Feb-20,51301313605,"-2,639.66",GLENHOLME HEALTHCARE LTD,CARE ESTABLISHMENT,LD - Young Adults Team,LD - Young Adults - Special Needs,Residential Care
Cambridgeshire County Council,13-Feb-20,51301313605,"-2,639.66",GLENHOLME HEALTHCARE LTD,CARE ESTABLISHMENT,LD - Young Adults Team,LD - Young Adults - Special Needs,Residential Care
Cambridgeshire County Council,13-Feb-20,51301313605,"-2,639.66",GLENHOLME HEALTHCARE LTD,CARE ESTABLISHMENT,LD - Young Adults Team,LD - Young Adults - Special Needs,Residential Care
Cambridgeshire County Council,13-Feb-20,51301313605,"-2,639.66",GLENHOLME HEALTHCARE LTD,CARE ESTABLISHMENT,LD - Young Adults Team,LD - Young Adults - Special Needs,Residential Care
Cambridgeshire County Council,13-Feb-20,51301313605,"-2,639.66",GLENHOLME HEALTHCARE LTD,CARE ESTABLISHMENT,LD - Young Adults Team,LD - Young Adults - Special Needs,Residential Care
Cambridgeshire County Council,13-Feb-20,51301313605,"-2,639.66",GLENHOLME HEALTHCARE LTD,CARE ESTABLISHMENT,LD - Young Adults Team,LD - Young Adults - Special Needs,Residential Care
Cambridgeshire County Council,13-Feb-20,51301313605,"-2,639.66",GLENHOLME HEALTHCARE LTD,CARE ESTABLISHMENT,LD - Young Adults Team,LD - Young Adults - Special Needs,Residential Care
Cambridgeshire County Council,13-Feb-20,51301313605,"-2,639.66",GLENHOLME HEALTHCARE LTD,CARE ESTABLISHMENT,LD - Young Adults Team,LD - Young Adults - Special Needs,Residential Care
Cambridgeshire County Council,13-Feb-20,51301313605,"-2,639.66",GLENHOLME HEALTHCARE LTD,CARE ESTABLISHMENT,LD - Young Adults Team,LD - Young Adults - Special Needs,Residential Care
Cambridgeshire County Council,13-Feb-20,51301313605,"-2,639.66",GLENHOLME HEALTHCARE LTD,CARE ESTABLISHMENT,LD - Young Adults Team,LD - Young Adults - Special Needs,Residential Care
Cambridgeshire County Council,13-Feb-20,51301313605,"-2,639.66",GLENHOLME HEALTHCARE LTD,CARE ESTABLISHMENT,LD - Young Adults Team,LD - Young Adults - Special Needs,Residential Care
Cambridgeshire County Council,13-Feb-20,51301313605,"-2,639.66",GLENHOLME HEALTHCARE LTD,CARE ESTABLISHMENT,LD - Young Adults Team,LD - Young Adults - Special Needs,Residential Care
Cambridgeshire County Council,13-Feb-20,51301313605,"-2,639.66",GLENHOLME HEALTHCARE LTD,CARE ESTABLISHMENT,LD - Young Adults Team,LD - Young Adults - Special Needs,Residential Care
Cambridgeshire County Council,13-Feb-20,51301313605,"-2,639.66",GLENHOLME HEALTHCARE LTD,CARE ESTABLISHMENT,LD - Young Adults Team,LD - Young Adults - Special Needs,Residential Care
Cambridgeshire County Council,13-Feb-20,51301313804,"-2,636.73",AFFINITY TRUST,CARE ESTABLISHMENT,LD - Fenland Locality - Cost of Care,LD - Fenland  - Care,Supported Living
Cambridgeshire County Council,13-Feb-20,51301313804,"-2,636.73",AFFINITY TRUST,CARE ESTABLISHMENT,LD - Fenland Locality - Cost of Care,LD - Fenland  - Care,Supported Living
Cambridgeshire County Council,13-Feb-20,51301313804,"-2,636.73",AFFINITY TRUST,CARE ESTABLISHMENT,LD - Fenland Locality - Cost of Care,LD - Fenland  - Care,Supported Living
Cambridgeshire County Council,13-Feb-20,51301313804,"-2,636.73",AFFINITY TRUST,CARE ESTABLISHMENT,LD - Fenland Locality - Cost of Care,LD - Fenland  - Care,Supported Living
Cambridgeshire County Council,13-Feb-20,51301313804,"-2,636.73",AFFINITY TRUST,CARE ESTABLISHMENT,LD - Fenland Locality - Cost of Care,LD - Fenland  - Care,Supported Living
Cambridgeshire County Council,13-Feb-20,51301313804,"-2,636.73",AFFINITY TRUST,CARE ESTABLISHMENT,LD - Fenland Locality - Cost of Care,LD - Fenland  - Care,Supported Living
Cambridgeshire County Council,13-Feb-20,51301313804,"-2,636.73",AFFINITY TRUST,CARE ESTABLISHMENT,LD - Fenland Locality - Cost of Care,LD - Fenland  - Care,Supported Living
Cambridgeshire County Council,13-Feb-20,51301313804,"-2,636.73",AFFINITY TRUST,CARE ESTABLISHMENT,LD - Fenland Locality - Cost of Care,LD - Fenland  - Care,Supported Living
Cambridgeshire County Council,13-Feb-20,51301313804,"-2,636.73",AFFINITY TRUST,CARE ESTABLISHMENT,LD - Fenland Locality - Cost of Care,LD - Fenland  - Care,Supported Living
Cambridgeshire County Council,13-Feb-20,51301313804,"-2,636.73",AFFINITY TRUST,CARE ESTABLISHMENT,LD - Fenland Locality - Cost of Care,LD - Fenland  - Care,Supported Living
Cambridgeshire County Council,13-Feb-20,51301313804,"-2,636.73",AFFINITY TRUST,CARE ESTABLISHMENT,LD - Fenland Locality - Cost of Care,LD - Fenland  - Care,Supported Living
Cambridgeshire County Council,13-Feb-20,51301313804,"-2,636.73",AFFINITY TRUST,CARE ESTABLISHMENT,LD - Fenland Locality - Cost of Care,LD - Fenland  - Care,Supported Living
Cambridgeshire County Council,13-Feb-20,51301313804,"-2,636.73",AFFINITY TRUST,CARE ESTABLISHMENT,LD - Fenland Locality - Cost of Care,LD - Fenland  - Care,Supported Living
Cambridgeshire County Council,13-Feb-20,51301313804,"-2,636.73",AFFINITY TRUST,CARE ESTABLISHMENT,LD - Fenland Locality - Cost of Care,LD - Fenland  - Care,Supported Living
Cambridgeshire County Council,13-Feb-20,51301313804,"-2,636.73",AFFINITY TRUST,CARE ESTABLISHMENT,LD - Fenland Locality - Cost of Care,LD - Fenland  - Care,Supported Living
Cambridgeshire County Council,13-Feb-20,51301313804,"-2,636.73",AFFINITY TRUST,CARE ESTABLISHMENT,LD - Fenland Locality - Cost of Care,LD - Fenland  - Care,Supported Living
Cambridgeshire County Council,13-Feb-20,51301313804,"-2,636.73",AFFINITY TRUST,CARE ESTABLISHMENT,LD - Fenland Locality - Cost of Care,LD - Fenland  - Care,Supported Living
Cambridgeshire County Council,13-Feb-20,51301313804,"-2,636.73",AFFINITY TRUST,CARE ESTABLISHMENT,LD - Fenland Locality - Cost of Care,LD - Fenland  - Care,Supported Living
Cambridgeshire County Council,20-Feb-20,51301317463,"-2,607.66",SENSE (MIDLANDS),CARE ESTABLISHMENT,LD - Hunts Locality - Cost of Care,LD - Huntingdonshire - Care,Residential Care
Cambridgeshire County Council,20-Feb-20,51301317463,"-2,607.66",SENSE (MIDLANDS),CARE ESTABLISHMENT,LD - Hunts Locality - Cost of Care,LD - Huntingdonshire - Care,Residential Care
Cambridgeshire County Council,20-Feb-20,51301317463,"-2,607.66",SENSE (MIDLANDS),CARE ESTABLISHMENT,LD - Hunts Locality - Cost of Care,LD - Huntingdonshire - Care,Residential Care
Cambridgeshire County Council,20-Feb-20,51301317463,"-2,607.66",SENSE (MIDLANDS),CARE ESTABLISHMENT,LD - Hunts Locality - Cost of Care,LD - Huntingdonshire - Care,Residential Care
Cambridgeshire County Council,20-Feb-20,51301317463,"-2,607.66",SENSE (MIDLANDS),CARE ESTABLISHMENT,LD - Hunts Locality - Cost of Care,LD - Huntingdonshire - Care,Residential Care
Cambridgeshire County Council,20-Feb-20,51301317463,"-2,607.66",SENSE (MIDLANDS),CARE ESTABLISHMENT,LD - Hunts Locality - Cost of Care,LD - Huntingdonshire - Care,Residential Care
Cambridgeshire County Council,20-Feb-20,51301317463,"-2,607.66",SENSE (MIDLANDS),CARE ESTABLISHMENT,LD - Hunts Locality - Cost of Care,LD - Huntingdonshire - Care,Residential Care
Cambridgeshire County Council,20-Feb-20,51301317463,"-2,607.66",SENSE (MIDLANDS),CARE ESTABLISHMENT,LD - Hunts Locality - Cost of Care,LD - Huntingdonshire - Care,Residential Care
Cambridgeshire County Council,20-Feb-20,51301317463,"-2,607.66",SENSE (MIDLANDS),CARE ESTABLISHMENT,LD - Hunts Locality - Cost of Care,LD - Huntingdonshire - Care,Residential Care
Cambridgeshire County Council,20-Feb-20,51301317463,"-2,607.66",SENSE (MIDLANDS),CARE ESTABLISHMENT,LD - Hunts Locality - Cost of Care,LD - Huntingdonshire - Care,Residential Care
Cambridgeshire County Council,20-Feb-20,51301317463,"-2,607.66",SENSE (MIDLANDS),CARE ESTABLISHMENT,LD - Hunts Locality - Cost of Care,LD - Huntingdonshire - Care,Residential Care
Cambridgeshire County Council,20-Feb-20,51301317463,"-2,607.66",SENSE (MIDLANDS),CARE ESTABLISHMENT,LD - Hunts Locality - Cost of Care,LD - Huntingdonshire - Care,Residential Care
Cambridgeshire County Council,20-Feb-20,51301317463,"-2,607.66",SENSE (MIDLANDS),CARE ESTABLISHMENT,LD - Hunts Locality - Cost of Care,LD - Huntingdonshire - Care,Residential Care
Cambridgeshire County Council,20-Feb-20,51301317463,"-2,607.66",SENSE (MIDLANDS),CARE ESTABLISHMENT,LD - Hunts Locality - Cost of Care,LD - Huntingdonshire - Care,Residential Care
Cambridgeshire County Council,20-Feb-20,51301317463,"-2,607.66",SENSE (MIDLANDS),CARE ESTABLISHMENT,LD - Hunts Locality - Cost of Care,LD - Huntingdonshire - Care,Residential Care
Cambridgeshire County Council,20-Feb-20,51301317463,"-2,607.66",SENSE (MIDLANDS),CARE ESTABLISHMENT,LD - Hunts Locality - Cost of Care,LD - Huntingdonshire - Care,Residential Care
Cambridgeshire County Council,20-Feb-20,51301317463,"-2,607.66",SENSE (MIDLANDS),CARE ESTABLISHMENT,LD - Hunts Locality - Cost of Care,LD - Huntingdonshire - Care,Residential Care
Cambridgeshire County Council,20-Feb-20,51301317463,"-2,607.66",SENSE (MIDLANDS),CARE ESTABLISHMENT,LD - Hunts Locality - Cost of Care,LD - Huntingdonshire - Care,Residential Care
Cambridgeshire County Council,20-Feb-20,51301317463,"-2,607.66",SENSE (MIDLANDS),CARE ESTABLISHMENT,LD - Hunts Locality - Cost of Care,LD - Huntingdonshire - Care,Residential Care
Cambridgeshire County Council,20-Feb-20,51301317463,"-2,607.66",SENSE (MIDLANDS),CARE ESTABLISHMENT,LD - Hunts Locality - Cost of Care,LD - Huntingdonshire - Care,Residential Care
Cambridgeshire County Council,20-Feb-20,51301317463,"-2,607.66",SENSE (MIDLANDS),CARE ESTABLISHMENT,LD - Hunts Locality - Cost of Care,LD - Huntingdonshire - Care,Residential Care
Cambridgeshire County Council,20-Feb-20,51301317463,"-2,607.66",SENSE (MIDLANDS),CARE ESTABLISHMENT,LD - Hunts Locality - Cost of Care,LD - Huntingdonshire - Care,Residential Care
Cambridgeshire County Council,20-Feb-20,51301317463,"-2,607.66",SENSE (MIDLANDS),CARE ESTABLISHMENT,LD - Hunts Locality - Cost of Care,LD - Huntingdonshire - Care,Residential Care
Cambridgeshire County Council,20-Feb-20,51301317463,"-2,607.66",SENSE (MIDLANDS),CARE ESTABLISHMENT,LD - Hunts Locality - Cost of Care,LD - Huntingdonshire - Care,Residential Care
Cambridgeshire County Council,20-Feb-20,51301317463,"-2,607.66",SENSE (MIDLANDS),CARE ESTABLISHMENT,LD - Hunts Locality - Cost of Care,LD - Huntingdonshire - Care,Residential Care
Cambridgeshire County Council,20-Feb-20,51301317463,"-2,607.66",SENSE (MIDLANDS),CARE ESTABLISHMENT,LD - Hunts Locality - Cost of Care,LD - Huntingdonshire - Care,Residential Care
Cambridgeshire County Council,17-Feb-20,51301305543,"-2,551.33",TIDEY ELECTRICAL LTD,TRADE SUPPLIER,Customer Services,Contact Centre - Operations,Building Stuctural Maintenance - Planned
Cambridgeshire County Council,28-Feb-20,51301307507,"-2,512.39",MAYFIELD HEATH FARM,CARE ESTABLISHMENT,LD - Hunts Locality - Cost of Care,LD - Huntingdonshire - Care,Day Care
Cambridgeshire County Council,06-Feb-20,51301310776,"-2,469.75",Redacted Personal Data,SERVICE USER,LD - East Locality - Cost of Care,LD - East Cambs - Special Needs,Direct Payments
Cambridgeshire County Council,28-Feb-20,51301323945,"-2,469.75",Redacted Personal Data,SERVICE USER,LD - Hunts Locality - Cost of Care,LD - Huntingdonshire - Special Needs,Direct Payments
Cambridgeshire County Council,20-Feb-20,51301317307,"-2,468.74",DIMENSIONS (UK) LTD,CARE ESTABLISHMENT,LD - South Locality - Cost of Care,LD - South Cambs - Special Needs,Supported Living
Cambridgeshire County Council,20-Feb-20,51301317307,"-2,468.74",DIMENSIONS (UK) LTD,CARE ESTABLISHMENT,LD - South Locality - Cost of Care,LD - South Cambs - Special Needs,Supported Living
Cambridgeshire County Council,20-Feb-20,51301317307,"-2,468.74",DIMENSIONS (UK) LTD,CARE ESTABLISHMENT,LD - South Locality - Cost of Care,LD - South Cambs - Special Needs,Supported Living
Cambridgeshire County Council,20-Feb-20,51301317307,"-2,468.74",DIMENSIONS (UK) LTD,CARE ESTABLISHMENT,LD - South Locality - Cost of Care,LD - South Cambs - Special Needs,Supported Living
Cambridgeshire County Council,20-Feb-20,51301317307,"-2,468.74",DIMENSIONS (UK) LTD,CARE ESTABLISHMENT,LD - South Locality - Cost of Care,LD - South Cambs - Special Needs,Supported Living
Cambridgeshire County Council,20-Feb-20,51301317307,"-2,468.74",DIMENSIONS (UK) LTD,CARE ESTABLISHMENT,LD - South Locality - Cost of Care,LD - South Cambs - Special Needs,Supported Living
Cambridgeshire County Council,20-Feb-20,51301317307,"-2,468.74",DIMENSIONS (UK) LTD,CARE ESTABLISHMENT,LD - South Locality - Cost of Care,LD - South Cambs - Special Needs,Supported Living
Cambridgeshire County Council,20-Feb-20,51301317307,"-2,468.74",DIMENSIONS (UK) LTD,CARE ESTABLISHMENT,LD - South Locality - Cost of Care,LD - South Cambs - Special Needs,Supported Living
Cambridgeshire County Council,20-Feb-20,51301317307,"-2,468.74",DIMENSIONS (UK) LTD,CARE ESTABLISHMENT,LD - South Locality - Cost of Care,LD - South Cambs - Special Needs,Supported Living
Cambridgeshire County Council,20-Feb-20,51301317307,"-2,468.74",DIMENSIONS (UK) LTD,CARE ESTABLISHMENT,LD - South Locality - Cost of Care,LD - South Cambs - Special Needs,Supported Living
Cambridgeshire County Council,20-Feb-20,51301317307,"-2,468.74",DIMENSIONS (UK) LTD,CARE ESTABLISHMENT,LD - South Locality - Cost of Care,LD - South Cambs - Special Needs,Supported Living
Cambridgeshire County Council,20-Feb-20,51301317307,"-2,468.74",DIMENSIONS (UK) LTD,CARE ESTABLISHMENT,LD - South Locality - Cost of Care,LD - South Cambs - Special Needs,Supported Living
Cambridgeshire County Council,20-Feb-20,51301317307,"-2,468.74",DIMENSIONS (UK) LTD,CARE ESTABLISHMENT,LD - South Locality - Cost of Care,LD - South Cambs - Special Needs,Supported Living
Cambridgeshire County Council,20-Feb-20,51301317307,"-2,468.74",DIMENSIONS (UK) LTD,CARE ESTABLISHMENT,LD - South Locality - Cost of Care,LD - South Cambs - Special Needs,Supported Living
Cambridgeshire County Council,20-Feb-20,51301317307,"-2,468.74",DIMENSIONS (UK) LTD,CARE ESTABLISHMENT,LD - South Locality - Cost of Care,LD - South Cambs - Special Needs,Supported Living
Cambridgeshire County Council,20-Feb-20,51301317307,"-2,468.74",DIMENSIONS (UK) LTD,CARE ESTABLISHMENT,LD - South Locality - Cost of Care,LD - South Cambs - Special Needs,Supported Living
Cambridgeshire County Council,20-Feb-20,51301317307,"-2,468.74",DIMENSIONS (UK) LTD,CARE ESTABLISHMENT,LD - South Locality - Cost of Care,LD - South Cambs - Special Needs,Supported Living
Cambridgeshire County Council,20-Feb-20,51301317307,"-2,468.74",DIMENSIONS (UK) LTD,CARE ESTABLISHMENT,LD - South Locality - Cost of Care,LD - South Cambs - Special Needs,Supported Living
Cambridgeshire County Council,03-Feb-20,51301307867,"-2,460.31",CAMB CARE LTD,CARE ESTABLISHMENT,Physical Disablity - Cost of Care,Countywide PD Service - Care,Domiciliary Care
Cambridgeshire County Council,28-Feb-20,51301317964,"-2,456.87",Glebe Farm,COMPANY,LD - Hunts Locality - Cost of Care,LD - Huntingdonshire - Care,Nursing Care
Cambridgeshire County Council,28-Feb-20,51301317964,"-2,456.87",Glebe Farm,COMPANY,LD - Hunts Locality - Cost of Care,LD - Huntingdonshire - Care,Nursing Care
Cambridgeshire County Council,28-Feb-20,51301317964,"-2,456.87",Glebe Farm,COMPANY,LD - Hunts Locality - Cost of Care,LD - Huntingdonshire - Care,Nursing Care
Cambridgeshire County Council,28-Feb-20,51301317964,"-2,456.87",Glebe Farm,COMPANY,LD - Hunts Locality - Cost of Care,LD - Huntingdonshire - Care,Nursing Care
Cambridgeshire County Council,28-Feb-20,51301317964,"-2,456.87",Glebe Farm,COMPANY,LD - Hunts Locality - Cost of Care,LD - Huntingdonshire - Care,Nursing Care
Cambridgeshire County Council,28-Feb-20,51301317964,"-2,456.87",Glebe Farm,COMPANY,LD - Hunts Locality - Cost of Care,LD - Huntingdonshire - Care,Nursing Care
Cambridgeshire County Council,28-Feb-20,51301317964,"-2,456.87",Glebe Farm,COMPANY,LD - Hunts Locality - Cost of Care,LD - Huntingdonshire - Care,Nursing Care
Cambridgeshire County Council,28-Feb-20,51301321815,"-2,365.80",BLUNHAM DAIRY MANOR FARM (BROOKDALE),CARE ESTABLISHMENT,LD - Hunts Locality - Cost of Care,LD - Huntingdonshire - Special Needs,Residential Care
Cambridgeshire County Council,28-Feb-20,51301321815,"-2,365.80",BLUNHAM DAIRY MANOR FARM (BROOKDALE),CARE ESTABLISHMENT,LD - Hunts Locality - Cost of Care,LD - Huntingdonshire - Special Needs,Residential Care
Cambridgeshire County Council,28-Feb-20,51301321815,"-2,365.80",BLUNHAM DAIRY MANOR FARM (BROOKDALE),CARE ESTABLISHMENT,LD - Hunts Locality - Cost of Care,LD - Huntingdonshire - Special Needs,Residential Care
Cambridgeshire County Council,28-Feb-20,51301321815,"-2,365.80",BLUNHAM DAIRY MANOR FARM (BROOKDALE),CARE ESTABLISHMENT,LD - Hunts Locality - Cost of Care,LD - Huntingdonshire - Special Needs,Residential Care
Cambridgeshire County Council,28-Feb-20,51301321815,"-2,365.80",BLUNHAM DAIRY MANOR FARM (BROOKDALE),CARE ESTABLISHMENT,LD - Hunts Locality - Cost of Care,LD - Huntingdonshire - Special Needs,Residential Care
Cambridgeshire County Council,28-Feb-20,51301321815,"-2,365.80",BLUNHAM DAIRY MANOR FARM (BROOKDALE),CARE ESTABLISHMENT,LD - Hunts Locality - Cost of Care,LD - Huntingdonshire - Special Needs,Residential Care
Cambridgeshire County Council,28-Feb-20,51301321815,"-2,365.80",BLUNHAM DAIRY MANOR FARM (BROOKDALE),CARE ESTABLISHMENT,LD - Hunts Locality - Cost of Care,LD - Huntingdonshire - Special Needs,Residential Care
Cambridgeshire County Council,28-Feb-20,51301321815,"-2,365.80",BLUNHAM DAIRY MANOR FARM (BROOKDALE),CARE ESTABLISHMENT,LD - Hunts Locality - Cost of Care,LD - Huntingdonshire - Special Needs,Residential Care
Cambridgeshire County Council,28-Feb-20,51301321815,"-2,365.80",BLUNHAM DAIRY MANOR FARM (BROOKDALE),CARE ESTABLISHMENT,LD - Hunts Locality - Cost of Care,LD - Huntingdonshire - Special Needs,Residential Care
Cambridgeshire County Council,28-Feb-20,51301321815,"-2,365.80",BLUNHAM DAIRY MANOR FARM (BROOKDALE),CARE ESTABLISHMENT,LD - Hunts Locality - Cost of Care,LD - Huntingdonshire - Special Needs,Residential Care
Cambridgeshire County Council,28-Feb-20,51301321815,"-2,365.80",BLUNHAM DAIRY MANOR FARM (BROOKDALE),CARE ESTABLISHMENT,LD - Hunts Locality - Cost of Care,LD - Huntingdonshire - Special Needs,Residential Care
Cambridgeshire County Council,28-Feb-20,51301321815,"-2,365.80",BLUNHAM DAIRY MANOR FARM (BROOKDALE),CARE ESTABLISHMENT,LD - Hunts Locality - Cost of Care,LD - Huntingdonshire - Special Needs,Residential Care
Cambridgeshire County Council,28-Feb-20,51301321815,"-2,365.80",BLUNHAM DAIRY MANOR FARM (BROOKDALE),CARE ESTABLISHMENT,LD - Hunts Locality - Cost of Care,LD - Huntingdonshire - Special Needs,Residential Care
Cambridgeshire County Council,28-Feb-20,51301321815,"-2,365.80",BLUNHAM DAIRY MANOR FARM (BROOKDALE),CARE ESTABLISHMENT,LD - Hunts Locality - Cost of Care,LD - Huntingdonshire - Special Needs,Residential Care
Cambridgeshire County Council,28-Feb-20,51301321815,"-2,365.80",BLUNHAM DAIRY MANOR FARM (BROOKDALE),CARE ESTABLISHMENT,LD - Hunts Locality - Cost of Care,LD - Huntingdonshire - Special Needs,Residential Care
Cambridgeshire County Council,28-Feb-20,51301321815,"-2,365.80",BLUNHAM DAIRY MANOR FARM (BROOKDALE),CARE ESTABLISHMENT,LD - Hunts Locality - Cost of Care,LD - Huntingdonshire - Special Needs,Residential Care
Cambridgeshire County Council,28-Feb-20,51301321815,"-2,365.80",BLUNHAM DAIRY MANOR FARM (BROOKDALE),CARE ESTABLISHMENT,LD - Hunts Locality - Cost of Care,LD - Huntingdonshire - Special Needs,Residential Care
Cambridgeshire County Council,28-Feb-20,51301321815,"-2,365.80",BLUNHAM DAIRY MANOR FARM (BROOKDALE),CARE ESTABLISHMENT,LD - Hunts Locality - Cost of Care,LD - Huntingdonshire - Special Needs,Residential Care
Cambridgeshire County Council,28-Feb-20,51301321815,"-2,365.80",BLUNHAM DAIRY MANOR FARM (BROOKDALE),CARE ESTABLISHMENT,LD - Hunts Locality - Cost of Care,LD - Huntingdonshire - Special Needs,Residential Care
Cambridgeshire County Council,28-Feb-20,51301321815,"-2,365.80",BLUNHAM DAIRY MANOR FARM (BROOKDALE),CARE ESTABLISHMENT,LD - Hunts Locality - Cost of Care,LD - Huntingdonshire - Special Needs,Residential Care
Cambridgeshire County Council,28-Feb-20,51301321815,"-2,365.80",BLUNHAM DAIRY MANOR FARM (BROOKDALE),CARE ESTABLISHMENT,LD - Hunts Locality - Cost of Care,LD - Huntingdonshire - Special Needs,Residential Care
Cambridgeshire County Council,28-Feb-20,51301321815,"-2,365.80",BLUNHAM DAIRY MANOR FARM (BROOKDALE),CARE ESTABLISHMENT,LD - Hunts Locality - Cost of Care,LD - Huntingdonshire - Special Needs,Residential Care
Cambridgeshire County Council,28-Feb-20,51301321815,"-2,365.80",BLUNHAM DAIRY MANOR FARM (BROOKDALE),CARE ESTABLISHMENT,LD - Hunts Locality - Cost of Care,LD - Huntingdonshire - Special Needs,Residential Care
Cambridgeshire County Council,28-Feb-20,51301321815,"-2,365.80",BLUNHAM DAIRY MANOR FARM (BROOKDALE),CARE ESTABLISHMENT,LD - Hunts Locality - Cost of Care,LD - Huntingdonshire - Special Needs,Residential Care
Cambridgeshire County Council,28-Feb-20,51301321815,"-2,365.80",BLUNHAM DAIRY MANOR FARM (BROOKDALE),CARE ESTABLISHMENT,LD - Hunts Locality - Cost of Care,LD - Huntingdonshire - Special Needs,Residential Care
Cambridgeshire County Council,28-Feb-20,51301321815,"-2,365.80",BLUNHAM DAIRY MANOR FARM (BROOKDALE),CARE ESTABLISHMENT,LD - Hunts Locality - Cost of Care,LD - Huntingdonshire - Special Needs,Residential Care
Cambridgeshire County Council,28-Feb-20,51301321815,"-2,365.80",BLUNHAM DAIRY MANOR FARM (BROOKDALE),CARE ESTABLISHMENT,LD - Hunts Locality - Cost of Care,LD - Huntingdonshire - Special Needs,Residential Care
Cambridgeshire County Council,28-Feb-20,51301321815,"-2,365.80",BLUNHAM DAIRY MANOR FARM (BROOKDALE),CARE ESTABLISHMENT,LD - Hunts Locality - Cost of Care,LD - Huntingdonshire - Special Needs,Residential Care
Cambridgeshire County Council,28-Feb-20,51301321815,"-2,365.80",BLUNHAM DAIRY MANOR FARM (BROOKDALE),CARE ESTABLISHMENT,LD - Hunts Locality - Cost of Care,LD - Huntingdonshire - Special Needs,Residential Care
Cambridgeshire County Council,28-Feb-20,51301321815,"-2,365.80",BLUNHAM DAIRY MANOR FARM (BROOKDALE),CARE ESTABLISHMENT,LD - Hunts Locality - Cost of Care,LD - Huntingdonshire - Special Needs,Residential Care
Cambridgeshire County Council,28-Feb-20,51301321815,"-2,365.80",BLUNHAM DAIRY MANOR FARM (BROOKDALE),CARE ESTABLISHMENT,LD - Hunts Locality - Cost of Care,LD - Huntingdonshire - Special Needs,Residential Care
Cambridgeshire County Council,28-Feb-20,51301321815,"-2,365.80",BLUNHAM DAIRY MANOR FARM (BROOKDALE),CARE ESTABLISHMENT,LD - Hunts Locality - Cost of Care,LD - Huntingdonshire - Special Needs,Residential Care
Cambridgeshire County Council,28-Feb-20,51301321815,"-2,365.80",BLUNHAM DAIRY MANOR FARM (BROOKDALE),CARE ESTABLISHMENT,LD - Hunts Locality - Cost of Care,LD - Huntingdonshire - Special Needs,Residential Care
Cambridgeshire County Council,28-Feb-20,51301321815,"-2,365.80",BLUNHAM DAIRY MANOR FARM (BROOKDALE),CARE ESTABLISHMENT,LD - Hunts Locality - Cost of Care,LD - Huntingdonshire - Special Needs,Residential Care
Cambridgeshire County Council,28-Feb-20,51301321815,"-2,365.80",BLUNHAM DAIRY MANOR FARM (BROOKDALE),CARE ESTABLISHMENT,LD - Hunts Locality - Cost of Care,LD - Huntingdonshire - Special Needs,Residential Care
Cambridgeshire County Council,28-Feb-20,51301321815,"-2,365.80",BLUNHAM DAIRY MANOR FARM (BROOKDALE),CARE ESTABLISHMENT,LD - Hunts Locality - Cost of Care,LD - Huntingdonshire - Special Needs,Residential Care
Cambridgeshire County Council,28-Feb-20,51301321815,"-2,365.80",BLUNHAM DAIRY MANOR FARM (BROOKDALE),CARE ESTABLISHMENT,LD - Hunts Locality - Cost of Care,LD - Huntingdonshire - Special Needs,Residential Care
Cambridgeshire County Council,28-Feb-20,51301321815,"-2,365.80",BLUNHAM DAIRY MANOR FARM (BROOKDALE),CARE ESTABLISHMENT,LD - Hunts Locality - Cost of Care,LD - Huntingdonshire - Special Needs,Residential Care
Cambridgeshire County Council,28-Feb-20,51301321815,"-2,365.80",BLUNHAM DAIRY MANOR FARM (BROOKDALE),CARE ESTABLISHMENT,LD - Hunts Locality - Cost of Care,LD - Huntingdonshire - Special Needs,Residential Care
Cambridgeshire County Council,28-Feb-20,51301321815,"-2,365.80",BLUNHAM DAIRY MANOR FARM (BROOKDALE),CARE ESTABLISHMENT,LD - Hunts Locality - Cost of Care,LD - Huntingdonshire - Special Needs,Residential Care
Cambridgeshire County Council,28-Feb-20,51301321815,"-2,365.80",BLUNHAM DAIRY MANOR FARM (BROOKDALE),CARE ESTABLISHMENT,LD - Hunts Locality - Cost of Care,LD - Huntingdonshire - Special Needs,Residential Care
Cambridgeshire County Council,28-Feb-20,51301321815,"-2,365.80",BLUNHAM DAIRY MANOR FARM (BROOKDALE),CARE ESTABLISHMENT,LD - Hunts Locality - Cost of Care,LD - Huntingdonshire - Special Needs,Residential Care
Cambridgeshire County Council,28-Feb-20,51301321815,"-2,365.80",BLUNHAM DAIRY MANOR FARM (BROOKDALE),CARE ESTABLISHMENT,LD - Hunts Locality - Cost of Care,LD - Huntingdonshire - Special Needs,Residential Care
Cambridgeshire County Council,13-Feb-20,51301313726,"-2,348.07",AFFINITY TRUST,CARE ESTABLISHMENT,LD - Hunts Locality - Cost of Care,LD - Huntingdonshire - Care,Supported Living
Cambridgeshire County Council,13-Feb-20,51301313726,"-2,348.07",AFFINITY TRUST,CARE ESTABLISHMENT,LD - Hunts Locality - Cost of Care,LD - Huntingdonshire - Care,Supported Living
Cambridgeshire County Council,13-Feb-20,51301313726,"-2,348.07",AFFINITY TRUST,CARE ESTABLISHMENT,LD - Hunts Locality - Cost of Care,LD - Huntingdonshire - Care,Supported Living
Cambridgeshire County Council,13-Feb-20,51301313726,"-2,348.07",AFFINITY TRUST,CARE ESTABLISHMENT,LD - Hunts Locality - Cost of Care,LD - Huntingdonshire - Care,Supported Living
Cambridgeshire County Council,13-Feb-20,51301313726,"-2,348.07",AFFINITY TRUST,CARE ESTABLISHMENT,LD - Hunts Locality - Cost of Care,LD - Huntingdonshire - Care,Supported Living
Cambridgeshire County Council,13-Feb-20,51301313726,"-2,348.07",AFFINITY TRUST,CARE ESTABLISHMENT,LD - Hunts Locality - Cost of Care,LD - Huntingdonshire - Care,Supported Living
Cambridgeshire County Council,13-Feb-20,51301313726,"-2,348.07",AFFINITY TRUST,CARE ESTABLISHMENT,LD - Hunts Locality - Cost of Care,LD - Huntingdonshire - Care,Supported Living
Cambridgeshire County Council,13-Feb-20,51301313726,"-2,348.07",AFFINITY TRUST,CARE ESTABLISHMENT,LD - Hunts Locality - Cost of Care,LD - Huntingdonshire - Care,Supported Living
Cambridgeshire County Council,13-Feb-20,51301313726,"-2,348.07",AFFINITY TRUST,CARE ESTABLISHMENT,LD - Hunts Locality - Cost of Care,LD - Huntingdonshire - Care,Supported Living
Cambridgeshire County Council,13-Feb-20,51301313726,"-2,348.07",AFFINITY TRUST,CARE ESTABLISHMENT,LD - Hunts Locality - Cost of Care,LD - Huntingdonshire - Care,Supported Living
Cambridgeshire County Council,13-Feb-20,51301313726,"-2,348.07",AFFINITY TRUST,CARE ESTABLISHMENT,LD - Hunts Locality - Cost of Care,LD - Huntingdonshire - Care,Supported Living
Cambridgeshire County Council,13-Feb-20,51301313726,"-2,348.07",AFFINITY TRUST,CARE ESTABLISHMENT,LD - Hunts Locality - Cost of Care,LD - Huntingdonshire - Care,Supported Living
Cambridgeshire County Council,13-Feb-20,51301313726,"-2,348.07",AFFINITY TRUST,CARE ESTABLISHMENT,LD - Hunts Locality - Cost of Care,LD - Huntingdonshire - Care,Supported Living
Cambridgeshire County Council,13-Feb-20,51301313726,"-2,348.07",AFFINITY TRUST,CARE ESTABLISHMENT,LD - Hunts Locality - Cost of Care,LD - Huntingdonshire - Care,Supported Living
Cambridgeshire County Council,13-Feb-20,51301313726,"-2,348.07",AFFINITY TRUST,CARE ESTABLISHMENT,LD - Hunts Locality - Cost of Care,LD - Huntingdonshire - Care,Supported Living
Cambridgeshire County Council,13-Feb-20,51301313726,"-2,348.07",AFFINITY TRUST,CARE ESTABLISHMENT,LD - Hunts Locality - Cost of Care,LD - Huntingdonshire - Care,Supported Living
Cambridgeshire County Council,13-Feb-20,51301313726,"-2,348.07",AFFINITY TRUST,CARE ESTABLISHMENT,LD - Hunts Locality - Cost of Care,LD - Huntingdonshire - Care,Supported Living
Cambridgeshire County Council,13-Feb-20,51301313726,"-2,348.07",AFFINITY TRUST,CARE ESTABLISHMENT,LD - Hunts Locality - Cost of Care,LD - Huntingdonshire - Care,Supported Living
Cambridgeshire County Council,13-Feb-20,51301313726,"-2,348.07",AFFINITY TRUST,CARE ESTABLISHMENT,LD - Hunts Locality - Cost of Care,LD - Huntingdonshire - Care,Supported Living
Cambridgeshire County Council,13-Feb-20,51301313726,"-2,348.07",AFFINITY TRUST,CARE ESTABLISHMENT,LD - Hunts Locality - Cost of Care,LD - Huntingdonshire - Care,Supported Living
Cambridgeshire County Council,13-Feb-20,51301313726,"-2,348.07",AFFINITY TRUST,CARE ESTABLISHMENT,LD - Hunts Locality - Cost of Care,LD - Huntingdonshire - Care,Supported Living
Cambridgeshire County Council,13-Feb-20,51301313726,"-2,348.07",AFFINITY TRUST,CARE ESTABLISHMENT,LD - Hunts Locality - Cost of Care,LD - Huntingdonshire - Care,Supported Living
Cambridgeshire County Council,20-Feb-20,51301317527,"-2,341.61",VOYAGE,CARE ESTABLISHMENT,LD - City Locality - Cost of Care,LD - City - Special Needs,Residential Care
Cambridgeshire County Council,20-Feb-20,51301317527,"-2,341.61",VOYAGE,CARE ESTABLISHMENT,LD - City Locality - Cost of Care,LD - City - Special Needs,Residential Care
Cambridgeshire County Council,20-Feb-20,51301317527,"-2,341.61",VOYAGE,CARE ESTABLISHMENT,LD - City Locality - Cost of Care,LD - City - Special Needs,Residential Care
Cambridgeshire County Council,28-Feb-20,51301321933,"-2,341.00",Accomplish Group Support Limited,CARE ESTABLISHMENT,Autism and Adult Support - Cost of Care,Autism and Adult Support - Care,Residential Care
Cambridgeshire County Council,28-Feb-20,51301321933,"-2,341.00",Accomplish Group Support Limited,CARE ESTABLISHMENT,Autism and Adult Support - Cost of Care,Autism and Adult Support - Care,Residential Care
Cambridgeshire County Council,28-Feb-20,51301322656,"-2,332.39",HFT TRUST LTD,TRUST (OTHER),LD - Hunts Locality - Cost of Care,LD - Huntingdonshire - Care,Supported Living
Cambridgeshire County Council,20-Feb-20,51301317441,"-2,290.70",SENSE EAST,CARE ESTABLISHMENT,LD - South Locality - Cost of Care,LD - South Cambs - Care,Residential Care
Cambridgeshire County Council,20-Feb-20,51301317441,"-2,290.70",SENSE EAST,CARE ESTABLISHMENT,LD - South Locality - Cost of Care,LD - South Cambs - Care,Residential Care
Cambridgeshire County Council,20-Feb-20,51301317441,"-2,290.70",SENSE EAST,CARE ESTABLISHMENT,LD - South Locality - Cost of Care,LD - South Cambs - Care,Residential Care
Cambridgeshire County Council,20-Feb-20,51301317441,"-2,290.70",SENSE EAST,CARE ESTABLISHMENT,LD - South Locality - Cost of Care,LD - South Cambs - Care,Residential Care
Cambridgeshire County Council,20-Feb-20,51301317441,"-2,290.70",SENSE EAST,CARE ESTABLISHMENT,LD - South Locality - Cost of Care,LD - South Cambs - Care,Residential Care
Cambridgeshire County Council,20-Feb-20,51301317441,"-2,290.70",SENSE EAST,CARE ESTABLISHMENT,LD - South Locality - Cost of Care,LD - South Cambs - Care,Residential Care
Cambridgeshire County Council,20-Feb-20,51301317441,"-2,290.70",SENSE EAST,CARE ESTABLISHMENT,LD - South Locality - Cost of Care,LD - South Cambs - Care,Residential Care
Cambridgeshire County Council,20-Feb-20,51301317441,"-2,290.70",SENSE EAST,CARE ESTABLISHMENT,LD - South Locality - Cost of Care,LD - South Cambs - Care,Residential Care
Cambridgeshire County Council,20-Feb-20,51301317441,"-2,290.70",SENSE EAST,CARE ESTABLISHMENT,LD - South Locality - Cost of Care,LD - South Cambs - Care,Residential Care
Cambridgeshire County Council,20-Feb-20,51301317441,"-2,290.70",SENSE EAST,CARE ESTABLISHMENT,LD - South Locality - Cost of Care,LD - South Cambs - Care,Residential Care
Cambridgeshire County Council,20-Feb-20,51301317441,"-2,290.70",SENSE EAST,CARE ESTABLISHMENT,LD - South Locality - Cost of Care,LD - South Cambs - Care,Residential Care
Cambridgeshire County Council,20-Feb-20,51301317441,"-2,290.70",SENSE EAST,CARE ESTABLISHMENT,LD - South Locality - Cost of Care,LD - South Cambs - Care,Residential Care
Cambridgeshire County Council,20-Feb-20,51301317441,"-2,290.70",SENSE EAST,CARE ESTABLISHMENT,LD - South Locality - Cost of Care,LD - South Cambs - Care,Residential Care
Cambridgeshire County Council,20-Feb-20,51301317441,"-2,290.70",SENSE EAST,CARE ESTABLISHMENT,LD - South Locality - Cost of Care,LD - South Cambs - Care,Residential Care
Cambridgeshire County Council,20-Feb-20,51301317441,"-2,290.70",SENSE EAST,CARE ESTABLISHMENT,LD - South Locality - Cost of Care,LD - South Cambs - Care,Residential Care
Cambridgeshire County Council,20-Feb-20,51301317441,"-2,290.70",SENSE EAST,CARE ESTABLISHMENT,LD - South Locality - Cost of Care,LD - South Cambs - Care,Residential Care
Cambridgeshire County Council,20-Feb-20,51301317441,"-2,290.70",SENSE EAST,CARE ESTABLISHMENT,LD - South Locality - Cost of Care,LD - South Cambs - Care,Residential Care
Cambridgeshire County Council,20-Feb-20,51301317441,"-2,290.70",SENSE EAST,CARE ESTABLISHMENT,LD - South Locality - Cost of Care,LD - South Cambs - Care,Residential Care
Cambridgeshire County Council,20-Feb-20,51301317441,"-2,290.70",SENSE EAST,CARE ESTABLISHMENT,LD - South Locality - Cost of Care,LD - South Cambs - Care,Residential Care
Cambridgeshire County Council,20-Feb-20,51301317441,"-2,290.70",SENSE EAST,CARE ESTABLISHMENT,LD - South Locality - Cost of Care,LD - South Cambs - Care,Residential Care
Cambridgeshire County Council,20-Feb-20,51301317441,"-2,290.70",SENSE EAST,CARE ESTABLISHMENT,LD - South Locality - Cost of Care,LD - South Cambs - Care,Residential Care
Cambridgeshire County Council,20-Feb-20,51301317441,"-2,290.70",SENSE EAST,CARE ESTABLISHMENT,LD - South Locality - Cost of Care,LD - South Cambs - Care,Residential Care
Cambridgeshire County Council,20-Feb-20,51301317441,"-2,290.70",SENSE EAST,CARE ESTABLISHMENT,LD - South Locality - Cost of Care,LD - South Cambs - Care,Residential Care
Cambridgeshire County Council,20-Feb-20,51301317441,"-2,290.70",SENSE EAST,CARE ESTABLISHMENT,LD - South Locality - Cost of Care,LD - South Cambs - Care,Residential Care
Cambridgeshire County Council,20-Feb-20,51301317441,"-2,290.70",SENSE EAST,CARE ESTABLISHMENT,LD - South Locality - Cost of Care,LD - South Cambs - Care,Residential Care
Cambridgeshire County Council,20-Feb-20,51301317441,"-2,290.70",SENSE EAST,CARE ESTABLISHMENT,LD - South Locality - Cost of Care,LD - South Cambs - Care,Residential Care
Cambridgeshire County Council,28-Feb-20,51301321885,"-2,272.88",Accomplish Group Support Limited,CARE ESTABLISHMENT,LD - Young Adults Team,LD - Young Adults - Care,Residential Care
Cambridgeshire County Council,28-Feb-20,51301321885,"-2,272.88",Accomplish Group Support Limited,CARE ESTABLISHMENT,LD - Young Adults Team,LD - Young Adults - Care,Residential Care
Cambridgeshire County Council,28-Feb-20,51301321885,"-2,272.88",Accomplish Group Support Limited,CARE ESTABLISHMENT,LD - Young Adults Team,LD - Young Adults - Care,Residential Care
Cambridgeshire County Council,28-Feb-20,51301321885,"-2,272.88",Accomplish Group Support Limited,CARE ESTABLISHMENT,LD - Young Adults Team,LD - Young Adults - Care,Residential Care
Cambridgeshire County Council,28-Feb-20,51301321885,"-2,272.88",Accomplish Group Support Limited,CARE ESTABLISHMENT,LD - Young Adults Team,LD - Young Adults - Care,Residential Care
Cambridgeshire County Council,28-Feb-20,51301321885,"-2,272.88",Accomplish Group Support Limited,CARE ESTABLISHMENT,LD - Young Adults Team,LD - Young Adults - Care,Residential Care
Cambridgeshire County Council,28-Feb-20,51301321885,"-2,272.88",Accomplish Group Support Limited,CARE ESTABLISHMENT,LD - Young Adults Team,LD - Young Adults - Care,Residential Care
Cambridgeshire County Council,28-Feb-20,51301321885,"-2,272.88",Accomplish Group Support Limited,CARE ESTABLISHMENT,LD - Young Adults Team,LD - Young Adults - Care,Residential Care
Cambridgeshire County Council,28-Feb-20,51301321885,"-2,272.88",Accomplish Group Support Limited,CARE ESTABLISHMENT,LD - Young Adults Team,LD - Young Adults - Care,Residential Care
Cambridgeshire County Council,28-Feb-20,51301321885,"-2,272.88",Accomplish Group Support Limited,CARE ESTABLISHMENT,LD - Young Adults Team,LD - Young Adults - Care,Residential Care
Cambridgeshire County Council,28-Feb-20,51301321885,"-2,272.88",Accomplish Group Support Limited,CARE ESTABLISHMENT,LD - Young Adults Team,LD - Young Adults - Care,Residential Care
Cambridgeshire County Council,28-Feb-20,51301321885,"-2,272.88",Accomplish Group Support Limited,CARE ESTABLISHMENT,LD - Young Adults Team,LD - Young Adults - Care,Residential Care
Cambridgeshire County Council,28-Feb-20,51301321885,"-2,272.88",Accomplish Group Support Limited,CARE ESTABLISHMENT,LD - Young Adults Team,LD - Young Adults - Care,Residential Care
Cambridgeshire County Council,28-Feb-20,51301321885,"-2,272.88",Accomplish Group Support Limited,CARE ESTABLISHMENT,LD - Young Adults Team,LD - Young Adults - Care,Residential Care
Cambridgeshire County Council,28-Feb-20,51301321885,"-2,272.88",Accomplish Group Support Limited,CARE ESTABLISHMENT,LD - Young Adults Team,LD - Young Adults - Care,Residential Care
Cambridgeshire County Council,28-Feb-20,51301321885,"-2,272.88",Accomplish Group Support Limited,CARE ESTABLISHMENT,LD - Young Adults Team,LD - Young Adults - Care,Residential Care
Cambridgeshire County Council,28-Feb-20,51301321885,"-2,272.88",Accomplish Group Support Limited,CARE ESTABLISHMENT,LD - Young Adults Team,LD - Young Adults - Care,Residential Care
Cambridgeshire County Council,28-Feb-20,51301321885,"-2,272.88",Accomplish Group Support Limited,CARE ESTABLISHMENT,LD - Young Adults Team,LD - Young Adults - Care,Residential Care
Cambridgeshire County Council,27-Feb-20,51301320415,"-2,264.50",GRETTON HOMES,CARE ESTABLISHMENT,LD - City Locality - Cost of Care,LD - City - Special Needs,Residential Care
Cambridgeshire County Council,27-Feb-20,51301320415,"-2,264.50",GRETTON HOMES,CARE ESTABLISHMENT,LD - City Locality - Cost of Care,LD - City - Special Needs,Residential Care
Cambridgeshire County Council,27-Feb-20,51301320415,"-2,264.50",GRETTON HOMES,CARE ESTABLISHMENT,LD - City Locality - Cost of Care,LD - City - Special Needs,Residential Care
Cambridgeshire County Council,27-Feb-20,51301320415,"-2,264.50",GRETTON HOMES,CARE ESTABLISHMENT,LD - City Locality - Cost of Care,LD - City - Special Needs,Residential Care
Cambridgeshire County Council,27-Feb-20,51301320415,"-2,264.50",GRETTON HOMES,CARE ESTABLISHMENT,LD - City Locality - Cost of Care,LD - City - Special Needs,Residential Care
Cambridgeshire County Council,27-Feb-20,51301320415,"-2,264.50",GRETTON HOMES,CARE ESTABLISHMENT,LD - City Locality - Cost of Care,LD - City - Special Needs,Residential Care
Cambridgeshire County Council,27-Feb-20,51301320415,"-2,264.50",GRETTON HOMES,CARE ESTABLISHMENT,LD - City Locality - Cost of Care,LD - City - Special Needs,Residential Care
Cambridgeshire County Council,27-Feb-20,51301320415,"-2,264.50",GRETTON HOMES,CARE ESTABLISHMENT,LD - City Locality - Cost of Care,LD - City - Special Needs,Residential Care
Cambridgeshire County Council,27-Feb-20,51301320415,"-2,264.50",GRETTON HOMES,CARE ESTABLISHMENT,LD - City Locality - Cost of Care,LD - City - Special Needs,Residential Care
Cambridgeshire County Council,27-Feb-20,51301320415,"-2,264.50",GRETTON HOMES,CARE ESTABLISHMENT,LD - City Locality - Cost of Care,LD - City - Special Needs,Residential Care
Cambridgeshire County Council,27-Feb-20,51301320415,"-2,264.50",GRETTON HOMES,CARE ESTABLISHMENT,LD - City Locality - Cost of Care,LD - City - Special Needs,Residential Care
Cambridgeshire County Council,27-Feb-20,51301320415,"-2,264.50",GRETTON HOMES,CARE ESTABLISHMENT,LD - City Locality - Cost of Care,LD - City - Special Needs,Residential Care
Cambridgeshire County Council,27-Feb-20,51301320415,"-2,264.50",GRETTON HOMES,CARE ESTABLISHMENT,LD - City Locality - Cost of Care,LD - City - Special Needs,Residential Care
Cambridgeshire County Council,27-Feb-20,51301320415,"-2,264.50",GRETTON HOMES,CARE ESTABLISHMENT,LD - City Locality - Cost of Care,LD - City - Special Needs,Residential Care
Cambridgeshire County Council,27-Feb-20,51301320415,"-2,264.50",GRETTON HOMES,CARE ESTABLISHMENT,LD - City Locality - Cost of Care,LD - City - Special Needs,Residential Care
Cambridgeshire County Council,27-Feb-20,51301320415,"-2,264.50",GRETTON HOMES,CARE ESTABLISHMENT,LD - City Locality - Cost of Care,LD - City - Special Needs,Residential Care
Cambridgeshire County Council,27-Feb-20,51301320415,"-2,264.50",GRETTON HOMES,CARE ESTABLISHMENT,LD - City Locality - Cost of Care,LD - City - Special Needs,Residential Care
Cambridgeshire County Council,27-Feb-20,51301320415,"-2,264.50",GRETTON HOMES,CARE ESTABLISHMENT,LD - City Locality - Cost of Care,LD - City - Special Needs,Residential Care
Cambridgeshire County Council,27-Feb-20,51301320415,"-2,264.50",GRETTON HOMES,CARE ESTABLISHMENT,LD - City Locality - Cost of Care,LD - City - Special Needs,Residential Care
Cambridgeshire County Council,27-Feb-20,51301320415,"-2,264.50",GRETTON HOMES,CARE ESTABLISHMENT,LD - City Locality - Cost of Care,LD - City - Special Needs,Residential Care
Cambridgeshire County Council,27-Feb-20,51301320415,"-2,264.50",GRETTON HOMES,CARE ESTABLISHMENT,LD - City Locality - Cost of Care,LD - City - Special Needs,Residential Care
Cambridgeshire County Council,27-Feb-20,51301320415,"-2,264.50",GRETTON HOMES,CARE ESTABLISHMENT,LD - City Locality - Cost of Care,LD - City - Special Needs,Residential Care
Cambridgeshire County Council,27-Feb-20,51301320415,"-2,264.50",GRETTON HOMES,CARE ESTABLISHMENT,LD - City Locality - Cost of Care,LD - City - Special Needs,Residential Care
Cambridgeshire County Council,27-Feb-20,51301320415,"-2,264.50",GRETTON HOMES,CARE ESTABLISHMENT,LD - City Locality - Cost of Care,LD - City - Special Needs,Residential Care
Cambridgeshire County Council,27-Feb-20,51301320415,"-2,264.50",GRETTON HOMES,CARE ESTABLISHMENT,LD - City Locality - Cost of Care,LD - City - Special Needs,Residential Care
Cambridgeshire County Council,27-Feb-20,51301320415,"-2,264.50",GRETTON HOMES,CARE ESTABLISHMENT,LD - City Locality - Cost of Care,LD - City - Special Needs,Residential Care
Cambridgeshire County Council,27-Feb-20,51301320415,"-2,264.50",GRETTON HOMES,CARE ESTABLISHMENT,LD - City Locality - Cost of Care,LD - City - Special Needs,Residential Care
Cambridgeshire County Council,27-Feb-20,51301320415,"-2,264.50",GRETTON HOMES,CARE ESTABLISHMENT,LD - City Locality - Cost of Care,LD - City - Special Needs,Residential Care
Cambridgeshire County Council,27-Feb-20,51301320415,"-2,264.50",GRETTON HOMES,CARE ESTABLISHMENT,LD - City Locality - Cost of Care,LD - City - Special Needs,Residential Care
Cambridgeshire County Council,27-Feb-20,51301320415,"-2,264.50",GRETTON HOMES,CARE ESTABLISHMENT,LD - City Locality - Cost of Care,LD - City - Special Needs,Residential Care
Cambridgeshire County Council,27-Feb-20,51301320415,"-2,264.50",GRETTON HOMES,CARE ESTABLISHMENT,LD - City Locality - Cost of Care,LD - City - Special Needs,Residential Care
Cambridgeshire County Council,27-Feb-20,51301320415,"-2,264.50",GRETTON HOMES,CARE ESTABLISHMENT,LD - City Locality - Cost of Care,LD - City - Special Needs,Residential Care
Cambridgeshire County Council,27-Feb-20,51301320415,"-2,264.50",GRETTON HOMES,CARE ESTABLISHMENT,LD - City Locality - Cost of Care,LD - City - Special Needs,Residential Care
Cambridgeshire County Council,27-Feb-20,51301320415,"-2,264.50",GRETTON HOMES,CARE ESTABLISHMENT,LD - City Locality - Cost of Care,LD - City - Special Needs,Residential Care
Cambridgeshire County Council,27-Feb-20,51301320415,"-2,264.50",GRETTON HOMES,CARE ESTABLISHMENT,LD - City Locality - Cost of Care,LD - City - Special Needs,Residential Care
Cambridgeshire County Council,27-Feb-20,51301320415,"-2,264.50",GRETTON HOMES,CARE ESTABLISHMENT,LD - City Locality - Cost of Care,LD - City - Special Needs,Residential Care
Cambridgeshire County Council,27-Feb-20,51301320415,"-2,264.50",GRETTON HOMES,CARE ESTABLISHMENT,LD - City Locality - Cost of Care,LD - City - Special Needs,Residential Care
Cambridgeshire County Council,27-Feb-20,51301320415,"-2,264.50",GRETTON HOMES,CARE ESTABLISHMENT,LD - City Locality - Cost of Care,LD - City - Special Needs,Residential Care
Cambridgeshire County Council,27-Feb-20,51301320415,"-2,264.50",GRETTON HOMES,CARE ESTABLISHMENT,LD - City Locality - Cost of Care,LD - City - Special Needs,Residential Care
Cambridgeshire County Council,27-Feb-20,51301320415,"-2,264.50",GRETTON HOMES,CARE ESTABLISHMENT,LD - City Locality - Cost of Care,LD - City - Special Needs,Residential Care
Cambridgeshire County Council,27-Feb-20,51301320415,"-2,264.50",GRETTON HOMES,CARE ESTABLISHMENT,LD - City Locality - Cost of Care,LD - City - Special Needs,Residential Care
Cambridgeshire County Council,27-Feb-20,51301320415,"-2,264.50",GRETTON HOMES,CARE ESTABLISHMENT,LD - City Locality - Cost of Care,LD - City - Special Needs,Residential Care
Cambridgeshire County Council,27-Feb-20,51301320415,"-2,264.50",GRETTON HOMES,CARE ESTABLISHMENT,LD - City Locality - Cost of Care,LD - City - Special Needs,Residential Care
Cambridgeshire County Council,27-Feb-20,51301320415,"-2,264.50",GRETTON HOMES,CARE ESTABLISHMENT,LD - City Locality - Cost of Care,LD - City - Special Needs,Residential Care
Cambridgeshire County Council,27-Feb-20,51301320415,"-2,264.50",GRETTON HOMES,CARE ESTABLISHMENT,LD - City Locality - Cost of Care,LD - City - Special Needs,Residential Care
Cambridgeshire County Council,27-Feb-20,51301320415,"-2,264.50",GRETTON HOMES,CARE ESTABLISHMENT,LD - City Locality - Cost of Care,LD - City - Special Needs,Residential Care
Cambridgeshire County Council,27-Feb-20,51301320415,"-2,264.50",GRETTON HOMES,CARE ESTABLISHMENT,LD - City Locality - Cost of Care,LD - City - Special Needs,Residential Care
Cambridgeshire County Council,27-Feb-20,51301320415,"-2,264.50",GRETTON HOMES,CARE ESTABLISHMENT,LD - City Locality - Cost of Care,LD - City - Special Needs,Residential Care
Cambridgeshire County Council,27-Feb-20,51301320415,"-2,264.50",GRETTON HOMES,CARE ESTABLISHMENT,LD - City Locality - Cost of Care,LD - City - Special Needs,Residential Care
Cambridgeshire County Council,27-Feb-20,51301320415,"-2,264.50",GRETTON HOMES,CARE ESTABLISHMENT,LD - City Locality - Cost of Care,LD - City - Special Needs,Residential Care
Cambridgeshire County Council,27-Feb-20,51301320415,"-2,264.50",GRETTON HOMES,CARE ESTABLISHMENT,LD - City Locality - Cost of Care,LD - City - Special Needs,Residential Care
Cambridgeshire County Council,13-Feb-20,51301313605,"-2,262.57",GLENHOLME HEALTHCARE LTD,CARE ESTABLISHMENT,LD - Young Adults Team,LD - Young Adults - Special Needs,Residential Care
Cambridgeshire County Council,20-Feb-20,51301317305,"-2,222.15",WESTMINSTER HOMECARE LIMITED,CARE ESTABLISHMENT,LD - South Locality - Cost of Care,LD - South Cambs - Care,Supported Living
Cambridgeshire County Council,20-Feb-20,51301317305,"-2,222.15",WESTMINSTER HOMECARE LIMITED,CARE ESTABLISHMENT,LD - South Locality - Cost of Care,LD - South Cambs - Care,Supported Living
Cambridgeshire County Council,20-Feb-20,51301317305,"-2,222.15",WESTMINSTER HOMECARE LIMITED,CARE ESTABLISHMENT,LD - South Locality - Cost of Care,LD - South Cambs - Care,Supported Living
Cambridgeshire County Council,20-Feb-20,51301317305,"-2,222.15",WESTMINSTER HOMECARE LIMITED,CARE ESTABLISHMENT,LD - South Locality - Cost of Care,LD - South Cambs - Care,Supported Living
Cambridgeshire County Council,20-Feb-20,51301317305,"-2,222.15",WESTMINSTER HOMECARE LIMITED,CARE ESTABLISHMENT,LD - South Locality - Cost of Care,LD - South Cambs - Care,Supported Living
Cambridgeshire County Council,20-Feb-20,51301317305,"-2,222.15",WESTMINSTER HOMECARE LIMITED,CARE ESTABLISHMENT,LD - South Locality - Cost of Care,LD - South Cambs - Care,Supported Living
Cambridgeshire County Council,20-Feb-20,51301317305,"-2,222.15",WESTMINSTER HOMECARE LIMITED,CARE ESTABLISHMENT,LD - South Locality - Cost of Care,LD - South Cambs - Care,Supported Living
Cambridgeshire County Council,20-Feb-20,51301317305,"-2,222.15",WESTMINSTER HOMECARE LIMITED,CARE ESTABLISHMENT,LD - South Locality - Cost of Care,LD - South Cambs - Care,Supported Living
Cambridgeshire County Council,20-Feb-20,51301317305,"-2,222.15",WESTMINSTER HOMECARE LIMITED,CARE ESTABLISHMENT,LD - South Locality - Cost of Care,LD - South Cambs - Care,Supported Living
Cambridgeshire County Council,20-Feb-20,51301317305,"-2,222.15",WESTMINSTER HOMECARE LIMITED,CARE ESTABLISHMENT,LD - South Locality - Cost of Care,LD - South Cambs - Care,Supported Living
Cambridgeshire County Council,20-Feb-20,51301317305,"-2,222.15",WESTMINSTER HOMECARE LIMITED,CARE ESTABLISHMENT,LD - South Locality - Cost of Care,LD - South Cambs - Care,Supported Living
Cambridgeshire County Council,20-Feb-20,51301317305,"-2,222.15",WESTMINSTER HOMECARE LIMITED,CARE ESTABLISHMENT,LD - South Locality - Cost of Care,LD - South Cambs - Care,Supported Living
Cambridgeshire County Council,20-Feb-20,51301317305,"-2,222.15",WESTMINSTER HOMECARE LIMITED,CARE ESTABLISHMENT,LD - South Locality - Cost of Care,LD - South Cambs - Care,Supported Living
Cambridgeshire County Council,20-Feb-20,51301317305,"-2,222.15",WESTMINSTER HOMECARE LIMITED,CARE ESTABLISHMENT,LD - South Locality - Cost of Care,LD - South Cambs - Care,Supported Living
Cambridgeshire County Council,20-Feb-20,51301317305,"-2,222.15",WESTMINSTER HOMECARE LIMITED,CARE ESTABLISHMENT,LD - South Locality - Cost of Care,LD - South Cambs - Care,Supported Living
Cambridgeshire County Council,20-Feb-20,51301317305,"-2,222.15",WESTMINSTER HOMECARE LIMITED,CARE ESTABLISHMENT,LD - South Locality - Cost of Care,LD - South Cambs - Care,Supported Living
Cambridgeshire County Council,20-Feb-20,51301317305,"-2,222.15",WESTMINSTER HOMECARE LIMITED,CARE ESTABLISHMENT,LD - South Locality - Cost of Care,LD - South Cambs - Care,Supported Living
Cambridgeshire County Council,13-Feb-20,51301313545,"-2,220.40",AFFINITY TRUST,CARE ESTABLISHMENT,LD - Fenland Locality - Cost of Care,LD - Fenland  - Care,Domiciliary Care
Cambridgeshire County Council,13-Feb-20,51301313545,"-2,220.40",AFFINITY TRUST,CARE ESTABLISHMENT,LD - Fenland Locality - Cost of Care,LD - Fenland  - Care,Domiciliary Care
Cambridgeshire County Council,13-Feb-20,51301313545,"-2,220.40",AFFINITY TRUST,CARE ESTABLISHMENT,LD - Fenland Locality - Cost of Care,LD - Fenland  - Care,Domiciliary Care
Cambridgeshire County Council,13-Feb-20,51301313545,"-2,220.40",AFFINITY TRUST,CARE ESTABLISHMENT,LD - Fenland Locality - Cost of Care,LD - Fenland  - Care,Domiciliary Care
Cambridgeshire County Council,13-Feb-20,51301313545,"-2,220.40",AFFINITY TRUST,CARE ESTABLISHMENT,LD - Fenland Locality - Cost of Care,LD - Fenland  - Care,Domiciliary Care
Cambridgeshire County Council,13-Feb-20,51301313545,"-2,220.40",AFFINITY TRUST,CARE ESTABLISHMENT,LD - Fenland Locality - Cost of Care,LD - Fenland  - Care,Domiciliary Care
Cambridgeshire County Council,13-Feb-20,51301313545,"-2,220.40",AFFINITY TRUST,CARE ESTABLISHMENT,LD - Fenland Locality - Cost of Care,LD - Fenland  - Care,Domiciliary Care
Cambridgeshire County Council,13-Feb-20,51301313545,"-2,220.40",AFFINITY TRUST,CARE ESTABLISHMENT,LD - Fenland Locality - Cost of Care,LD - Fenland  - Care,Domiciliary Care
Cambridgeshire County Council,13-Feb-20,51301313545,"-2,220.40",AFFINITY TRUST,CARE ESTABLISHMENT,LD - Fenland Locality - Cost of Care,LD - Fenland  - Care,Domiciliary Care
Cambridgeshire County Council,13-Feb-20,51301313545,"-2,220.40",AFFINITY TRUST,CARE ESTABLISHMENT,LD - Fenland Locality - Cost of Care,LD - Fenland  - Care,Domiciliary Care
Cambridgeshire County Council,13-Feb-20,51301313545,"-2,220.40",AFFINITY TRUST,CARE ESTABLISHMENT,LD - Fenland Locality - Cost of Care,LD - Fenland  - Care,Domiciliary Care
Cambridgeshire County Council,13-Feb-20,51301313545,"-2,220.40",AFFINITY TRUST,CARE ESTABLISHMENT,LD - Fenland Locality - Cost of Care,LD - Fenland  - Care,Domiciliary Care
Cambridgeshire County Council,13-Feb-20,51301313545,"-2,220.40",AFFINITY TRUST,CARE ESTABLISHMENT,LD - Fenland Locality - Cost of Care,LD - Fenland  - Care,Domiciliary Care
Cambridgeshire County Council,13-Feb-20,51301313545,"-2,220.40",AFFINITY TRUST,CARE ESTABLISHMENT,LD - Fenland Locality - Cost of Care,LD - Fenland  - Care,Domiciliary Care
Cambridgeshire County Council,13-Feb-20,51301313545,"-2,220.40",AFFINITY TRUST,CARE ESTABLISHMENT,LD - Fenland Locality - Cost of Care,LD - Fenland  - Care,Domiciliary Care
Cambridgeshire County Council,13-Feb-20,51301313545,"-2,220.40",AFFINITY TRUST,CARE ESTABLISHMENT,LD - Fenland Locality - Cost of Care,LD - Fenland  - Care,Domiciliary Care
Cambridgeshire County Council,13-Feb-20,51301313545,"-2,220.40",AFFINITY TRUST,CARE ESTABLISHMENT,LD - Fenland Locality - Cost of Care,LD - Fenland  - Care,Domiciliary Care
Cambridgeshire County Council,13-Feb-20,51301313545,"-2,220.40",AFFINITY TRUST,CARE ESTABLISHMENT,LD - Fenland Locality - Cost of Care,LD - Fenland  - Care,Domiciliary Care
Cambridgeshire County Council,13-Feb-20,51301313545,"-2,220.40",AFFINITY TRUST,CARE ESTABLISHMENT,LD - Fenland Locality - Cost of Care,LD - Fenland  - Care,Domiciliary Care
Cambridgeshire County Council,13-Feb-20,51301313545,"-2,220.40",AFFINITY TRUST,CARE ESTABLISHMENT,LD - Fenland Locality - Cost of Care,LD - Fenland  - Care,Domiciliary Care
Cambridgeshire County Council,13-Feb-20,51301313545,"-2,220.40",AFFINITY TRUST,CARE ESTABLISHMENT,LD - Fenland Locality - Cost of Care,LD - Fenland  - Care,Domiciliary Care
Cambridgeshire County Council,13-Feb-20,51301313545,"-2,220.40",AFFINITY TRUST,CARE ESTABLISHMENT,LD - Fenland Locality - Cost of Care,LD - Fenland  - Care,Domiciliary Care
Cambridgeshire County Council,28-Feb-20,51301322091,"-2,191.09",SOCIAL CARE SOLUTIONS LTD,CARE ESTABLISHMENT,LD - South Locality - Cost of Care,LD - South Cambs - Special Needs,Supported Living
Cambridgeshire County Council,28-Feb-20,51301322091,"-2,191.09",SOCIAL CARE SOLUTIONS LTD,CARE ESTABLISHMENT,LD - South Locality - Cost of Care,LD - South Cambs - Special Needs,Supported Living
Cambridgeshire County Council,28-Feb-20,51301322091,"-2,191.09",SOCIAL CARE SOLUTIONS LTD,CARE ESTABLISHMENT,LD - South Locality - Cost of Care,LD - South Cambs - Special Needs,Supported Living
Cambridgeshire County Council,28-Feb-20,51301322091,"-2,191.09",SOCIAL CARE SOLUTIONS LTD,CARE ESTABLISHMENT,LD - South Locality - Cost of Care,LD - South Cambs - Special Needs,Supported Living
Cambridgeshire County Council,28-Feb-20,51301322091,"-2,191.09",SOCIAL CARE SOLUTIONS LTD,CARE ESTABLISHMENT,LD - South Locality - Cost of Care,LD - South Cambs - Special Needs,Supported Living
Cambridgeshire County Council,28-Feb-20,51301322091,"-2,191.09",SOCIAL CARE SOLUTIONS LTD,CARE ESTABLISHMENT,LD - South Locality - Cost of Care,LD - South Cambs - Special Needs,Supported Living
Cambridgeshire County Council,28-Feb-20,51301322091,"-2,191.09",SOCIAL CARE SOLUTIONS LTD,CARE ESTABLISHMENT,LD - South Locality - Cost of Care,LD - South Cambs - Special Needs,Supported Living
Cambridgeshire County Council,28-Feb-20,51301322091,"-2,191.09",SOCIAL CARE SOLUTIONS LTD,CARE ESTABLISHMENT,LD - South Locality - Cost of Care,LD - South Cambs - Special Needs,Supported Living
Cambridgeshire County Council,28-Feb-20,51301322091,"-2,191.09",SOCIAL CARE SOLUTIONS LTD,CARE ESTABLISHMENT,LD - South Locality - Cost of Care,LD - South Cambs - Special Needs,Supported Living
Cambridgeshire County Council,28-Feb-20,51301322091,"-2,191.09",SOCIAL CARE SOLUTIONS LTD,CARE ESTABLISHMENT,LD - South Locality - Cost of Care,LD - South Cambs - Special Needs,Supported Living
Cambridgeshire County Council,28-Feb-20,51301322091,"-2,191.09",SOCIAL CARE SOLUTIONS LTD,CARE ESTABLISHMENT,LD - South Locality - Cost of Care,LD - South Cambs - Special Needs,Supported Living
Cambridgeshire County Council,28-Feb-20,51301322091,"-2,191.09",SOCIAL CARE SOLUTIONS LTD,CARE ESTABLISHMENT,LD - South Locality - Cost of Care,LD - South Cambs - Special Needs,Supported Living
Cambridgeshire County Council,28-Feb-20,51301322091,"-2,191.09",SOCIAL CARE SOLUTIONS LTD,CARE ESTABLISHMENT,LD - South Locality - Cost of Care,LD - South Cambs - Special Needs,Supported Living
Cambridgeshire County Council,28-Feb-20,51301322091,"-2,191.09",SOCIAL CARE SOLUTIONS LTD,CARE ESTABLISHMENT,LD - South Locality - Cost of Care,LD - South Cambs - Special Needs,Supported Living
Cambridgeshire County Council,20-Feb-20,51301317294,"-2,184.26",DIMENSIONS (UK) LTD,CARE ESTABLISHMENT,LD - South Locality - Cost of Care,LD - South Cambs - Care,Supported Living
Cambridgeshire County Council,20-Feb-20,51301317294,"-2,184.26",DIMENSIONS (UK) LTD,CARE ESTABLISHMENT,LD - South Locality - Cost of Care,LD - South Cambs - Care,Supported Living
Cambridgeshire County Council,20-Feb-20,51301317294,"-2,184.26",DIMENSIONS (UK) LTD,CARE ESTABLISHMENT,LD - South Locality - Cost of Care,LD - South Cambs - Care,Supported Living
Cambridgeshire County Council,20-Feb-20,51301317294,"-2,184.26",DIMENSIONS (UK) LTD,CARE ESTABLISHMENT,LD - South Locality - Cost of Care,LD - South Cambs - Care,Supported Living
Cambridgeshire County Council,20-Feb-20,51301317294,"-2,184.26",DIMENSIONS (UK) LTD,CARE ESTABLISHMENT,LD - South Locality - Cost of Care,LD - South Cambs - Care,Supported Living
Cambridgeshire County Council,20-Feb-20,51301317294,"-2,184.26",DIMENSIONS (UK) LTD,CARE ESTABLISHMENT,LD - South Locality - Cost of Care,LD - South Cambs - Care,Supported Living
Cambridgeshire County Council,20-Feb-20,51301317294,"-2,184.26",DIMENSIONS (UK) LTD,CARE ESTABLISHMENT,LD - South Locality - Cost of Care,LD - South Cambs - Care,Supported Living
Cambridgeshire County Council,20-Feb-20,51301317294,"-2,184.26",DIMENSIONS (UK) LTD,CARE ESTABLISHMENT,LD - South Locality - Cost of Care,LD - South Cambs - Care,Supported Living
Cambridgeshire County Council,20-Feb-20,51301317294,"-2,184.26",DIMENSIONS (UK) LTD,CARE ESTABLISHMENT,LD - South Locality - Cost of Care,LD - South Cambs - Care,Supported Living
Cambridgeshire County Council,20-Feb-20,51301317294,"-2,184.26",DIMENSIONS (UK) LTD,CARE ESTABLISHMENT,LD - South Locality - Cost of Care,LD - South Cambs - Care,Supported Living
Cambridgeshire County Council,20-Feb-20,51301317294,"-2,184.26",DIMENSIONS (UK) LTD,CARE ESTABLISHMENT,LD - South Locality - Cost of Care,LD - South Cambs - Care,Supported Living
Cambridgeshire County Council,20-Feb-20,51301317294,"-2,184.26",DIMENSIONS (UK) LTD,CARE ESTABLISHMENT,LD - South Locality - Cost of Care,LD - South Cambs - Care,Supported Living
Cambridgeshire County Council,20-Feb-20,51301317294,"-2,184.26",DIMENSIONS (UK) LTD,CARE ESTABLISHMENT,LD - South Locality - Cost of Care,LD - South Cambs - Care,Supported Living
Cambridgeshire County Council,20-Feb-20,51301317294,"-2,184.26",DIMENSIONS (UK) LTD,CARE ESTABLISHMENT,LD - South Locality - Cost of Care,LD - South Cambs - Care,Supported Living
Cambridgeshire County Council,20-Feb-20,51301317294,"-2,184.26",DIMENSIONS (UK) LTD,CARE ESTABLISHMENT,LD - South Locality - Cost of Care,LD - South Cambs - Care,Supported Living
Cambridgeshire County Council,20-Feb-20,51301317294,"-2,184.26",DIMENSIONS (UK) LTD,CARE ESTABLISHMENT,LD - South Locality - Cost of Care,LD - South Cambs - Care,Supported Living
Cambridgeshire County Council,20-Feb-20,51301317294,"-2,184.26",DIMENSIONS (UK) LTD,CARE ESTABLISHMENT,LD - South Locality - Cost of Care,LD - South Cambs - Care,Supported Living
Cambridgeshire County Council,20-Feb-20,51301317294,"-2,184.26",DIMENSIONS (UK) LTD,CARE ESTABLISHMENT,LD - South Locality - Cost of Care,LD - South Cambs - Care,Supported Living
Cambridgeshire County Council,27-Feb-20,51301320394,"-2,156.70",CONSENSUS (CROMER HOUSE),CARE ESTABLISHMENT,LD - South Locality - Cost of Care,LD - South Cambs - Care,Residential Care
Cambridgeshire County Council,27-Feb-20,51301320394,"-2,156.70",CONSENSUS (CROMER HOUSE),CARE ESTABLISHMENT,LD - South Locality - Cost of Care,LD - South Cambs - Care,Residential Care
Cambridgeshire County Council,27-Feb-20,51301320394,"-2,156.70",CONSENSUS (CROMER HOUSE),CARE ESTABLISHMENT,LD - South Locality - Cost of Care,LD - South Cambs - Care,Residential Care
Cambridgeshire County Council,27-Feb-20,51301320394,"-2,156.70",CONSENSUS (CROMER HOUSE),CARE ESTABLISHMENT,LD - South Locality - Cost of Care,LD - South Cambs - Care,Residential Care
Cambridgeshire County Council,27-Feb-20,51301320394,"-2,156.70",CONSENSUS (CROMER HOUSE),CARE ESTABLISHMENT,LD - South Locality - Cost of Care,LD - South Cambs - Care,Residential Care
Cambridgeshire County Council,27-Feb-20,51301320394,"-2,156.70",CONSENSUS (CROMER HOUSE),CARE ESTABLISHMENT,LD - South Locality - Cost of Care,LD - South Cambs - Care,Residential Care
Cambridgeshire County Council,27-Feb-20,51301320394,"-2,156.70",CONSENSUS (CROMER HOUSE),CARE ESTABLISHMENT,LD - South Locality - Cost of Care,LD - South Cambs - Care,Residential Care
Cambridgeshire County Council,27-Feb-20,51301320394,"-2,156.70",CONSENSUS (CROMER HOUSE),CARE ESTABLISHMENT,LD - South Locality - Cost of Care,LD - South Cambs - Care,Residential Care
Cambridgeshire County Council,27-Feb-20,51301320394,"-2,156.70",CONSENSUS (CROMER HOUSE),CARE ESTABLISHMENT,LD - South Locality - Cost of Care,LD - South Cambs - Care,Residential Care
Cambridgeshire County Council,27-Feb-20,51301320394,"-2,156.70",CONSENSUS (CROMER HOUSE),CARE ESTABLISHMENT,LD - South Locality - Cost of Care,LD - South Cambs - Care,Residential Care
Cambridgeshire County Council,27-Feb-20,51301320394,"-2,156.70",CONSENSUS (CROMER HOUSE),CARE ESTABLISHMENT,LD - South Locality - Cost of Care,LD - South Cambs - Care,Residential Care
Cambridgeshire County Council,27-Feb-20,51301320394,"-2,156.70",CONSENSUS (CROMER HOUSE),CARE ESTABLISHMENT,LD - South Locality - Cost of Care,LD - South Cambs - Care,Residential Care
Cambridgeshire County Council,27-Feb-20,51301320394,"-2,156.70",CONSENSUS (CROMER HOUSE),CARE ESTABLISHMENT,LD - South Locality - Cost of Care,LD - South Cambs - Care,Residential Care
Cambridgeshire County Council,27-Feb-20,51301320394,"-2,156.70",CONSENSUS (CROMER HOUSE),CARE ESTABLISHMENT,LD - South Locality - Cost of Care,LD - South Cambs - Care,Residential Care
Cambridgeshire County Council,27-Feb-20,51301320394,"-2,156.70",CONSENSUS (CROMER HOUSE),CARE ESTABLISHMENT,LD - South Locality - Cost of Care,LD - South Cambs - Care,Residential Care
Cambridgeshire County Council,27-Feb-20,51301320394,"-2,156.70",CONSENSUS (CROMER HOUSE),CARE ESTABLISHMENT,LD - South Locality - Cost of Care,LD - South Cambs - Care,Residential Care
Cambridgeshire County Council,27-Feb-20,51301320394,"-2,156.70",CONSENSUS (CROMER HOUSE),CARE ESTABLISHMENT,LD - South Locality - Cost of Care,LD - South Cambs - Care,Residential Care
Cambridgeshire County Council,27-Feb-20,51301320394,"-2,156.70",CONSENSUS (CROMER HOUSE),CARE ESTABLISHMENT,LD - South Locality - Cost of Care,LD - South Cambs - Care,Residential Care
Cambridgeshire County Council,27-Feb-20,51301320394,"-2,156.70",CONSENSUS (CROMER HOUSE),CARE ESTABLISHMENT,LD - South Locality - Cost of Care,LD - South Cambs - Care,Residential Care
Cambridgeshire County Council,27-Feb-20,51301320394,"-2,156.70",CONSENSUS (CROMER HOUSE),CARE ESTABLISHMENT,LD - South Locality - Cost of Care,LD - South Cambs - Care,Residential Care
Cambridgeshire County Council,27-Feb-20,51301320394,"-2,156.70",CONSENSUS (CROMER HOUSE),CARE ESTABLISHMENT,LD - South Locality - Cost of Care,LD - South Cambs - Care,Residential Care
Cambridgeshire County Council,27-Feb-20,51301320394,"-2,156.70",CONSENSUS (CROMER HOUSE),CARE ESTABLISHMENT,LD - South Locality - Cost of Care,LD - South Cambs - Care,Residential Care
Cambridgeshire County Council,27-Feb-20,51301320394,"-2,156.70",CONSENSUS (CROMER HOUSE),CARE ESTABLISHMENT,LD - South Locality - Cost of Care,LD - South Cambs - Care,Residential Care
Cambridgeshire County Council,27-Feb-20,51301320394,"-2,156.70",CONSENSUS (CROMER HOUSE),CARE ESTABLISHMENT,LD - South Locality - Cost of Care,LD - South Cambs - Care,Residential Care
Cambridgeshire County Council,27-Feb-20,51301320394,"-2,156.70",CONSENSUS (CROMER HOUSE),CARE ESTABLISHMENT,LD - South Locality - Cost of Care,LD - South Cambs - Care,Residential Care
Cambridgeshire County Council,27-Feb-20,51301320394,"-2,156.70",CONSENSUS (CROMER HOUSE),CARE ESTABLISHMENT,LD - South Locality - Cost of Care,LD - South Cambs - Care,Residential Care
Cambridgeshire County Council,27-Feb-20,51301320394,"-2,156.70",CONSENSUS (CROMER HOUSE),CARE ESTABLISHMENT,LD - South Locality - Cost of Care,LD - South Cambs - Care,Residential Care
Cambridgeshire County Council,27-Feb-20,51301320394,"-2,156.70",CONSENSUS (CROMER HOUSE),CARE ESTABLISHMENT,LD - South Locality - Cost of Care,LD - South Cambs - Care,Residential Care
Cambridgeshire County Council,27-Feb-20,51301320394,"-2,156.70",CONSENSUS (CROMER HOUSE),CARE ESTABLISHMENT,LD - South Locality - Cost of Care,LD - South Cambs - Care,Residential Care
Cambridgeshire County Council,27-Feb-20,51301320394,"-2,156.70",CONSENSUS (CROMER HOUSE),CARE ESTABLISHMENT,LD - South Locality - Cost of Care,LD - South Cambs - Care,Residential Care
Cambridgeshire County Council,27-Feb-20,51301320394,"-2,156.70",CONSENSUS (CROMER HOUSE),CARE ESTABLISHMENT,LD - South Locality - Cost of Care,LD - South Cambs - Care,Residential Care
Cambridgeshire County Council,27-Feb-20,51301320394,"-2,156.70",CONSENSUS (CROMER HOUSE),CARE ESTABLISHMENT,LD - South Locality - Cost of Care,LD - South Cambs - Care,Residential Care
Cambridgeshire County Council,27-Feb-20,51301320394,"-2,156.70",CONSENSUS (CROMER HOUSE),CARE ESTABLISHMENT,LD - South Locality - Cost of Care,LD - South Cambs - Care,Residential Care
Cambridgeshire County Council,27-Feb-20,51301320394,"-2,156.70",CONSENSUS (CROMER HOUSE),CARE ESTABLISHMENT,LD - South Locality - Cost of Care,LD - South Cambs - Care,Residential Care
Cambridgeshire County Council,27-Feb-20,51301320394,"-2,156.70",CONSENSUS (CROMER HOUSE),CARE ESTABLISHMENT,LD - South Locality - Cost of Care,LD - South Cambs - Care,Residential Care
Cambridgeshire County Council,27-Feb-20,51301320394,"-2,156.70",CONSENSUS (CROMER HOUSE),CARE ESTABLISHMENT,LD - South Locality - Cost of Care,LD - South Cambs - Care,Residential Care
Cambridgeshire County Council,27-Feb-20,51301320394,"-2,156.70",CONSENSUS (CROMER HOUSE),CARE ESTABLISHMENT,LD - South Locality - Cost of Care,LD - South Cambs - Care,Residential Care
Cambridgeshire County Council,27-Feb-20,51301320394,"-2,156.70",CONSENSUS (CROMER HOUSE),CARE ESTABLISHMENT,LD - South Locality - Cost of Care,LD - South Cambs - Care,Residential Care
Cambridgeshire County Council,27-Feb-20,51301320394,"-2,156.70",CONSENSUS (CROMER HOUSE),CARE ESTABLISHMENT,LD - South Locality - Cost of Care,LD - South Cambs - Care,Residential Care
Cambridgeshire County Council,27-Feb-20,51301320394,"-2,156.70",CONSENSUS (CROMER HOUSE),CARE ESTABLISHMENT,LD - South Locality - Cost of Care,LD - South Cambs - Care,Residential Care
Cambridgeshire County Council,27-Feb-20,51301320394,"-2,156.70",CONSENSUS (CROMER HOUSE),CARE ESTABLISHMENT,LD - South Locality - Cost of Care,LD - South Cambs - Care,Residential Care
Cambridgeshire County Council,27-Feb-20,51301320394,"-2,156.70",CONSENSUS (CROMER HOUSE),CARE ESTABLISHMENT,LD - South Locality - Cost of Care,LD - South Cambs - Care,Residential Care
Cambridgeshire County Council,27-Feb-20,51301320394,"-2,156.70",CONSENSUS (CROMER HOUSE),CARE ESTABLISHMENT,LD - South Locality - Cost of Care,LD - South Cambs - Care,Residential Care
Cambridgeshire County Council,27-Feb-20,51301320394,"-2,156.70",CONSENSUS (CROMER HOUSE),CARE ESTABLISHMENT,LD - South Locality - Cost of Care,LD - South Cambs - Care,Residential Care
Cambridgeshire County Council,27-Feb-20,51301320394,"-2,156.70",CONSENSUS (CROMER HOUSE),CARE ESTABLISHMENT,LD - South Locality - Cost of Care,LD - South Cambs - Care,Residential Care
Cambridgeshire County Council,27-Feb-20,51301320394,"-2,156.70",CONSENSUS (CROMER HOUSE),CARE ESTABLISHMENT,LD - South Locality - Cost of Care,LD - South Cambs - Care,Residential Care
Cambridgeshire County Council,27-Feb-20,51301320394,"-2,156.70",CONSENSUS (CROMER HOUSE),CARE ESTABLISHMENT,LD - South Locality - Cost of Care,LD - South Cambs - Care,Residential Care
Cambridgeshire County Council,27-Feb-20,51301320394,"-2,156.70",CONSENSUS (CROMER HOUSE),CARE ESTABLISHMENT,LD - South Locality - Cost of Care,LD - South Cambs - Care,Residential Care
Cambridgeshire County Council,27-Feb-20,51301320394,"-2,156.70",CONSENSUS (CROMER HOUSE),CARE ESTABLISHMENT,LD - South Locality - Cost of Care,LD - South Cambs - Care,Residential Care
Cambridgeshire County Council,27-Feb-20,51301320394,"-2,156.70",CONSENSUS (CROMER HOUSE),CARE ESTABLISHMENT,LD - South Locality - Cost of Care,LD - South Cambs - Care,Residential Care
Cambridgeshire County Council,27-Feb-20,51301320394,"-2,156.70",CONSENSUS (CROMER HOUSE),CARE ESTABLISHMENT,LD - South Locality - Cost of Care,LD - South Cambs - Care,Residential Care
Cambridgeshire County Council,28-Feb-20,51301321885,"-2,122.74",Accomplish Group Support Limited,CARE ESTABLISHMENT,LD - Young Adults Team,LD - Young Adults - Care,Residential Care
Cambridgeshire County Council,27-Feb-20,51301320417,"-2,088.37",EYNESBURY HOUSE,CARE ESTABLISHMENT,AMH - Hunts & Fens,Hunts Mental Health Team,Residential Care
Cambridgeshire County Council,27-Feb-20,51301320417,"-2,088.37",EYNESBURY HOUSE,CARE ESTABLISHMENT,AMH - Hunts & Fens,Hunts Mental Health Team,Residential Care
Cambridgeshire County Council,27-Feb-20,51301320417,"-2,088.37",EYNESBURY HOUSE,CARE ESTABLISHMENT,AMH - Hunts & Fens,Hunts Mental Health Team,Residential Care
Cambridgeshire County Council,27-Feb-20,51301320417,"-2,088.37",EYNESBURY HOUSE,CARE ESTABLISHMENT,AMH - Hunts & Fens,Hunts Mental Health Team,Residential Care
Cambridgeshire County Council,27-Feb-20,51301320417,"-2,088.37",EYNESBURY HOUSE,CARE ESTABLISHMENT,AMH - Hunts & Fens,Hunts Mental Health Team,Residential Care
Cambridgeshire County Council,27-Feb-20,51301320417,"-2,088.37",EYNESBURY HOUSE,CARE ESTABLISHMENT,AMH - Hunts & Fens,Hunts Mental Health Team,Residential Care
Cambridgeshire County Council,27-Feb-20,51301320417,"-2,088.37",EYNESBURY HOUSE,CARE ESTABLISHMENT,AMH - Hunts & Fens,Hunts Mental Health Team,Residential Care
Cambridgeshire County Council,27-Feb-20,51301320417,"-2,088.37",EYNESBURY HOUSE,CARE ESTABLISHMENT,AMH - Hunts & Fens,Hunts Mental Health Team,Residential Care
Cambridgeshire County Council,27-Feb-20,51301320417,"-2,088.37",EYNESBURY HOUSE,CARE ESTABLISHMENT,AMH - Hunts & Fens,Hunts Mental Health Team,Residential Care
Cambridgeshire County Council,27-Feb-20,51301320417,"-2,088.37",EYNESBURY HOUSE,CARE ESTABLISHMENT,AMH - Hunts & Fens,Hunts Mental Health Team,Residential Care
Cambridgeshire County Council,27-Feb-20,51301320417,"-2,088.37",EYNESBURY HOUSE,CARE ESTABLISHMENT,AMH - Hunts & Fens,Hunts Mental Health Team,Residential Care
Cambridgeshire County Council,27-Feb-20,51301320417,"-2,088.37",EYNESBURY HOUSE,CARE ESTABLISHMENT,AMH - Hunts & Fens,Hunts Mental Health Team,Residential Care
Cambridgeshire County Council,27-Feb-20,51301320417,"-2,088.37",EYNESBURY HOUSE,CARE ESTABLISHMENT,AMH - Hunts & Fens,Hunts Mental Health Team,Residential Care
Cambridgeshire County Council,27-Feb-20,51301320417,"-2,088.37",EYNESBURY HOUSE,CARE ESTABLISHMENT,AMH - Hunts & Fens,Hunts Mental Health Team,Residential Care
Cambridgeshire County Council,27-Feb-20,51301320417,"-2,088.37",EYNESBURY HOUSE,CARE ESTABLISHMENT,AMH - Hunts & Fens,Hunts Mental Health Team,Residential Care
Cambridgeshire County Council,27-Feb-20,51301320417,"-2,088.37",EYNESBURY HOUSE,CARE ESTABLISHMENT,AMH - Hunts & Fens,Hunts Mental Health Team,Residential Care
Cambridgeshire County Council,27-Feb-20,51301320417,"-2,088.37",EYNESBURY HOUSE,CARE ESTABLISHMENT,AMH - Hunts & Fens,Hunts Mental Health Team,Residential Care
Cambridgeshire County Council,27-Feb-20,51301320417,"-2,088.37",EYNESBURY HOUSE,CARE ESTABLISHMENT,AMH - Hunts & Fens,Hunts Mental Health Team,Residential Care
Cambridgeshire County Council,27-Feb-20,51301320417,"-2,088.37",EYNESBURY HOUSE,CARE ESTABLISHMENT,AMH - Hunts & Fens,Hunts Mental Health Team,Residential Care
Cambridgeshire County Council,27-Feb-20,51301320417,"-2,088.37",EYNESBURY HOUSE,CARE ESTABLISHMENT,AMH - Hunts & Fens,Hunts Mental Health Team,Residential Care
Cambridgeshire County Council,27-Feb-20,51301320417,"-2,088.37",EYNESBURY HOUSE,CARE ESTABLISHMENT,AMH - Hunts & Fens,Hunts Mental Health Team,Residential Care
Cambridgeshire County Council,27-Feb-20,51301320417,"-2,088.37",EYNESBURY HOUSE,CARE ESTABLISHMENT,AMH - Hunts & Fens,Hunts Mental Health Team,Residential Care
Cambridgeshire County Council,27-Feb-20,51301320417,"-2,088.37",EYNESBURY HOUSE,CARE ESTABLISHMENT,AMH - Hunts & Fens,Hunts Mental Health Team,Residential Care
Cambridgeshire County Council,27-Feb-20,51301320417,"-2,088.37",EYNESBURY HOUSE,CARE ESTABLISHMENT,AMH - Hunts & Fens,Hunts Mental Health Team,Residential Care
Cambridgeshire County Council,27-Feb-20,51301320417,"-2,088.37",EYNESBURY HOUSE,CARE ESTABLISHMENT,AMH - Hunts & Fens,Hunts Mental Health Team,Residential Care
Cambridgeshire County Council,27-Feb-20,51301320417,"-2,088.37",EYNESBURY HOUSE,CARE ESTABLISHMENT,AMH - Hunts & Fens,Hunts Mental Health Team,Residential Care
Cambridgeshire County Council,27-Feb-20,51301320417,"-2,088.37",EYNESBURY HOUSE,CARE ESTABLISHMENT,AMH - Hunts & Fens,Hunts Mental Health Team,Residential Care
Cambridgeshire County Council,27-Feb-20,51301320417,"-2,088.37",EYNESBURY HOUSE,CARE ESTABLISHMENT,AMH - Hunts & Fens,Hunts Mental Health Team,Residential Care
Cambridgeshire County Council,27-Feb-20,51301320417,"-2,088.37",EYNESBURY HOUSE,CARE ESTABLISHMENT,AMH - Hunts & Fens,Hunts Mental Health Team,Residential Care
Cambridgeshire County Council,27-Feb-20,51301320417,"-2,088.37",EYNESBURY HOUSE,CARE ESTABLISHMENT,AMH - Hunts & Fens,Hunts Mental Health Team,Residential Care
Cambridgeshire County Council,27-Feb-20,51301320417,"-2,088.37",EYNESBURY HOUSE,CARE ESTABLISHMENT,AMH - Hunts & Fens,Hunts Mental Health Team,Residential Care
Cambridgeshire County Council,27-Feb-20,51301320417,"-2,088.37",EYNESBURY HOUSE,CARE ESTABLISHMENT,AMH - Hunts & Fens,Hunts Mental Health Team,Residential Care
Cambridgeshire County Council,27-Feb-20,51301320417,"-2,088.37",EYNESBURY HOUSE,CARE ESTABLISHMENT,AMH - Hunts & Fens,Hunts Mental Health Team,Residential Care
Cambridgeshire County Council,27-Feb-20,51301320417,"-2,088.37",EYNESBURY HOUSE,CARE ESTABLISHMENT,AMH - Hunts & Fens,Hunts Mental Health Team,Residential Care
Cambridgeshire County Council,27-Feb-20,51301320417,"-2,088.37",EYNESBURY HOUSE,CARE ESTABLISHMENT,AMH - Hunts & Fens,Hunts Mental Health Team,Residential Care
Cambridgeshire County Council,27-Feb-20,51301320417,"-2,088.37",EYNESBURY HOUSE,CARE ESTABLISHMENT,AMH - Hunts & Fens,Hunts Mental Health Team,Residential Care
Cambridgeshire County Council,27-Feb-20,51301320417,"-2,088.37",EYNESBURY HOUSE,CARE ESTABLISHMENT,AMH - Hunts & Fens,Hunts Mental Health Team,Residential Care
Cambridgeshire County Council,27-Feb-20,51301320417,"-2,088.37",EYNESBURY HOUSE,CARE ESTABLISHMENT,AMH - Hunts & Fens,Hunts Mental Health Team,Residential Care
Cambridgeshire County Council,27-Feb-20,51301320417,"-2,088.37",EYNESBURY HOUSE,CARE ESTABLISHMENT,AMH - Hunts & Fens,Hunts Mental Health Team,Residential Care
Cambridgeshire County Council,27-Feb-20,51301320417,"-2,088.37",EYNESBURY HOUSE,CARE ESTABLISHMENT,AMH - Hunts & Fens,Hunts Mental Health Team,Residential Care
Cambridgeshire County Council,27-Feb-20,51301320417,"-2,088.37",EYNESBURY HOUSE,CARE ESTABLISHMENT,AMH - Hunts & Fens,Hunts Mental Health Team,Residential Care
Cambridgeshire County Council,27-Feb-20,51301320417,"-2,088.37",EYNESBURY HOUSE,CARE ESTABLISHMENT,AMH - Hunts & Fens,Hunts Mental Health Team,Residential Care
Cambridgeshire County Council,27-Feb-20,51301320417,"-2,088.37",EYNESBURY HOUSE,CARE ESTABLISHMENT,AMH - Hunts & Fens,Hunts Mental Health Team,Residential Care
Cambridgeshire County Council,27-Feb-20,51301320417,"-2,088.37",EYNESBURY HOUSE,CARE ESTABLISHMENT,AMH - Hunts & Fens,Hunts Mental Health Team,Residential Care
Cambridgeshire County Council,27-Feb-20,51301320417,"-2,088.37",EYNESBURY HOUSE,CARE ESTABLISHMENT,AMH - Hunts & Fens,Hunts Mental Health Team,Residential Care
Cambridgeshire County Council,27-Feb-20,51301320417,"-2,088.37",EYNESBURY HOUSE,CARE ESTABLISHMENT,AMH - Hunts & Fens,Hunts Mental Health Team,Residential Care
Cambridgeshire County Council,27-Feb-20,51301320417,"-2,088.37",EYNESBURY HOUSE,CARE ESTABLISHMENT,AMH - Hunts & Fens,Hunts Mental Health Team,Residential Care
Cambridgeshire County Council,27-Feb-20,51301320417,"-2,088.37",EYNESBURY HOUSE,CARE ESTABLISHMENT,AMH - Hunts & Fens,Hunts Mental Health Team,Residential Care
Cambridgeshire County Council,27-Feb-20,51301320417,"-2,088.37",EYNESBURY HOUSE,CARE ESTABLISHMENT,AMH - Hunts & Fens,Hunts Mental Health Team,Residential Care
Cambridgeshire County Council,27-Feb-20,51301320417,"-2,088.37",EYNESBURY HOUSE,CARE ESTABLISHMENT,AMH - Hunts & Fens,Hunts Mental Health Team,Residential Care
Cambridgeshire County Council,20-Feb-20,51301317296,"-2,041.20",DIMENSIONS (UK) LTD,CARE ESTABLISHMENT,LD - South Locality - Cost of Care,LD - South Cambs - Care,Supported Living
Cambridgeshire County Council,20-Feb-20,51301317296,"-2,041.20",DIMENSIONS (UK) LTD,CARE ESTABLISHMENT,LD - South Locality - Cost of Care,LD - South Cambs - Care,Supported Living
Cambridgeshire County Council,20-Feb-20,51301317296,"-2,041.20",DIMENSIONS (UK) LTD,CARE ESTABLISHMENT,LD - South Locality - Cost of Care,LD - South Cambs - Care,Supported Living
Cambridgeshire County Council,20-Feb-20,51301317296,"-2,041.20",DIMENSIONS (UK) LTD,CARE ESTABLISHMENT,LD - South Locality - Cost of Care,LD - South Cambs - Care,Supported Living
Cambridgeshire County Council,20-Feb-20,51301317296,"-2,041.20",DIMENSIONS (UK) LTD,CARE ESTABLISHMENT,LD - South Locality - Cost of Care,LD - South Cambs - Care,Supported Living
Cambridgeshire County Council,20-Feb-20,51301317296,"-2,041.20",DIMENSIONS (UK) LTD,CARE ESTABLISHMENT,LD - South Locality - Cost of Care,LD - South Cambs - Care,Supported Living
Cambridgeshire County Council,20-Feb-20,51301317296,"-2,041.20",DIMENSIONS (UK) LTD,CARE ESTABLISHMENT,LD - South Locality - Cost of Care,LD - South Cambs - Care,Supported Living
Cambridgeshire County Council,20-Feb-20,51301317296,"-2,041.20",DIMENSIONS (UK) LTD,CARE ESTABLISHMENT,LD - South Locality - Cost of Care,LD - South Cambs - Care,Supported Living
Cambridgeshire County Council,20-Feb-20,51301317296,"-2,041.20",DIMENSIONS (UK) LTD,CARE ESTABLISHMENT,LD - South Locality - Cost of Care,LD - South Cambs - Care,Supported Living
Cambridgeshire County Council,20-Feb-20,51301317296,"-2,041.20",DIMENSIONS (UK) LTD,CARE ESTABLISHMENT,LD - South Locality - Cost of Care,LD - South Cambs - Care,Supported Living
Cambridgeshire County Council,20-Feb-20,51301317296,"-2,041.20",DIMENSIONS (UK) LTD,CARE ESTABLISHMENT,LD - South Locality - Cost of Care,LD - South Cambs - Care,Supported Living
Cambridgeshire County Council,20-Feb-20,51301317296,"-2,041.20",DIMENSIONS (UK) LTD,CARE ESTABLISHMENT,LD - South Locality - Cost of Care,LD - South Cambs - Care,Supported Living
Cambridgeshire County Council,20-Feb-20,51301317296,"-2,041.20",DIMENSIONS (UK) LTD,CARE ESTABLISHMENT,LD - South Locality - Cost of Care,LD - South Cambs - Care,Supported Living
Cambridgeshire County Council,20-Feb-20,51301317296,"-2,041.20",DIMENSIONS (UK) LTD,CARE ESTABLISHMENT,LD - South Locality - Cost of Care,LD - South Cambs - Care,Supported Living
Cambridgeshire County Council,20-Feb-20,51301317296,"-2,041.20",DIMENSIONS (UK) LTD,CARE ESTABLISHMENT,LD - South Locality - Cost of Care,LD - South Cambs - Care,Supported Living
Cambridgeshire County Council,20-Feb-20,51301317296,"-2,041.20",DIMENSIONS (UK) LTD,CARE ESTABLISHMENT,LD - South Locality - Cost of Care,LD - South Cambs - Care,Supported Living
Cambridgeshire County Council,20-Feb-20,51301317296,"-2,041.20",DIMENSIONS (UK) LTD,CARE ESTABLISHMENT,LD - South Locality - Cost of Care,LD - South Cambs - Care,Supported Living
Cambridgeshire County Council,20-Feb-20,51301317296,"-2,041.20",DIMENSIONS (UK) LTD,CARE ESTABLISHMENT,LD - South Locality - Cost of Care,LD - South Cambs - Care,Supported Living
Cambridgeshire County Council,28-Feb-20,51301321815,"-2,027.83",BLUNHAM DAIRY MANOR FARM (BROOKDALE),CARE ESTABLISHMENT,LD - Hunts Locality - Cost of Care,LD - Huntingdonshire - Special Needs,Residential Care
Cambridgeshire County Council,20-Feb-20,51301317294,"-2,016.24",DIMENSIONS (UK) LTD,CARE ESTABLISHMENT,LD - South Locality - Cost of Care,LD - South Cambs - Care,Supported Living
Cambridgeshire County Council,20-Feb-20,51301317294,"-2,016.24",DIMENSIONS (UK) LTD,CARE ESTABLISHMENT,LD - South Locality - Cost of Care,LD - South Cambs - Care,Supported Living
Cambridgeshire County Council,20-Feb-20,51301317294,"-2,016.24",DIMENSIONS (UK) LTD,CARE ESTABLISHMENT,LD - South Locality - Cost of Care,LD - South Cambs - Care,Supported Living
Cambridgeshire County Council,20-Feb-20,51301317294,"-2,016.24",DIMENSIONS (UK) LTD,CARE ESTABLISHMENT,LD - South Locality - Cost of Care,LD - South Cambs - Care,Supported Living
Cambridgeshire County Council,20-Feb-20,51301317294,"-2,016.24",DIMENSIONS (UK) LTD,CARE ESTABLISHMENT,LD - South Locality - Cost of Care,LD - South Cambs - Care,Supported Living
Cambridgeshire County Council,20-Feb-20,51301317294,"-2,016.24",DIMENSIONS (UK) LTD,CARE ESTABLISHMENT,LD - South Locality - Cost of Care,LD - South Cambs - Care,Supported Living
Cambridgeshire County Council,20-Feb-20,51301317294,"-2,016.24",DIMENSIONS (UK) LTD,CARE ESTABLISHMENT,LD - South Locality - Cost of Care,LD - South Cambs - Care,Supported Living
Cambridgeshire County Council,20-Feb-20,51301317294,"-2,016.24",DIMENSIONS (UK) LTD,CARE ESTABLISHMENT,LD - South Locality - Cost of Care,LD - South Cambs - Care,Supported Living
Cambridgeshire County Council,20-Feb-20,51301317294,"-2,016.24",DIMENSIONS (UK) LTD,CARE ESTABLISHMENT,LD - South Locality - Cost of Care,LD - South Cambs - Care,Supported Living
Cambridgeshire County Council,20-Feb-20,51301317294,"-2,016.24",DIMENSIONS (UK) LTD,CARE ESTABLISHMENT,LD - South Locality - Cost of Care,LD - South Cambs - Care,Supported Living
Cambridgeshire County Council,20-Feb-20,51301317294,"-2,016.24",DIMENSIONS (UK) LTD,CARE ESTABLISHMENT,LD - South Locality - Cost of Care,LD - South Cambs - Care,Supported Living
Cambridgeshire County Council,20-Feb-20,51301317294,"-2,016.24",DIMENSIONS (UK) LTD,CARE ESTABLISHMENT,LD - South Locality - Cost of Care,LD - South Cambs - Care,Supported Living
Cambridgeshire County Council,20-Feb-20,51301317294,"-2,016.24",DIMENSIONS (UK) LTD,CARE ESTABLISHMENT,LD - South Locality - Cost of Care,LD - South Cambs - Care,Supported Living
Cambridgeshire County Council,20-Feb-20,51301317294,"-2,016.24",DIMENSIONS (UK) LTD,CARE ESTABLISHMENT,LD - South Locality - Cost of Care,LD - South Cambs - Care,Supported Living
Cambridgeshire County Council,20-Feb-20,51301317294,"-2,016.24",DIMENSIONS (UK) LTD,CARE ESTABLISHMENT,LD - South Locality - Cost of Care,LD - South Cambs - Care,Supported Living
Cambridgeshire County Council,20-Feb-20,51301317294,"-2,016.24",DIMENSIONS (UK) LTD,CARE ESTABLISHMENT,LD - South Locality - Cost of Care,LD - South Cambs - Care,Supported Living
Cambridgeshire County Council,20-Feb-20,51301317294,"-2,016.24",DIMENSIONS (UK) LTD,CARE ESTABLISHMENT,LD - South Locality - Cost of Care,LD - South Cambs - Care,Supported Living
Cambridgeshire County Council,20-Feb-20,51301317294,"-2,016.24",DIMENSIONS (UK) LTD,CARE ESTABLISHMENT,LD - South Locality - Cost of Care,LD - South Cambs - Care,Supported Living
Cambridgeshire County Council,28-Feb-20,51301321933,"-2,006.57",Accomplish Group Support Limited,CARE ESTABLISHMENT,Autism and Adult Support - Cost of Care,Autism and Adult Support - Care,Residential Care
Cambridgeshire County Council,03-Feb-20,51301307777,"-1,993.79",TURNING POINT SERVICES LTD,CARE ESTABLISHMENT,LD - Fenland Locality - Cost of Care,LD - Fenland  - Care,Homecare
Cambridgeshire County Council,03-Feb-20,51301307777,"-1,993.79",TURNING POINT SERVICES LTD,CARE ESTABLISHMENT,LD - Fenland Locality - Cost of Care,LD - Fenland  - Care,Homecare
Cambridgeshire County Council,03-Feb-20,51301307777,"-1,993.79",TURNING POINT SERVICES LTD,CARE ESTABLISHMENT,LD - Fenland Locality - Cost of Care,LD - Fenland  - Care,Homecare
Cambridgeshire County Council,03-Feb-20,51301307777,"-1,993.79",TURNING POINT SERVICES LTD,CARE ESTABLISHMENT,LD - Fenland Locality - Cost of Care,LD - Fenland  - Care,Homecare
Cambridgeshire County Council,03-Feb-20,51301307777,"-1,993.79",TURNING POINT SERVICES LTD,CARE ESTABLISHMENT,LD - Fenland Locality - Cost of Care,LD - Fenland  - Care,Homecare
Cambridgeshire County Council,03-Feb-20,51301307777,"-1,993.79",TURNING POINT SERVICES LTD,CARE ESTABLISHMENT,LD - Fenland Locality - Cost of Care,LD - Fenland  - Care,Homecare
Cambridgeshire County Council,03-Feb-20,51301307777,"-1,993.79",TURNING POINT SERVICES LTD,CARE ESTABLISHMENT,LD - Fenland Locality - Cost of Care,LD - Fenland  - Care,Homecare
Cambridgeshire County Council,03-Feb-20,51301307777,"-1,993.79",TURNING POINT SERVICES LTD,CARE ESTABLISHMENT,LD - Fenland Locality - Cost of Care,LD - Fenland  - Care,Homecare
Cambridgeshire County Council,03-Feb-20,51301307777,"-1,993.79",TURNING POINT SERVICES LTD,CARE ESTABLISHMENT,LD - Fenland Locality - Cost of Care,LD - Fenland  - Care,Homecare
Cambridgeshire County Council,03-Feb-20,51301307777,"-1,993.79",TURNING POINT SERVICES LTD,CARE ESTABLISHMENT,LD - Fenland Locality - Cost of Care,LD - Fenland  - Care,Homecare
Cambridgeshire County Council,03-Feb-20,51301307777,"-1,993.79",TURNING POINT SERVICES LTD,CARE ESTABLISHMENT,LD - Fenland Locality - Cost of Care,LD - Fenland  - Care,Homecare
Cambridgeshire County Council,03-Feb-20,51301307777,"-1,993.79",TURNING POINT SERVICES LTD,CARE ESTABLISHMENT,LD - Fenland Locality - Cost of Care,LD - Fenland  - Care,Homecare
Cambridgeshire County Council,03-Feb-20,51301307777,"-1,993.79",TURNING POINT SERVICES LTD,CARE ESTABLISHMENT,LD - Fenland Locality - Cost of Care,LD - Fenland  - Care,Homecare
Cambridgeshire County Council,03-Feb-20,51301307777,"-1,993.79",TURNING POINT SERVICES LTD,CARE ESTABLISHMENT,LD - Fenland Locality - Cost of Care,LD - Fenland  - Care,Homecare
Cambridgeshire County Council,03-Feb-20,51301307777,"-1,993.79",TURNING POINT SERVICES LTD,CARE ESTABLISHMENT,LD - Fenland Locality - Cost of Care,LD - Fenland  - Care,Homecare
Cambridgeshire County Council,03-Feb-20,51301307777,"-1,993.79",TURNING POINT SERVICES LTD,CARE ESTABLISHMENT,LD - Fenland Locality - Cost of Care,LD - Fenland  - Care,Homecare
Cambridgeshire County Council,03-Feb-20,51301307777,"-1,993.79",TURNING POINT SERVICES LTD,CARE ESTABLISHMENT,LD - Fenland Locality - Cost of Care,LD - Fenland  - Care,Homecare
Cambridgeshire County Council,03-Feb-20,51301307777,"-1,993.79",TURNING POINT SERVICES LTD,CARE ESTABLISHMENT,LD - Fenland Locality - Cost of Care,LD - Fenland  - Care,Homecare
Cambridgeshire County Council,28-Feb-20,51301323985,"-1,979.50",Redacted Personal Data,SERVICE USER,LD - East Locality - Cost of Care,LD - East Cambs - Special Needs,Direct Payments
Cambridgeshire County Council,28-Feb-20,51301323985,"-1,979.50",Redacted Personal Data,SERVICE USER,LD - East Locality - Cost of Care,LD - East Cambs - Special Needs,Direct Payments
Cambridgeshire County Council,28-Feb-20,51301323985,"-1,979.50",Redacted Personal Data,SERVICE USER,LD - East Locality - Cost of Care,LD - East Cambs - Special Needs,Direct Payments
Cambridgeshire County Council,28-Feb-20,51301323985,"-1,979.50",Redacted Personal Data,SERVICE USER,LD - East Locality - Cost of Care,LD - East Cambs - Special Needs,Direct Payments
Cambridgeshire County Council,28-Feb-20,51301323985,"-1,979.50",Redacted Personal Data,SERVICE USER,LD - East Locality - Cost of Care,LD - East Cambs - Special Needs,Direct Payments
Cambridgeshire County Council,28-Feb-20,51301323985,"-1,979.50",Redacted Personal Data,SERVICE USER,LD - East Locality - Cost of Care,LD - East Cambs - Special Needs,Direct Payments
Cambridgeshire County Council,28-Feb-20,51301323985,"-1,979.50",Redacted Personal Data,SERVICE USER,LD - East Locality - Cost of Care,LD - East Cambs - Special Needs,Direct Payments
Cambridgeshire County Council,28-Feb-20,51301323985,"-1,979.50",Redacted Personal Data,SERVICE USER,LD - East Locality - Cost of Care,LD - East Cambs - Special Needs,Direct Payments
Cambridgeshire County Council,28-Feb-20,51301323985,"-1,979.50",Redacted Personal Data,SERVICE USER,LD - East Locality - Cost of Care,LD - East Cambs - Special Needs,Direct Payments
Cambridgeshire County Council,28-Feb-20,51301323985,"-1,979.50",Redacted Personal Data,SERVICE USER,LD - East Locality - Cost of Care,LD - East Cambs - Special Needs,Direct Payments
Cambridgeshire County Council,28-Feb-20,51301323985,"-1,979.50",Redacted Personal Data,SERVICE USER,LD - East Locality - Cost of Care,LD - East Cambs - Special Needs,Direct Payments
Cambridgeshire County Council,28-Feb-20,51301323985,"-1,979.50",Redacted Personal Data,SERVICE USER,LD - East Locality - Cost of Care,LD - East Cambs - Special Needs,Direct Payments
Cambridgeshire County Council,28-Feb-20,51301323985,"-1,979.50",Redacted Personal Data,SERVICE USER,LD - East Locality - Cost of Care,LD - East Cambs - Special Needs,Direct Payments
Cambridgeshire County Council,28-Feb-20,51301323985,"-1,979.50",Redacted Personal Data,SERVICE USER,LD - East Locality - Cost of Care,LD - East Cambs - Special Needs,Direct Payments
Cambridgeshire County Council,28-Feb-20,51301323985,"-1,979.50",Redacted Personal Data,SERVICE USER,LD - East Locality - Cost of Care,LD - East Cambs - Special Needs,Direct Payments
Cambridgeshire County Council,28-Feb-20,51301323985,"-1,979.50",Redacted Personal Data,SERVICE USER,LD - East Locality - Cost of Care,LD - East Cambs - Special Needs,Direct Payments
Cambridgeshire County Council,28-Feb-20,51301323985,"-1,979.50",Redacted Personal Data,SERVICE USER,LD - East Locality - Cost of Care,LD - East Cambs - Special Needs,Direct Payments
Cambridgeshire County Council,28-Feb-20,51301323985,"-1,979.50",Redacted Personal Data,SERVICE USER,LD - East Locality - Cost of Care,LD - East Cambs - Special Needs,Direct Payments
Cambridgeshire County Council,28-Feb-20,51301323985,"-1,979.50",Redacted Personal Data,SERVICE USER,LD - East Locality - Cost of Care,LD - East Cambs - Special Needs,Direct Payments
Cambridgeshire County Council,28-Feb-20,51301323985,"-1,979.50",Redacted Personal Data,SERVICE USER,LD - East Locality - Cost of Care,LD - East Cambs - Special Needs,Direct Payments
Cambridgeshire County Council,28-Feb-20,51301323985,"-1,979.50",Redacted Personal Data,SERVICE USER,LD - East Locality - Cost of Care,LD - East Cambs - Special Needs,Direct Payments
Cambridgeshire County Council,28-Feb-20,51301323985,"-1,979.50",Redacted Personal Data,SERVICE USER,LD - East Locality - Cost of Care,LD - East Cambs - Special Needs,Direct Payments
Cambridgeshire County Council,28-Feb-20,51301323985,"-1,979.50",Redacted Personal Data,SERVICE USER,LD - East Locality - Cost of Care,LD - East Cambs - Special Needs,Direct Payments
Cambridgeshire County Council,28-Feb-20,51301323985,"-1,979.50",Redacted Personal Data,SERVICE USER,LD - East Locality - Cost of Care,LD - East Cambs - Special Needs,Direct Payments
Cambridgeshire County Council,28-Feb-20,51301323985,"-1,979.50",Redacted Personal Data,SERVICE USER,LD - East Locality - Cost of Care,LD - East Cambs - Special Needs,Direct Payments
Cambridgeshire County Council,28-Feb-20,51301323985,"-1,979.50",Redacted Personal Data,SERVICE USER,LD - East Locality - Cost of Care,LD - East Cambs - Special Needs,Direct Payments
Cambridgeshire County Council,28-Feb-20,51301323985,"-1,979.50",Redacted Personal Data,SERVICE USER,LD - East Locality - Cost of Care,LD - East Cambs - Special Needs,Direct Payments
Cambridgeshire County Council,20-Feb-20,51301317526,"-1,967.43",CARETECH COMMUNITY SERVICES,CARE ESTABLISHMENT,LD - City Locality - Cost of Care,LD - City - Care,Residential Care
Cambridgeshire County Council,20-Feb-20,51301317526,"-1,967.43",CARETECH COMMUNITY SERVICES,CARE ESTABLISHMENT,LD - City Locality - Cost of Care,LD - City - Care,Residential Care
Cambridgeshire County Council,20-Feb-20,51301317526,"-1,967.43",CARETECH COMMUNITY SERVICES,CARE ESTABLISHMENT,LD - City Locality - Cost of Care,LD - City - Care,Residential Care
Cambridgeshire County Council,20-Feb-20,51301317526,"-1,967.43",CARETECH COMMUNITY SERVICES,CARE ESTABLISHMENT,LD - City Locality - Cost of Care,LD - City - Care,Residential Care
Cambridgeshire County Council,20-Feb-20,51301317526,"-1,967.43",CARETECH COMMUNITY SERVICES,CARE ESTABLISHMENT,LD - City Locality - Cost of Care,LD - City - Care,Residential Care
Cambridgeshire County Council,20-Feb-20,51301317526,"-1,967.43",CARETECH COMMUNITY SERVICES,CARE ESTABLISHMENT,LD - City Locality - Cost of Care,LD - City - Care,Residential Care
Cambridgeshire County Council,20-Feb-20,51301317526,"-1,967.43",CARETECH COMMUNITY SERVICES,CARE ESTABLISHMENT,LD - City Locality - Cost of Care,LD - City - Care,Residential Care
Cambridgeshire County Council,20-Feb-20,51301317526,"-1,967.43",CARETECH COMMUNITY SERVICES,CARE ESTABLISHMENT,LD - City Locality - Cost of Care,LD - City - Care,Residential Care
Cambridgeshire County Council,20-Feb-20,51301317526,"-1,967.43",CARETECH COMMUNITY SERVICES,CARE ESTABLISHMENT,LD - City Locality - Cost of Care,LD - City - Care,Residential Care
Cambridgeshire County Council,20-Feb-20,51301317526,"-1,967.43",CARETECH COMMUNITY SERVICES,CARE ESTABLISHMENT,LD - City Locality - Cost of Care,LD - City - Care,Residential Care
Cambridgeshire County Council,20-Feb-20,51301317526,"-1,967.43",CARETECH COMMUNITY SERVICES,CARE ESTABLISHMENT,LD - City Locality - Cost of Care,LD - City - Care,Residential Care
Cambridgeshire County Council,20-Feb-20,51301317526,"-1,967.43",CARETECH COMMUNITY SERVICES,CARE ESTABLISHMENT,LD - City Locality - Cost of Care,LD - City - Care,Residential Care
Cambridgeshire County Council,20-Feb-20,51301317526,"-1,967.43",CARETECH COMMUNITY SERVICES,CARE ESTABLISHMENT,LD - City Locality - Cost of Care,LD - City - Care,Residential Care
Cambridgeshire County Council,20-Feb-20,51301317526,"-1,967.43",CARETECH COMMUNITY SERVICES,CARE ESTABLISHMENT,LD - City Locality - Cost of Care,LD - City - Care,Residential Care
Cambridgeshire County Council,20-Feb-20,51301317526,"-1,967.43",CARETECH COMMUNITY SERVICES,CARE ESTABLISHMENT,LD - City Locality - Cost of Care,LD - City - Care,Residential Care
Cambridgeshire County Council,20-Feb-20,51301317526,"-1,967.43",CARETECH COMMUNITY SERVICES,CARE ESTABLISHMENT,LD - City Locality - Cost of Care,LD - City - Care,Residential Care
Cambridgeshire County Council,20-Feb-20,51301317526,"-1,967.43",CARETECH COMMUNITY SERVICES,CARE ESTABLISHMENT,LD - City Locality - Cost of Care,LD - City - Care,Residential Care
Cambridgeshire County Council,20-Feb-20,51301317526,"-1,967.43",CARETECH COMMUNITY SERVICES,CARE ESTABLISHMENT,LD - City Locality - Cost of Care,LD - City - Care,Residential Care
Cambridgeshire County Council,20-Feb-20,51301317526,"-1,967.43",CARETECH COMMUNITY SERVICES,CARE ESTABLISHMENT,LD - City Locality - Cost of Care,LD - City - Care,Residential Care
Cambridgeshire County Council,20-Feb-20,51301317526,"-1,967.43",CARETECH COMMUNITY SERVICES,CARE ESTABLISHMENT,LD - City Locality - Cost of Care,LD - City - Care,Residential Care
Cambridgeshire County Council,20-Feb-20,51301317526,"-1,967.43",CARETECH COMMUNITY SERVICES,CARE ESTABLISHMENT,LD - City Locality - Cost of Care,LD - City - Care,Residential Care
Cambridgeshire County Council,20-Feb-20,51301317526,"-1,967.43",CARETECH COMMUNITY SERVICES,CARE ESTABLISHMENT,LD - City Locality - Cost of Care,LD - City - Care,Residential Care
Cambridgeshire County Council,20-Feb-20,51301317526,"-1,967.43",CARETECH COMMUNITY SERVICES,CARE ESTABLISHMENT,LD - City Locality - Cost of Care,LD - City - Care,Residential Care
Cambridgeshire County Council,20-Feb-20,51301317526,"-1,967.43",CARETECH COMMUNITY SERVICES,CARE ESTABLISHMENT,LD - City Locality - Cost of Care,LD - City - Care,Residential Care
Cambridgeshire County Council,20-Feb-20,51301317526,"-1,967.43",CARETECH COMMUNITY SERVICES,CARE ESTABLISHMENT,LD - City Locality - Cost of Care,LD - City - Care,Residential Care
Cambridgeshire County Council,20-Feb-20,51301317526,"-1,967.43",CARETECH COMMUNITY SERVICES,CARE ESTABLISHMENT,LD - City Locality - Cost of Care,LD - City - Care,Residential Care
Cambridgeshire County Council,20-Feb-20,51301317526,"-1,967.43",CARETECH COMMUNITY SERVICES,CARE ESTABLISHMENT,LD - City Locality - Cost of Care,LD - City - Care,Residential Care
Cambridgeshire County Council,20-Feb-20,51301317526,"-1,967.43",CARETECH COMMUNITY SERVICES,CARE ESTABLISHMENT,LD - City Locality - Cost of Care,LD - City - Care,Residential Care
Cambridgeshire County Council,20-Feb-20,51301317526,"-1,967.43",CARETECH COMMUNITY SERVICES,CARE ESTABLISHMENT,LD - City Locality - Cost of Care,LD - City - Care,Residential Care
Cambridgeshire County Council,20-Feb-20,51301317526,"-1,967.43",CARETECH COMMUNITY SERVICES,CARE ESTABLISHMENT,LD - City Locality - Cost of Care,LD - City - Care,Residential Care
Cambridgeshire County Council,20-Feb-20,51301317526,"-1,967.43",CARETECH COMMUNITY SERVICES,CARE ESTABLISHMENT,LD - City Locality - Cost of Care,LD - City - Care,Residential Care
Cambridgeshire County Council,20-Feb-20,51301317526,"-1,967.43",CARETECH COMMUNITY SERVICES,CARE ESTABLISHMENT,LD - City Locality - Cost of Care,LD - City - Care,Residential Care
Cambridgeshire County Council,20-Feb-20,51301317526,"-1,967.43",CARETECH COMMUNITY SERVICES,CARE ESTABLISHMENT,LD - City Locality - Cost of Care,LD - City - Care,Residential Care
Cambridgeshire County Council,20-Feb-20,51301317526,"-1,967.43",CARETECH COMMUNITY SERVICES,CARE ESTABLISHMENT,LD - City Locality - Cost of Care,LD - City - Care,Residential Care
Cambridgeshire County Council,20-Feb-20,51301317526,"-1,967.43",CARETECH COMMUNITY SERVICES,CARE ESTABLISHMENT,LD - City Locality - Cost of Care,LD - City - Care,Residential Care
Cambridgeshire County Council,20-Feb-20,51301317526,"-1,967.43",CARETECH COMMUNITY SERVICES,CARE ESTABLISHMENT,LD - City Locality - Cost of Care,LD - City - Care,Residential Care
Cambridgeshire County Council,20-Feb-20,51301317526,"-1,967.43",CARETECH COMMUNITY SERVICES,CARE ESTABLISHMENT,LD - City Locality - Cost of Care,LD - City - Care,Residential Care
Cambridgeshire County Council,20-Feb-20,51301317526,"-1,967.43",CARETECH COMMUNITY SERVICES,CARE ESTABLISHMENT,LD - City Locality - Cost of Care,LD - City - Care,Residential Care
Cambridgeshire County Council,20-Feb-20,51301317526,"-1,967.43",CARETECH COMMUNITY SERVICES,CARE ESTABLISHMENT,LD - City Locality - Cost of Care,LD - City - Care,Residential Care
Cambridgeshire County Council,20-Feb-20,51301317526,"-1,967.43",CARETECH COMMUNITY SERVICES,CARE ESTABLISHMENT,LD - City Locality - Cost of Care,LD - City - Care,Residential Care
Cambridgeshire County Council,20-Feb-20,51301317526,"-1,967.43",CARETECH COMMUNITY SERVICES,CARE ESTABLISHMENT,LD - City Locality - Cost of Care,LD - City - Care,Residential Care
Cambridgeshire County Council,20-Feb-20,51301317526,"-1,967.43",CARETECH COMMUNITY SERVICES,CARE ESTABLISHMENT,LD - City Locality - Cost of Care,LD - City - Care,Residential Care
Cambridgeshire County Council,20-Feb-20,51301317526,"-1,967.43",CARETECH COMMUNITY SERVICES,CARE ESTABLISHMENT,LD - City Locality - Cost of Care,LD - City - Care,Residential Care
Cambridgeshire County Council,20-Feb-20,51301317526,"-1,967.43",CARETECH COMMUNITY SERVICES,CARE ESTABLISHMENT,LD - City Locality - Cost of Care,LD - City - Care,Residential Care
Cambridgeshire County Council,20-Feb-20,51301317526,"-1,967.43",CARETECH COMMUNITY SERVICES,CARE ESTABLISHMENT,LD - City Locality - Cost of Care,LD - City - Care,Residential Care
Cambridgeshire County Council,20-Feb-20,51301317526,"-1,967.43",CARETECH COMMUNITY SERVICES,CARE ESTABLISHMENT,LD - City Locality - Cost of Care,LD - City - Care,Residential Care
Cambridgeshire County Council,20-Feb-20,51301317526,"-1,967.43",CARETECH COMMUNITY SERVICES,CARE ESTABLISHMENT,LD - City Locality - Cost of Care,LD - City - Care,Residential Care
Cambridgeshire County Council,27-Feb-20,51301320418,"-1,960.00",PARK HOUSE (BEDFORD),CARE ESTABLISHMENT,Physical Disablity - Cost of Care,Countywide PD Service - Care,Residential Care
Cambridgeshire County Council,27-Feb-20,51301320418,"-1,960.00",PARK HOUSE (BEDFORD),CARE ESTABLISHMENT,Physical Disablity - Cost of Care,Countywide PD Service - Care,Residential Care
Cambridgeshire County Council,27-Feb-20,51301320418,"-1,960.00",PARK HOUSE (BEDFORD),CARE ESTABLISHMENT,Physical Disablity - Cost of Care,Countywide PD Service - Care,Residential Care
Cambridgeshire County Council,27-Feb-20,51301320418,"-1,960.00",PARK HOUSE (BEDFORD),CARE ESTABLISHMENT,Physical Disablity - Cost of Care,Countywide PD Service - Care,Residential Care
Cambridgeshire County Council,27-Feb-20,51301320418,"-1,960.00",PARK HOUSE (BEDFORD),CARE ESTABLISHMENT,Physical Disablity - Cost of Care,Countywide PD Service - Care,Residential Care
Cambridgeshire County Council,27-Feb-20,51301320418,"-1,960.00",PARK HOUSE (BEDFORD),CARE ESTABLISHMENT,Physical Disablity - Cost of Care,Countywide PD Service - Care,Residential Care
Cambridgeshire County Council,27-Feb-20,51301320418,"-1,960.00",PARK HOUSE (BEDFORD),CARE ESTABLISHMENT,Physical Disablity - Cost of Care,Countywide PD Service - Care,Residential Care
Cambridgeshire County Council,27-Feb-20,51301320418,"-1,960.00",PARK HOUSE (BEDFORD),CARE ESTABLISHMENT,Physical Disablity - Cost of Care,Countywide PD Service - Care,Residential Care
Cambridgeshire County Council,27-Feb-20,51301320418,"-1,960.00",PARK HOUSE (BEDFORD),CARE ESTABLISHMENT,Physical Disablity - Cost of Care,Countywide PD Service - Care,Residential Care
Cambridgeshire County Council,27-Feb-20,51301320418,"-1,960.00",PARK HOUSE (BEDFORD),CARE ESTABLISHMENT,Physical Disablity - Cost of Care,Countywide PD Service - Care,Residential Care
Cambridgeshire County Council,27-Feb-20,51301320418,"-1,960.00",PARK HOUSE (BEDFORD),CARE ESTABLISHMENT,Physical Disablity - Cost of Care,Countywide PD Service - Care,Residential Care
Cambridgeshire County Council,27-Feb-20,51301320418,"-1,960.00",PARK HOUSE (BEDFORD),CARE ESTABLISHMENT,Physical Disablity - Cost of Care,Countywide PD Service - Care,Residential Care
Cambridgeshire County Council,27-Feb-20,51301320418,"-1,960.00",PARK HOUSE (BEDFORD),CARE ESTABLISHMENT,Physical Disablity - Cost of Care,Countywide PD Service - Care,Residential Care
Cambridgeshire County Council,27-Feb-20,51301320418,"-1,960.00",PARK HOUSE (BEDFORD),CARE ESTABLISHMENT,Physical Disablity - Cost of Care,Countywide PD Service - Care,Residential Care
Cambridgeshire County Council,27-Feb-20,51301320418,"-1,960.00",PARK HOUSE (BEDFORD),CARE ESTABLISHMENT,Physical Disablity - Cost of Care,Countywide PD Service - Care,Residential Care
Cambridgeshire County Council,27-Feb-20,51301320418,"-1,960.00",PARK HOUSE (BEDFORD),CARE ESTABLISHMENT,Physical Disablity - Cost of Care,Countywide PD Service - Care,Residential Care
Cambridgeshire County Council,27-Feb-20,51301320418,"-1,960.00",PARK HOUSE (BEDFORD),CARE ESTABLISHMENT,Physical Disablity - Cost of Care,Countywide PD Service - Care,Residential Care
Cambridgeshire County Council,27-Feb-20,51301320418,"-1,960.00",PARK HOUSE (BEDFORD),CARE ESTABLISHMENT,Physical Disablity - Cost of Care,Countywide PD Service - Care,Residential Care
Cambridgeshire County Council,27-Feb-20,51301320418,"-1,960.00",PARK HOUSE (BEDFORD),CARE ESTABLISHMENT,Physical Disablity - Cost of Care,Countywide PD Service - Care,Residential Care
Cambridgeshire County Council,27-Feb-20,51301320418,"-1,960.00",PARK HOUSE (BEDFORD),CARE ESTABLISHMENT,Physical Disablity - Cost of Care,Countywide PD Service - Care,Residential Care
Cambridgeshire County Council,27-Feb-20,51301320418,"-1,960.00",PARK HOUSE (BEDFORD),CARE ESTABLISHMENT,Physical Disablity - Cost of Care,Countywide PD Service - Care,Residential Care
Cambridgeshire County Council,27-Feb-20,51301320418,"-1,960.00",PARK HOUSE (BEDFORD),CARE ESTABLISHMENT,Physical Disablity - Cost of Care,Countywide PD Service - Care,Residential Care
Cambridgeshire County Council,27-Feb-20,51301320418,"-1,960.00",PARK HOUSE (BEDFORD),CARE ESTABLISHMENT,Physical Disablity - Cost of Care,Countywide PD Service - Care,Residential Care
Cambridgeshire County Council,27-Feb-20,51301320418,"-1,960.00",PARK HOUSE (BEDFORD),CARE ESTABLISHMENT,Physical Disablity - Cost of Care,Countywide PD Service - Care,Residential Care
Cambridgeshire County Council,27-Feb-20,51301320418,"-1,960.00",PARK HOUSE (BEDFORD),CARE ESTABLISHMENT,Physical Disablity - Cost of Care,Countywide PD Service - Care,Residential Care
Cambridgeshire County Council,27-Feb-20,51301320418,"-1,960.00",PARK HOUSE (BEDFORD),CARE ESTABLISHMENT,Physical Disablity - Cost of Care,Countywide PD Service - Care,Residential Care
Cambridgeshire County Council,27-Feb-20,51301320418,"-1,960.00",PARK HOUSE (BEDFORD),CARE ESTABLISHMENT,Physical Disablity - Cost of Care,Countywide PD Service - Care,Residential Care
Cambridgeshire County Council,27-Feb-20,51301320418,"-1,960.00",PARK HOUSE (BEDFORD),CARE ESTABLISHMENT,Physical Disablity - Cost of Care,Countywide PD Service - Care,Residential Care
Cambridgeshire County Council,27-Feb-20,51301320418,"-1,960.00",PARK HOUSE (BEDFORD),CARE ESTABLISHMENT,Physical Disablity - Cost of Care,Countywide PD Service - Care,Residential Care
Cambridgeshire County Council,27-Feb-20,51301320418,"-1,960.00",PARK HOUSE (BEDFORD),CARE ESTABLISHMENT,Physical Disablity - Cost of Care,Countywide PD Service - Care,Residential Care
Cambridgeshire County Council,27-Feb-20,51301320418,"-1,960.00",PARK HOUSE (BEDFORD),CARE ESTABLISHMENT,Physical Disablity - Cost of Care,Countywide PD Service - Care,Residential Care
Cambridgeshire County Council,27-Feb-20,51301320418,"-1,960.00",PARK HOUSE (BEDFORD),CARE ESTABLISHMENT,Physical Disablity - Cost of Care,Countywide PD Service - Care,Residential Care
Cambridgeshire County Council,27-Feb-20,51301320418,"-1,960.00",PARK HOUSE (BEDFORD),CARE ESTABLISHMENT,Physical Disablity - Cost of Care,Countywide PD Service - Care,Residential Care
Cambridgeshire County Council,27-Feb-20,51301320418,"-1,960.00",PARK HOUSE (BEDFORD),CARE ESTABLISHMENT,Physical Disablity - Cost of Care,Countywide PD Service - Care,Residential Care
Cambridgeshire County Council,27-Feb-20,51301320418,"-1,960.00",PARK HOUSE (BEDFORD),CARE ESTABLISHMENT,Physical Disablity - Cost of Care,Countywide PD Service - Care,Residential Care
Cambridgeshire County Council,27-Feb-20,51301320418,"-1,960.00",PARK HOUSE (BEDFORD),CARE ESTABLISHMENT,Physical Disablity - Cost of Care,Countywide PD Service - Care,Residential Care
Cambridgeshire County Council,27-Feb-20,51301320418,"-1,960.00",PARK HOUSE (BEDFORD),CARE ESTABLISHMENT,Physical Disablity - Cost of Care,Countywide PD Service - Care,Residential Care
Cambridgeshire County Council,27-Feb-20,51301320418,"-1,960.00",PARK HOUSE (BEDFORD),CARE ESTABLISHMENT,Physical Disablity - Cost of Care,Countywide PD Service - Care,Residential Care
Cambridgeshire County Council,27-Feb-20,51301320418,"-1,960.00",PARK HOUSE (BEDFORD),CARE ESTABLISHMENT,Physical Disablity - Cost of Care,Countywide PD Service - Care,Residential Care
Cambridgeshire County Council,27-Feb-20,51301320418,"-1,960.00",PARK HOUSE (BEDFORD),CARE ESTABLISHMENT,Physical Disablity - Cost of Care,Countywide PD Service - Care,Residential Care
Cambridgeshire County Council,27-Feb-20,51301320418,"-1,960.00",PARK HOUSE (BEDFORD),CARE ESTABLISHMENT,Physical Disablity - Cost of Care,Countywide PD Service - Care,Residential Care
Cambridgeshire County Council,27-Feb-20,51301320418,"-1,960.00",PARK HOUSE (BEDFORD),CARE ESTABLISHMENT,Physical Disablity - Cost of Care,Countywide PD Service - Care,Residential Care
Cambridgeshire County Council,27-Feb-20,51301320418,"-1,960.00",PARK HOUSE (BEDFORD),CARE ESTABLISHMENT,Physical Disablity - Cost of Care,Countywide PD Service - Care,Residential Care
Cambridgeshire County Council,27-Feb-20,51301320418,"-1,960.00",PARK HOUSE (BEDFORD),CARE ESTABLISHMENT,Physical Disablity - Cost of Care,Countywide PD Service - Care,Residential Care
Cambridgeshire County Council,27-Feb-20,51301320418,"-1,960.00",PARK HOUSE (BEDFORD),CARE ESTABLISHMENT,Physical Disablity - Cost of Care,Countywide PD Service - Care,Residential Care
Cambridgeshire County Council,27-Feb-20,51301320418,"-1,960.00",PARK HOUSE (BEDFORD),CARE ESTABLISHMENT,Physical Disablity - Cost of Care,Countywide PD Service - Care,Residential Care
Cambridgeshire County Council,27-Feb-20,51301320418,"-1,960.00",PARK HOUSE (BEDFORD),CARE ESTABLISHMENT,Physical Disablity - Cost of Care,Countywide PD Service - Care,Residential Care
Cambridgeshire County Council,27-Feb-20,51301320418,"-1,960.00",PARK HOUSE (BEDFORD),CARE ESTABLISHMENT,Physical Disablity - Cost of Care,Countywide PD Service - Care,Residential Care
Cambridgeshire County Council,27-Feb-20,51301320418,"-1,960.00",PARK HOUSE (BEDFORD),CARE ESTABLISHMENT,Physical Disablity - Cost of Care,Countywide PD Service - Care,Residential Care
Cambridgeshire County Council,27-Feb-20,51301320418,"-1,960.00",PARK HOUSE (BEDFORD),CARE ESTABLISHMENT,Physical Disablity - Cost of Care,Countywide PD Service - Care,Residential Care
Cambridgeshire County Council,27-Feb-20,51301320418,"-1,960.00",PARK HOUSE (BEDFORD),CARE ESTABLISHMENT,Physical Disablity - Cost of Care,Countywide PD Service - Care,Residential Care
Cambridgeshire County Council,27-Feb-20,51301320415,"-1,941.00",GRETTON HOMES,CARE ESTABLISHMENT,LD - City Locality - Cost of Care,LD - City - Special Needs,Residential Care
Cambridgeshire County Council,13-Feb-20,51301313604,"-1,930.86",GLENHOLME HEALTHCARE LTD,CARE ESTABLISHMENT,AMH - Hunts & Fens,Hunts Mental Health Team,Residential Care
Cambridgeshire County Council,13-Feb-20,51301313604,"-1,930.86",GLENHOLME HEALTHCARE LTD,CARE ESTABLISHMENT,AMH - Hunts & Fens,Hunts Mental Health Team,Residential Care
Cambridgeshire County Council,13-Feb-20,51301313604,"-1,930.86",GLENHOLME HEALTHCARE LTD,CARE ESTABLISHMENT,AMH - Hunts & Fens,Hunts Mental Health Team,Residential Care
Cambridgeshire County Council,13-Feb-20,51301313604,"-1,930.86",GLENHOLME HEALTHCARE LTD,CARE ESTABLISHMENT,AMH - Hunts & Fens,Hunts Mental Health Team,Residential Care
Cambridgeshire County Council,13-Feb-20,51301313604,"-1,930.86",GLENHOLME HEALTHCARE LTD,CARE ESTABLISHMENT,AMH - Hunts & Fens,Hunts Mental Health Team,Residential Care
Cambridgeshire County Council,13-Feb-20,51301313604,"-1,930.86",GLENHOLME HEALTHCARE LTD,CARE ESTABLISHMENT,AMH - Hunts & Fens,Hunts Mental Health Team,Residential Care
Cambridgeshire County Council,13-Feb-20,51301313604,"-1,930.86",GLENHOLME HEALTHCARE LTD,CARE ESTABLISHMENT,AMH - Hunts & Fens,Hunts Mental Health Team,Residential Care
Cambridgeshire County Council,13-Feb-20,51301313604,"-1,930.86",GLENHOLME HEALTHCARE LTD,CARE ESTABLISHMENT,AMH - Hunts & Fens,Hunts Mental Health Team,Residential Care
Cambridgeshire County Council,13-Feb-20,51301313604,"-1,930.86",GLENHOLME HEALTHCARE LTD,CARE ESTABLISHMENT,AMH - Hunts & Fens,Hunts Mental Health Team,Residential Care
Cambridgeshire County Council,13-Feb-20,51301313604,"-1,930.86",GLENHOLME HEALTHCARE LTD,CARE ESTABLISHMENT,AMH - Hunts & Fens,Hunts Mental Health Team,Residential Care
Cambridgeshire County Council,13-Feb-20,51301313604,"-1,930.86",GLENHOLME HEALTHCARE LTD,CARE ESTABLISHMENT,AMH - Hunts & Fens,Hunts Mental Health Team,Residential Care
Cambridgeshire County Council,13-Feb-20,51301313604,"-1,930.86",GLENHOLME HEALTHCARE LTD,CARE ESTABLISHMENT,AMH - Hunts & Fens,Hunts Mental Health Team,Residential Care
Cambridgeshire County Council,13-Feb-20,51301313604,"-1,930.86",GLENHOLME HEALTHCARE LTD,CARE ESTABLISHMENT,AMH - Hunts & Fens,Hunts Mental Health Team,Residential Care
Cambridgeshire County Council,13-Feb-20,51301313604,"-1,930.86",GLENHOLME HEALTHCARE LTD,CARE ESTABLISHMENT,AMH - Hunts & Fens,Hunts Mental Health Team,Residential Care
Cambridgeshire County Council,13-Feb-20,51301313604,"-1,930.86",GLENHOLME HEALTHCARE LTD,CARE ESTABLISHMENT,AMH - Hunts & Fens,Hunts Mental Health Team,Residential Care
Cambridgeshire County Council,13-Feb-20,51301313604,"-1,930.86",GLENHOLME HEALTHCARE LTD,CARE ESTABLISHMENT,AMH - Hunts & Fens,Hunts Mental Health Team,Residential Care
Cambridgeshire County Council,13-Feb-20,51301313604,"-1,930.86",GLENHOLME HEALTHCARE LTD,CARE ESTABLISHMENT,AMH - Hunts & Fens,Hunts Mental Health Team,Residential Care
Cambridgeshire County Council,13-Feb-20,51301313604,"-1,930.86",GLENHOLME HEALTHCARE LTD,CARE ESTABLISHMENT,AMH - Hunts & Fens,Hunts Mental Health Team,Residential Care
Cambridgeshire County Council,13-Feb-20,51301313604,"-1,930.86",GLENHOLME HEALTHCARE LTD,CARE ESTABLISHMENT,AMH - Hunts & Fens,Hunts Mental Health Team,Residential Care
Cambridgeshire County Council,13-Feb-20,51301313604,"-1,930.86",GLENHOLME HEALTHCARE LTD,CARE ESTABLISHMENT,AMH - Hunts & Fens,Hunts Mental Health Team,Residential Care
Cambridgeshire County Council,13-Feb-20,51301313604,"-1,930.86",GLENHOLME HEALTHCARE LTD,CARE ESTABLISHMENT,AMH - Hunts & Fens,Hunts Mental Health Team,Residential Care
Cambridgeshire County Council,13-Feb-20,51301313604,"-1,930.86",GLENHOLME HEALTHCARE LTD,CARE ESTABLISHMENT,AMH - Hunts & Fens,Hunts Mental Health Team,Residential Care
Cambridgeshire County Council,13-Feb-20,51301313604,"-1,930.86",GLENHOLME HEALTHCARE LTD,CARE ESTABLISHMENT,AMH - Hunts & Fens,Hunts Mental Health Team,Residential Care
Cambridgeshire County Council,13-Feb-20,51301313604,"-1,930.86",GLENHOLME HEALTHCARE LTD,CARE ESTABLISHMENT,AMH - Hunts & Fens,Hunts Mental Health Team,Residential Care
Cambridgeshire County Council,13-Feb-20,51301313604,"-1,930.86",GLENHOLME HEALTHCARE LTD,CARE ESTABLISHMENT,AMH - Hunts & Fens,Hunts Mental Health Team,Residential Care
Cambridgeshire County Council,13-Feb-20,51301313604,"-1,930.86",GLENHOLME HEALTHCARE LTD,CARE ESTABLISHMENT,AMH - Hunts & Fens,Hunts Mental Health Team,Residential Care
Cambridgeshire County Council,13-Feb-20,51301313604,"-1,930.86",GLENHOLME HEALTHCARE LTD,CARE ESTABLISHMENT,AMH - Hunts & Fens,Hunts Mental Health Team,Residential Care
Cambridgeshire County Council,13-Feb-20,51301313604,"-1,930.86",GLENHOLME HEALTHCARE LTD,CARE ESTABLISHMENT,AMH - Hunts & Fens,Hunts Mental Health Team,Residential Care
Cambridgeshire County Council,13-Feb-20,51301313604,"-1,930.86",GLENHOLME HEALTHCARE LTD,CARE ESTABLISHMENT,AMH - Hunts & Fens,Hunts Mental Health Team,Residential Care
Cambridgeshire County Council,13-Feb-20,51301313604,"-1,930.86",GLENHOLME HEALTHCARE LTD,CARE ESTABLISHMENT,AMH - Hunts & Fens,Hunts Mental Health Team,Residential Care
Cambridgeshire County Council,13-Feb-20,51301313604,"-1,930.86",GLENHOLME HEALTHCARE LTD,CARE ESTABLISHMENT,AMH - Hunts & Fens,Hunts Mental Health Team,Residential Care
Cambridgeshire County Council,13-Feb-20,51301313604,"-1,930.86",GLENHOLME HEALTHCARE LTD,CARE ESTABLISHMENT,AMH - Hunts & Fens,Hunts Mental Health Team,Residential Care
Cambridgeshire County Council,13-Feb-20,51301313604,"-1,930.86",GLENHOLME HEALTHCARE LTD,CARE ESTABLISHMENT,AMH - Hunts & Fens,Hunts Mental Health Team,Residential Care
Cambridgeshire County Council,13-Feb-20,51301313604,"-1,930.86",GLENHOLME HEALTHCARE LTD,CARE ESTABLISHMENT,AMH - Hunts & Fens,Hunts Mental Health Team,Residential Care
Cambridgeshire County Council,13-Feb-20,51301313604,"-1,930.86",GLENHOLME HEALTHCARE LTD,CARE ESTABLISHMENT,AMH - Hunts & Fens,Hunts Mental Health Team,Residential Care
Cambridgeshire County Council,13-Feb-20,51301313604,"-1,930.86",GLENHOLME HEALTHCARE LTD,CARE ESTABLISHMENT,AMH - Hunts & Fens,Hunts Mental Health Team,Residential Care
Cambridgeshire County Council,13-Feb-20,51301313604,"-1,930.86",GLENHOLME HEALTHCARE LTD,CARE ESTABLISHMENT,AMH - Hunts & Fens,Hunts Mental Health Team,Residential Care
Cambridgeshire County Council,13-Feb-20,51301313604,"-1,930.86",GLENHOLME HEALTHCARE LTD,CARE ESTABLISHMENT,AMH - Hunts & Fens,Hunts Mental Health Team,Residential Care
Cambridgeshire County Council,13-Feb-20,51301313604,"-1,930.86",GLENHOLME HEALTHCARE LTD,CARE ESTABLISHMENT,AMH - Hunts & Fens,Hunts Mental Health Team,Residential Care
Cambridgeshire County Council,13-Feb-20,51301313604,"-1,930.86",GLENHOLME HEALTHCARE LTD,CARE ESTABLISHMENT,AMH - Hunts & Fens,Hunts Mental Health Team,Residential Care
Cambridgeshire County Council,13-Feb-20,51301313604,"-1,930.86",GLENHOLME HEALTHCARE LTD,CARE ESTABLISHMENT,AMH - Hunts & Fens,Hunts Mental Health Team,Residential Care
Cambridgeshire County Council,13-Feb-20,51301313604,"-1,930.86",GLENHOLME HEALTHCARE LTD,CARE ESTABLISHMENT,AMH - Hunts & Fens,Hunts Mental Health Team,Residential Care
Cambridgeshire County Council,13-Feb-20,51301313604,"-1,930.86",GLENHOLME HEALTHCARE LTD,CARE ESTABLISHMENT,AMH - Hunts & Fens,Hunts Mental Health Team,Residential Care
Cambridgeshire County Council,13-Feb-20,51301313604,"-1,930.86",GLENHOLME HEALTHCARE LTD,CARE ESTABLISHMENT,AMH - Hunts & Fens,Hunts Mental Health Team,Residential Care
Cambridgeshire County Council,13-Feb-20,51301313604,"-1,930.86",GLENHOLME HEALTHCARE LTD,CARE ESTABLISHMENT,AMH - Hunts & Fens,Hunts Mental Health Team,Residential Care
Cambridgeshire County Council,13-Feb-20,51301313604,"-1,930.86",GLENHOLME HEALTHCARE LTD,CARE ESTABLISHMENT,AMH - Hunts & Fens,Hunts Mental Health Team,Residential Care
Cambridgeshire County Council,13-Feb-20,51301313604,"-1,930.86",GLENHOLME HEALTHCARE LTD,CARE ESTABLISHMENT,AMH - Hunts & Fens,Hunts Mental Health Team,Residential Care
Cambridgeshire County Council,20-Feb-20,51301317378,"-1,896.03",CARETECH COMMUNITY SERVICES,CARE ESTABLISHMENT,LD - Fenland Locality - Cost of Care,LD - Fenland  - Care,Supported Living
Cambridgeshire County Council,20-Feb-20,51301317378,"-1,896.03",CARETECH COMMUNITY SERVICES,CARE ESTABLISHMENT,LD - Fenland Locality - Cost of Care,LD - Fenland  - Care,Supported Living
Cambridgeshire County Council,20-Feb-20,51301317378,"-1,896.03",CARETECH COMMUNITY SERVICES,CARE ESTABLISHMENT,LD - Fenland Locality - Cost of Care,LD - Fenland  - Care,Supported Living
Cambridgeshire County Council,20-Feb-20,51301317378,"-1,896.03",CARETECH COMMUNITY SERVICES,CARE ESTABLISHMENT,LD - Fenland Locality - Cost of Care,LD - Fenland  - Care,Supported Living
Cambridgeshire County Council,20-Feb-20,51301317378,"-1,896.03",CARETECH COMMUNITY SERVICES,CARE ESTABLISHMENT,LD - Fenland Locality - Cost of Care,LD - Fenland  - Care,Supported Living
Cambridgeshire County Council,20-Feb-20,51301317378,"-1,896.03",CARETECH COMMUNITY SERVICES,CARE ESTABLISHMENT,LD - Fenland Locality - Cost of Care,LD - Fenland  - Care,Supported Living
Cambridgeshire County Council,20-Feb-20,51301317378,"-1,896.03",CARETECH COMMUNITY SERVICES,CARE ESTABLISHMENT,LD - Fenland Locality - Cost of Care,LD - Fenland  - Care,Supported Living
Cambridgeshire County Council,20-Feb-20,51301317378,"-1,896.03",CARETECH COMMUNITY SERVICES,CARE ESTABLISHMENT,LD - Fenland Locality - Cost of Care,LD - Fenland  - Care,Supported Living
Cambridgeshire County Council,20-Feb-20,51301317378,"-1,896.03",CARETECH COMMUNITY SERVICES,CARE ESTABLISHMENT,LD - Fenland Locality - Cost of Care,LD - Fenland  - Care,Supported Living
Cambridgeshire County Council,20-Feb-20,51301317378,"-1,896.03",CARETECH COMMUNITY SERVICES,CARE ESTABLISHMENT,LD - Fenland Locality - Cost of Care,LD - Fenland  - Care,Supported Living
Cambridgeshire County Council,20-Feb-20,51301317378,"-1,896.03",CARETECH COMMUNITY SERVICES,CARE ESTABLISHMENT,LD - Fenland Locality - Cost of Care,LD - Fenland  - Care,Supported Living
Cambridgeshire County Council,20-Feb-20,51301317378,"-1,896.03",CARETECH COMMUNITY SERVICES,CARE ESTABLISHMENT,LD - Fenland Locality - Cost of Care,LD - Fenland  - Care,Supported Living
Cambridgeshire County Council,20-Feb-20,51301317378,"-1,896.03",CARETECH COMMUNITY SERVICES,CARE ESTABLISHMENT,LD - Fenland Locality - Cost of Care,LD - Fenland  - Care,Supported Living
Cambridgeshire County Council,20-Feb-20,51301317378,"-1,896.03",CARETECH COMMUNITY SERVICES,CARE ESTABLISHMENT,LD - Fenland Locality - Cost of Care,LD - Fenland  - Care,Supported Living
Cambridgeshire County Council,20-Feb-20,51301317378,"-1,896.03",CARETECH COMMUNITY SERVICES,CARE ESTABLISHMENT,LD - Fenland Locality - Cost of Care,LD - Fenland  - Care,Supported Living
Cambridgeshire County Council,20-Feb-20,51301317378,"-1,896.03",CARETECH COMMUNITY SERVICES,CARE ESTABLISHMENT,LD - Fenland Locality - Cost of Care,LD - Fenland  - Care,Supported Living
Cambridgeshire County Council,20-Feb-20,51301317378,"-1,896.03",CARETECH COMMUNITY SERVICES,CARE ESTABLISHMENT,LD - Fenland Locality - Cost of Care,LD - Fenland  - Care,Supported Living
Cambridgeshire County Council,20-Feb-20,51301317378,"-1,896.03",CARETECH COMMUNITY SERVICES,CARE ESTABLISHMENT,LD - Fenland Locality - Cost of Care,LD - Fenland  - Care,Supported Living
Cambridgeshire County Council,20-Feb-20,51301317378,"-1,896.03",CARETECH COMMUNITY SERVICES,CARE ESTABLISHMENT,LD - Fenland Locality - Cost of Care,LD - Fenland  - Care,Supported Living
Cambridgeshire County Council,20-Feb-20,51301317378,"-1,896.03",CARETECH COMMUNITY SERVICES,CARE ESTABLISHMENT,LD - Fenland Locality - Cost of Care,LD - Fenland  - Care,Supported Living
Cambridgeshire County Council,20-Feb-20,51301317378,"-1,896.03",CARETECH COMMUNITY SERVICES,CARE ESTABLISHMENT,LD - Fenland Locality - Cost of Care,LD - Fenland  - Care,Supported Living
Cambridgeshire County Council,20-Feb-20,51301317378,"-1,896.03",CARETECH COMMUNITY SERVICES,CARE ESTABLISHMENT,LD - Fenland Locality - Cost of Care,LD - Fenland  - Care,Supported Living
Cambridgeshire County Council,20-Feb-20,51301317378,"-1,896.03",CARETECH COMMUNITY SERVICES,CARE ESTABLISHMENT,LD - Fenland Locality - Cost of Care,LD - Fenland  - Care,Supported Living
Cambridgeshire County Council,20-Feb-20,51301317378,"-1,896.03",CARETECH COMMUNITY SERVICES,CARE ESTABLISHMENT,LD - Fenland Locality - Cost of Care,LD - Fenland  - Care,Supported Living
Cambridgeshire County Council,20-Feb-20,51301317378,"-1,896.03",CARETECH COMMUNITY SERVICES,CARE ESTABLISHMENT,LD - Fenland Locality - Cost of Care,LD - Fenland  - Care,Supported Living
Cambridgeshire County Council,20-Feb-20,51301317378,"-1,896.03",CARETECH COMMUNITY SERVICES,CARE ESTABLISHMENT,LD - Fenland Locality - Cost of Care,LD - Fenland  - Care,Supported Living
Cambridgeshire County Council,20-Feb-20,51301317378,"-1,896.03",CARETECH COMMUNITY SERVICES,CARE ESTABLISHMENT,LD - Fenland Locality - Cost of Care,LD - Fenland  - Care,Supported Living
Cambridgeshire County Council,20-Feb-20,51301317378,"-1,896.03",CARETECH COMMUNITY SERVICES,CARE ESTABLISHMENT,LD - Fenland Locality - Cost of Care,LD - Fenland  - Care,Supported Living
Cambridgeshire County Council,20-Feb-20,51301317378,"-1,896.03",CARETECH COMMUNITY SERVICES,CARE ESTABLISHMENT,LD - Fenland Locality - Cost of Care,LD - Fenland  - Care,Supported Living
Cambridgeshire County Council,20-Feb-20,51301317378,"-1,896.03",CARETECH COMMUNITY SERVICES,CARE ESTABLISHMENT,LD - Fenland Locality - Cost of Care,LD - Fenland  - Care,Supported Living
Cambridgeshire County Council,20-Feb-20,51301317378,"-1,896.03",CARETECH COMMUNITY SERVICES,CARE ESTABLISHMENT,LD - Fenland Locality - Cost of Care,LD - Fenland  - Care,Supported Living
Cambridgeshire County Council,20-Feb-20,51301317378,"-1,896.03",CARETECH COMMUNITY SERVICES,CARE ESTABLISHMENT,LD - Fenland Locality - Cost of Care,LD - Fenland  - Care,Supported Living
Cambridgeshire County Council,20-Feb-20,51301317378,"-1,896.03",CARETECH COMMUNITY SERVICES,CARE ESTABLISHMENT,LD - Fenland Locality - Cost of Care,LD - Fenland  - Care,Supported Living
Cambridgeshire County Council,20-Feb-20,51301317378,"-1,896.03",CARETECH COMMUNITY SERVICES,CARE ESTABLISHMENT,LD - Fenland Locality - Cost of Care,LD - Fenland  - Care,Supported Living
Cambridgeshire County Council,20-Feb-20,51301317378,"-1,896.03",CARETECH COMMUNITY SERVICES,CARE ESTABLISHMENT,LD - Fenland Locality - Cost of Care,LD - Fenland  - Care,Supported Living
Cambridgeshire County Council,20-Feb-20,51301317378,"-1,896.03",CARETECH COMMUNITY SERVICES,CARE ESTABLISHMENT,LD - Fenland Locality - Cost of Care,LD - Fenland  - Care,Supported Living
Cambridgeshire County Council,13-Feb-20,51301313602,"-1,890.28",GLENHOLME HEALTHCARE LTD,CARE ESTABLISHMENT,LD - Hunts Locality - Cost of Care,LD - Huntingdonshire - Care,Residential Care
Cambridgeshire County Council,13-Feb-20,51301313602,"-1,890.28",GLENHOLME HEALTHCARE LTD,CARE ESTABLISHMENT,LD - Hunts Locality - Cost of Care,LD - Huntingdonshire - Care,Residential Care
Cambridgeshire County Council,13-Feb-20,51301313602,"-1,890.28",GLENHOLME HEALTHCARE LTD,CARE ESTABLISHMENT,LD - Hunts Locality - Cost of Care,LD - Huntingdonshire - Care,Residential Care
Cambridgeshire County Council,13-Feb-20,51301313602,"-1,890.28",GLENHOLME HEALTHCARE LTD,CARE ESTABLISHMENT,LD - Hunts Locality - Cost of Care,LD - Huntingdonshire - Care,Residential Care
Cambridgeshire County Council,13-Feb-20,51301313602,"-1,890.28",GLENHOLME HEALTHCARE LTD,CARE ESTABLISHMENT,LD - Hunts Locality - Cost of Care,LD - Huntingdonshire - Care,Residential Care
Cambridgeshire County Council,13-Feb-20,51301313602,"-1,890.28",GLENHOLME HEALTHCARE LTD,CARE ESTABLISHMENT,LD - Hunts Locality - Cost of Care,LD - Huntingdonshire - Care,Residential Care
Cambridgeshire County Council,13-Feb-20,51301313602,"-1,890.28",GLENHOLME HEALTHCARE LTD,CARE ESTABLISHMENT,LD - Hunts Locality - Cost of Care,LD - Huntingdonshire - Care,Residential Care
Cambridgeshire County Council,13-Feb-20,51301313602,"-1,890.28",GLENHOLME HEALTHCARE LTD,CARE ESTABLISHMENT,LD - Hunts Locality - Cost of Care,LD - Huntingdonshire - Care,Residential Care
Cambridgeshire County Council,13-Feb-20,51301313602,"-1,890.28",GLENHOLME HEALTHCARE LTD,CARE ESTABLISHMENT,LD - Hunts Locality - Cost of Care,LD - Huntingdonshire - Care,Residential Care
Cambridgeshire County Council,13-Feb-20,51301313602,"-1,890.28",GLENHOLME HEALTHCARE LTD,CARE ESTABLISHMENT,LD - Hunts Locality - Cost of Care,LD - Huntingdonshire - Care,Residential Care
Cambridgeshire County Council,13-Feb-20,51301313602,"-1,890.28",GLENHOLME HEALTHCARE LTD,CARE ESTABLISHMENT,LD - Hunts Locality - Cost of Care,LD - Huntingdonshire - Care,Residential Care
Cambridgeshire County Council,13-Feb-20,51301313602,"-1,890.28",GLENHOLME HEALTHCARE LTD,CARE ESTABLISHMENT,LD - Hunts Locality - Cost of Care,LD - Huntingdonshire - Care,Residential Care
Cambridgeshire County Council,13-Feb-20,51301313602,"-1,890.28",GLENHOLME HEALTHCARE LTD,CARE ESTABLISHMENT,LD - Hunts Locality - Cost of Care,LD - Huntingdonshire - Care,Residential Care
Cambridgeshire County Council,13-Feb-20,51301313602,"-1,890.28",GLENHOLME HEALTHCARE LTD,CARE ESTABLISHMENT,LD - Hunts Locality - Cost of Care,LD - Huntingdonshire - Care,Residential Care
Cambridgeshire County Council,13-Feb-20,51301313602,"-1,890.28",GLENHOLME HEALTHCARE LTD,CARE ESTABLISHMENT,LD - Hunts Locality - Cost of Care,LD - Huntingdonshire - Care,Residential Care
Cambridgeshire County Council,13-Feb-20,51301313602,"-1,890.28",GLENHOLME HEALTHCARE LTD,CARE ESTABLISHMENT,LD - Hunts Locality - Cost of Care,LD - Huntingdonshire - Care,Residential Care
Cambridgeshire County Council,13-Feb-20,51301313602,"-1,890.28",GLENHOLME HEALTHCARE LTD,CARE ESTABLISHMENT,LD - Hunts Locality - Cost of Care,LD - Huntingdonshire - Care,Residential Care
Cambridgeshire County Council,13-Feb-20,51301313602,"-1,890.28",GLENHOLME HEALTHCARE LTD,CARE ESTABLISHMENT,LD - Hunts Locality - Cost of Care,LD - Huntingdonshire - Care,Residential Care
Cambridgeshire County Council,13-Feb-20,51301313602,"-1,890.28",GLENHOLME HEALTHCARE LTD,CARE ESTABLISHMENT,LD - Hunts Locality - Cost of Care,LD - Huntingdonshire - Care,Residential Care
Cambridgeshire County Council,13-Feb-20,51301313602,"-1,890.28",GLENHOLME HEALTHCARE LTD,CARE ESTABLISHMENT,LD - Hunts Locality - Cost of Care,LD - Huntingdonshire - Care,Residential Care
Cambridgeshire County Council,13-Feb-20,51301313602,"-1,890.28",GLENHOLME HEALTHCARE LTD,CARE ESTABLISHMENT,LD - Hunts Locality - Cost of Care,LD - Huntingdonshire - Care,Residential Care
Cambridgeshire County Council,13-Feb-20,51301313602,"-1,890.28",GLENHOLME HEALTHCARE LTD,CARE ESTABLISHMENT,LD - Hunts Locality - Cost of Care,LD - Huntingdonshire - Care,Residential Care
Cambridgeshire County Council,13-Feb-20,51301313602,"-1,890.28",GLENHOLME HEALTHCARE LTD,CARE ESTABLISHMENT,LD - Hunts Locality - Cost of Care,LD - Huntingdonshire - Care,Residential Care
Cambridgeshire County Council,13-Feb-20,51301313602,"-1,890.28",GLENHOLME HEALTHCARE LTD,CARE ESTABLISHMENT,LD - Hunts Locality - Cost of Care,LD - Huntingdonshire - Care,Residential Care
Cambridgeshire County Council,13-Feb-20,51301313602,"-1,890.28",GLENHOLME HEALTHCARE LTD,CARE ESTABLISHMENT,LD - Hunts Locality - Cost of Care,LD - Huntingdonshire - Care,Residential Care
Cambridgeshire County Council,13-Feb-20,51301313602,"-1,890.28",GLENHOLME HEALTHCARE LTD,CARE ESTABLISHMENT,LD - Hunts Locality - Cost of Care,LD - Huntingdonshire - Care,Residential Care
Cambridgeshire County Council,13-Feb-20,51301313602,"-1,890.28",GLENHOLME HEALTHCARE LTD,CARE ESTABLISHMENT,LD - Hunts Locality - Cost of Care,LD - Huntingdonshire - Care,Residential Care
Cambridgeshire County Council,13-Feb-20,51301313602,"-1,890.28",GLENHOLME HEALTHCARE LTD,CARE ESTABLISHMENT,LD - Hunts Locality - Cost of Care,LD - Huntingdonshire - Care,Residential Care
Cambridgeshire County Council,13-Feb-20,51301313602,"-1,890.28",GLENHOLME HEALTHCARE LTD,CARE ESTABLISHMENT,LD - Hunts Locality - Cost of Care,LD - Huntingdonshire - Care,Residential Care
Cambridgeshire County Council,13-Feb-20,51301313602,"-1,890.28",GLENHOLME HEALTHCARE LTD,CARE ESTABLISHMENT,LD - Hunts Locality - Cost of Care,LD - Huntingdonshire - Care,Residential Care
Cambridgeshire County Council,13-Feb-20,51301313602,"-1,890.28",GLENHOLME HEALTHCARE LTD,CARE ESTABLISHMENT,LD - Hunts Locality - Cost of Care,LD - Huntingdonshire - Care,Residential Care
Cambridgeshire County Council,13-Feb-20,51301313602,"-1,890.28",GLENHOLME HEALTHCARE LTD,CARE ESTABLISHMENT,LD - Hunts Locality - Cost of Care,LD - Huntingdonshire - Care,Residential Care
Cambridgeshire County Council,13-Feb-20,51301313602,"-1,890.28",GLENHOLME HEALTHCARE LTD,CARE ESTABLISHMENT,LD - Hunts Locality - Cost of Care,LD - Huntingdonshire - Care,Residential Care
Cambridgeshire County Council,13-Feb-20,51301313602,"-1,890.28",GLENHOLME HEALTHCARE LTD,CARE ESTABLISHMENT,LD - Hunts Locality - Cost of Care,LD - Huntingdonshire - Care,Residential Care
Cambridgeshire County Council,13-Feb-20,51301313602,"-1,890.28",GLENHOLME HEALTHCARE LTD,CARE ESTABLISHMENT,LD - Hunts Locality - Cost of Care,LD - Huntingdonshire - Care,Residential Care
Cambridgeshire County Council,13-Feb-20,51301313602,"-1,890.28",GLENHOLME HEALTHCARE LTD,CARE ESTABLISHMENT,LD - Hunts Locality - Cost of Care,LD - Huntingdonshire - Care,Residential Care
Cambridgeshire County Council,13-Feb-20,51301313602,"-1,890.28",GLENHOLME HEALTHCARE LTD,CARE ESTABLISHMENT,LD - Hunts Locality - Cost of Care,LD - Huntingdonshire - Care,Residential Care
Cambridgeshire County Council,13-Feb-20,51301313602,"-1,890.28",GLENHOLME HEALTHCARE LTD,CARE ESTABLISHMENT,LD - Hunts Locality - Cost of Care,LD - Huntingdonshire - Care,Residential Care
Cambridgeshire County Council,13-Feb-20,51301313602,"-1,890.28",GLENHOLME HEALTHCARE LTD,CARE ESTABLISHMENT,LD - Hunts Locality - Cost of Care,LD - Huntingdonshire - Care,Residential Care
Cambridgeshire County Council,13-Feb-20,51301313602,"-1,890.28",GLENHOLME HEALTHCARE LTD,CARE ESTABLISHMENT,LD - Hunts Locality - Cost of Care,LD - Huntingdonshire - Care,Residential Care
Cambridgeshire County Council,13-Feb-20,51301313602,"-1,890.28",GLENHOLME HEALTHCARE LTD,CARE ESTABLISHMENT,LD - Hunts Locality - Cost of Care,LD - Huntingdonshire - Care,Residential Care
Cambridgeshire County Council,13-Feb-20,51301313602,"-1,890.28",GLENHOLME HEALTHCARE LTD,CARE ESTABLISHMENT,LD - Hunts Locality - Cost of Care,LD - Huntingdonshire - Care,Residential Care
Cambridgeshire County Council,13-Feb-20,51301313602,"-1,890.28",GLENHOLME HEALTHCARE LTD,CARE ESTABLISHMENT,LD - Hunts Locality - Cost of Care,LD - Huntingdonshire - Care,Residential Care
Cambridgeshire County Council,13-Feb-20,51301313602,"-1,890.28",GLENHOLME HEALTHCARE LTD,CARE ESTABLISHMENT,LD - Hunts Locality - Cost of Care,LD - Huntingdonshire - Care,Residential Care
Cambridgeshire County Council,13-Feb-20,51301313602,"-1,890.28",GLENHOLME HEALTHCARE LTD,CARE ESTABLISHMENT,LD - Hunts Locality - Cost of Care,LD - Huntingdonshire - Care,Residential Care
Cambridgeshire County Council,13-Feb-20,51301313602,"-1,890.28",GLENHOLME HEALTHCARE LTD,CARE ESTABLISHMENT,LD - Hunts Locality - Cost of Care,LD - Huntingdonshire - Care,Residential Care
Cambridgeshire County Council,13-Feb-20,51301313602,"-1,890.28",GLENHOLME HEALTHCARE LTD,CARE ESTABLISHMENT,LD - Hunts Locality - Cost of Care,LD - Huntingdonshire - Care,Residential Care
Cambridgeshire County Council,20-Feb-20,51301317428,"-1,882.24",SENSE (MIDLANDS),CARE ESTABLISHMENT,LD - City Locality - Cost of Care,LD - City - Care,Residential Care
Cambridgeshire County Council,20-Feb-20,51301317428,"-1,882.24",SENSE (MIDLANDS),CARE ESTABLISHMENT,LD - City Locality - Cost of Care,LD - City - Care,Residential Care
Cambridgeshire County Council,20-Feb-20,51301317428,"-1,882.24",SENSE (MIDLANDS),CARE ESTABLISHMENT,LD - City Locality - Cost of Care,LD - City - Care,Residential Care
Cambridgeshire County Council,20-Feb-20,51301317428,"-1,882.24",SENSE (MIDLANDS),CARE ESTABLISHMENT,LD - City Locality - Cost of Care,LD - City - Care,Residential Care
Cambridgeshire County Council,20-Feb-20,51301317428,"-1,882.24",SENSE (MIDLANDS),CARE ESTABLISHMENT,LD - City Locality - Cost of Care,LD - City - Care,Residential Care
Cambridgeshire County Council,20-Feb-20,51301317428,"-1,882.24",SENSE (MIDLANDS),CARE ESTABLISHMENT,LD - City Locality - Cost of Care,LD - City - Care,Residential Care
Cambridgeshire County Council,20-Feb-20,51301317428,"-1,882.24",SENSE (MIDLANDS),CARE ESTABLISHMENT,LD - City Locality - Cost of Care,LD - City - Care,Residential Care
Cambridgeshire County Council,20-Feb-20,51301317428,"-1,882.24",SENSE (MIDLANDS),CARE ESTABLISHMENT,LD - City Locality - Cost of Care,LD - City - Care,Residential Care
Cambridgeshire County Council,20-Feb-20,51301317428,"-1,882.24",SENSE (MIDLANDS),CARE ESTABLISHMENT,LD - City Locality - Cost of Care,LD - City - Care,Residential Care
Cambridgeshire County Council,20-Feb-20,51301317428,"-1,882.24",SENSE (MIDLANDS),CARE ESTABLISHMENT,LD - City Locality - Cost of Care,LD - City - Care,Residential Care
Cambridgeshire County Council,20-Feb-20,51301317428,"-1,882.24",SENSE (MIDLANDS),CARE ESTABLISHMENT,LD - City Locality - Cost of Care,LD - City - Care,Residential Care
Cambridgeshire County Council,20-Feb-20,51301317428,"-1,882.24",SENSE (MIDLANDS),CARE ESTABLISHMENT,LD - City Locality - Cost of Care,LD - City - Care,Residential Care
Cambridgeshire County Council,20-Feb-20,51301317428,"-1,882.24",SENSE (MIDLANDS),CARE ESTABLISHMENT,LD - City Locality - Cost of Care,LD - City - Care,Residential Care
Cambridgeshire County Council,20-Feb-20,51301317428,"-1,882.24",SENSE (MIDLANDS),CARE ESTABLISHMENT,LD - City Locality - Cost of Care,LD - City - Care,Residential Care
Cambridgeshire County Council,20-Feb-20,51301317428,"-1,882.24",SENSE (MIDLANDS),CARE ESTABLISHMENT,LD - City Locality - Cost of Care,LD - City - Care,Residential Care
Cambridgeshire County Council,20-Feb-20,51301317428,"-1,882.24",SENSE (MIDLANDS),CARE ESTABLISHMENT,LD - City Locality - Cost of Care,LD - City - Care,Residential Care
Cambridgeshire County Council,20-Feb-20,51301317428,"-1,882.24",SENSE (MIDLANDS),CARE ESTABLISHMENT,LD - City Locality - Cost of Care,LD - City - Care,Residential Care
Cambridgeshire County Council,20-Feb-20,51301317428,"-1,882.24",SENSE (MIDLANDS),CARE ESTABLISHMENT,LD - City Locality - Cost of Care,LD - City - Care,Residential Care
Cambridgeshire County Council,20-Feb-20,51301317428,"-1,882.24",SENSE (MIDLANDS),CARE ESTABLISHMENT,LD - City Locality - Cost of Care,LD - City - Care,Residential Care
Cambridgeshire County Council,20-Feb-20,51301317428,"-1,882.24",SENSE (MIDLANDS),CARE ESTABLISHMENT,LD - City Locality - Cost of Care,LD - City - Care,Residential Care
Cambridgeshire County Council,20-Feb-20,51301317428,"-1,882.24",SENSE (MIDLANDS),CARE ESTABLISHMENT,LD - City Locality - Cost of Care,LD - City - Care,Residential Care
Cambridgeshire County Council,20-Feb-20,51301317428,"-1,882.24",SENSE (MIDLANDS),CARE ESTABLISHMENT,LD - City Locality - Cost of Care,LD - City - Care,Residential Care
Cambridgeshire County Council,20-Feb-20,51301317428,"-1,882.24",SENSE (MIDLANDS),CARE ESTABLISHMENT,LD - City Locality - Cost of Care,LD - City - Care,Residential Care
Cambridgeshire County Council,20-Feb-20,51301317428,"-1,882.24",SENSE (MIDLANDS),CARE ESTABLISHMENT,LD - City Locality - Cost of Care,LD - City - Care,Residential Care
Cambridgeshire County Council,20-Feb-20,51301317428,"-1,882.24",SENSE (MIDLANDS),CARE ESTABLISHMENT,LD - City Locality - Cost of Care,LD - City - Care,Residential Care
Cambridgeshire County Council,20-Feb-20,51301317428,"-1,882.24",SENSE (MIDLANDS),CARE ESTABLISHMENT,LD - City Locality - Cost of Care,LD - City - Care,Residential Care
Cambridgeshire County Council,03-Feb-20,51301307776,"-1,881.78",TURNING POINT SERVICES LTD,CARE ESTABLISHMENT,LD - Fenland Locality - Cost of Care,LD - Fenland  - Care,Homecare
Cambridgeshire County Council,03-Feb-20,51301307776,"-1,881.78",TURNING POINT SERVICES LTD,CARE ESTABLISHMENT,LD - Fenland Locality - Cost of Care,LD - Fenland  - Care,Homecare
Cambridgeshire County Council,03-Feb-20,51301307776,"-1,881.78",TURNING POINT SERVICES LTD,CARE ESTABLISHMENT,LD - Fenland Locality - Cost of Care,LD - Fenland  - Care,Homecare
Cambridgeshire County Council,03-Feb-20,51301307776,"-1,881.78",TURNING POINT SERVICES LTD,CARE ESTABLISHMENT,LD - Fenland Locality - Cost of Care,LD - Fenland  - Care,Homecare
Cambridgeshire County Council,03-Feb-20,51301307776,"-1,881.78",TURNING POINT SERVICES LTD,CARE ESTABLISHMENT,LD - Fenland Locality - Cost of Care,LD - Fenland  - Care,Homecare
Cambridgeshire County Council,03-Feb-20,51301307776,"-1,881.78",TURNING POINT SERVICES LTD,CARE ESTABLISHMENT,LD - Fenland Locality - Cost of Care,LD - Fenland  - Care,Homecare
Cambridgeshire County Council,03-Feb-20,51301307776,"-1,881.78",TURNING POINT SERVICES LTD,CARE ESTABLISHMENT,LD - Fenland Locality - Cost of Care,LD - Fenland  - Care,Homecare
Cambridgeshire County Council,03-Feb-20,51301307776,"-1,881.78",TURNING POINT SERVICES LTD,CARE ESTABLISHMENT,LD - Fenland Locality - Cost of Care,LD - Fenland  - Care,Homecare
Cambridgeshire County Council,03-Feb-20,51301307776,"-1,881.78",TURNING POINT SERVICES LTD,CARE ESTABLISHMENT,LD - Fenland Locality - Cost of Care,LD - Fenland  - Care,Homecare
Cambridgeshire County Council,03-Feb-20,51301307776,"-1,881.78",TURNING POINT SERVICES LTD,CARE ESTABLISHMENT,LD - Fenland Locality - Cost of Care,LD - Fenland  - Care,Homecare
Cambridgeshire County Council,03-Feb-20,51301307776,"-1,881.78",TURNING POINT SERVICES LTD,CARE ESTABLISHMENT,LD - Fenland Locality - Cost of Care,LD - Fenland  - Care,Homecare
Cambridgeshire County Council,03-Feb-20,51301307776,"-1,881.78",TURNING POINT SERVICES LTD,CARE ESTABLISHMENT,LD - Fenland Locality - Cost of Care,LD - Fenland  - Care,Homecare
Cambridgeshire County Council,03-Feb-20,51301307776,"-1,881.78",TURNING POINT SERVICES LTD,CARE ESTABLISHMENT,LD - Fenland Locality - Cost of Care,LD - Fenland  - Care,Homecare
Cambridgeshire County Council,03-Feb-20,51301307776,"-1,881.78",TURNING POINT SERVICES LTD,CARE ESTABLISHMENT,LD - Fenland Locality - Cost of Care,LD - Fenland  - Care,Homecare
Cambridgeshire County Council,03-Feb-20,51301307776,"-1,881.78",TURNING POINT SERVICES LTD,CARE ESTABLISHMENT,LD - Fenland Locality - Cost of Care,LD - Fenland  - Care,Homecare
Cambridgeshire County Council,03-Feb-20,51301307776,"-1,881.78",TURNING POINT SERVICES LTD,CARE ESTABLISHMENT,LD - Fenland Locality - Cost of Care,LD - Fenland  - Care,Homecare
Cambridgeshire County Council,03-Feb-20,51301307776,"-1,881.78",TURNING POINT SERVICES LTD,CARE ESTABLISHMENT,LD - Fenland Locality - Cost of Care,LD - Fenland  - Care,Homecare
Cambridgeshire County Council,03-Feb-20,51301307776,"-1,881.78",TURNING POINT SERVICES LTD,CARE ESTABLISHMENT,LD - Fenland Locality - Cost of Care,LD - Fenland  - Care,Homecare
Cambridgeshire County Council,13-Feb-20,51301313600,"-1,872.59",GLENHOLME HEALTHCARE LTD,CARE ESTABLISHMENT,LD - Hunts Locality - Cost of Care,LD - Huntingdonshire - Special Needs,Residential Care
Cambridgeshire County Council,13-Feb-20,51301313600,"-1,872.59",GLENHOLME HEALTHCARE LTD,CARE ESTABLISHMENT,LD - Hunts Locality - Cost of Care,LD - Huntingdonshire - Special Needs,Residential Care
Cambridgeshire County Council,13-Feb-20,51301313600,"-1,872.59",GLENHOLME HEALTHCARE LTD,CARE ESTABLISHMENT,LD - Hunts Locality - Cost of Care,LD - Huntingdonshire - Special Needs,Residential Care
Cambridgeshire County Council,13-Feb-20,51301313600,"-1,872.59",GLENHOLME HEALTHCARE LTD,CARE ESTABLISHMENT,LD - Hunts Locality - Cost of Care,LD - Huntingdonshire - Special Needs,Residential Care
Cambridgeshire County Council,13-Feb-20,51301313600,"-1,872.59",GLENHOLME HEALTHCARE LTD,CARE ESTABLISHMENT,LD - Hunts Locality - Cost of Care,LD - Huntingdonshire - Special Needs,Residential Care
Cambridgeshire County Council,13-Feb-20,51301313600,"-1,872.59",GLENHOLME HEALTHCARE LTD,CARE ESTABLISHMENT,LD - Hunts Locality - Cost of Care,LD - Huntingdonshire - Special Needs,Residential Care
Cambridgeshire County Council,13-Feb-20,51301313600,"-1,872.59",GLENHOLME HEALTHCARE LTD,CARE ESTABLISHMENT,LD - Hunts Locality - Cost of Care,LD - Huntingdonshire - Special Needs,Residential Care
Cambridgeshire County Council,13-Feb-20,51301313600,"-1,872.59",GLENHOLME HEALTHCARE LTD,CARE ESTABLISHMENT,LD - Hunts Locality - Cost of Care,LD - Huntingdonshire - Special Needs,Residential Care
Cambridgeshire County Council,13-Feb-20,51301313600,"-1,872.59",GLENHOLME HEALTHCARE LTD,CARE ESTABLISHMENT,LD - Hunts Locality - Cost of Care,LD - Huntingdonshire - Special Needs,Residential Care
Cambridgeshire County Council,13-Feb-20,51301313600,"-1,872.59",GLENHOLME HEALTHCARE LTD,CARE ESTABLISHMENT,LD - Hunts Locality - Cost of Care,LD - Huntingdonshire - Special Needs,Residential Care
Cambridgeshire County Council,13-Feb-20,51301313600,"-1,872.59",GLENHOLME HEALTHCARE LTD,CARE ESTABLISHMENT,LD - Hunts Locality - Cost of Care,LD - Huntingdonshire - Special Needs,Residential Care
Cambridgeshire County Council,13-Feb-20,51301313600,"-1,872.59",GLENHOLME HEALTHCARE LTD,CARE ESTABLISHMENT,LD - Hunts Locality - Cost of Care,LD - Huntingdonshire - Special Needs,Residential Care
Cambridgeshire County Council,13-Feb-20,51301313600,"-1,872.59",GLENHOLME HEALTHCARE LTD,CARE ESTABLISHMENT,LD - Hunts Locality - Cost of Care,LD - Huntingdonshire - Special Needs,Residential Care
Cambridgeshire County Council,13-Feb-20,51301313600,"-1,872.59",GLENHOLME HEALTHCARE LTD,CARE ESTABLISHMENT,LD - Hunts Locality - Cost of Care,LD - Huntingdonshire - Special Needs,Residential Care
Cambridgeshire County Council,13-Feb-20,51301313600,"-1,872.59",GLENHOLME HEALTHCARE LTD,CARE ESTABLISHMENT,LD - Hunts Locality - Cost of Care,LD - Huntingdonshire - Special Needs,Residential Care
Cambridgeshire County Council,13-Feb-20,51301313600,"-1,872.59",GLENHOLME HEALTHCARE LTD,CARE ESTABLISHMENT,LD - Hunts Locality - Cost of Care,LD - Huntingdonshire - Special Needs,Residential Care
Cambridgeshire County Council,13-Feb-20,51301313600,"-1,872.59",GLENHOLME HEALTHCARE LTD,CARE ESTABLISHMENT,LD - Hunts Locality - Cost of Care,LD - Huntingdonshire - Special Needs,Residential Care
Cambridgeshire County Council,13-Feb-20,51301313600,"-1,872.59",GLENHOLME HEALTHCARE LTD,CARE ESTABLISHMENT,LD - Hunts Locality - Cost of Care,LD - Huntingdonshire - Special Needs,Residential Care
Cambridgeshire County Council,13-Feb-20,51301313600,"-1,872.59",GLENHOLME HEALTHCARE LTD,CARE ESTABLISHMENT,LD - Hunts Locality - Cost of Care,LD - Huntingdonshire - Special Needs,Residential Care
Cambridgeshire County Council,13-Feb-20,51301313600,"-1,872.59",GLENHOLME HEALTHCARE LTD,CARE ESTABLISHMENT,LD - Hunts Locality - Cost of Care,LD - Huntingdonshire - Special Needs,Residential Care
Cambridgeshire County Council,13-Feb-20,51301313600,"-1,872.59",GLENHOLME HEALTHCARE LTD,CARE ESTABLISHMENT,LD - Hunts Locality - Cost of Care,LD - Huntingdonshire - Special Needs,Residential Care
Cambridgeshire County Council,13-Feb-20,51301313600,"-1,872.59",GLENHOLME HEALTHCARE LTD,CARE ESTABLISHMENT,LD - Hunts Locality - Cost of Care,LD - Huntingdonshire - Special Needs,Residential Care
Cambridgeshire County Council,13-Feb-20,51301313600,"-1,872.59",GLENHOLME HEALTHCARE LTD,CARE ESTABLISHMENT,LD - Hunts Locality - Cost of Care,LD - Huntingdonshire - Special Needs,Residential Care
Cambridgeshire County Council,13-Feb-20,51301313600,"-1,872.59",GLENHOLME HEALTHCARE LTD,CARE ESTABLISHMENT,LD - Hunts Locality - Cost of Care,LD - Huntingdonshire - Special Needs,Residential Care
Cambridgeshire County Council,13-Feb-20,51301313600,"-1,872.59",GLENHOLME HEALTHCARE LTD,CARE ESTABLISHMENT,LD - Hunts Locality - Cost of Care,LD - Huntingdonshire - Special Needs,Residential Care
Cambridgeshire County Council,13-Feb-20,51301313600,"-1,872.59",GLENHOLME HEALTHCARE LTD,CARE ESTABLISHMENT,LD - Hunts Locality - Cost of Care,LD - Huntingdonshire - Special Needs,Residential Care
Cambridgeshire County Council,13-Feb-20,51301313600,"-1,872.59",GLENHOLME HEALTHCARE LTD,CARE ESTABLISHMENT,LD - Hunts Locality - Cost of Care,LD - Huntingdonshire - Special Needs,Residential Care
Cambridgeshire County Council,13-Feb-20,51301313600,"-1,872.59",GLENHOLME HEALTHCARE LTD,CARE ESTABLISHMENT,LD - Hunts Locality - Cost of Care,LD - Huntingdonshire - Special Needs,Residential Care
Cambridgeshire County Council,13-Feb-20,51301313600,"-1,872.59",GLENHOLME HEALTHCARE LTD,CARE ESTABLISHMENT,LD - Hunts Locality - Cost of Care,LD - Huntingdonshire - Special Needs,Residential Care
Cambridgeshire County Council,13-Feb-20,51301313600,"-1,872.59",GLENHOLME HEALTHCARE LTD,CARE ESTABLISHMENT,LD - Hunts Locality - Cost of Care,LD - Huntingdonshire - Special Needs,Residential Care
Cambridgeshire County Council,13-Feb-20,51301313600,"-1,872.59",GLENHOLME HEALTHCARE LTD,CARE ESTABLISHMENT,LD - Hunts Locality - Cost of Care,LD - Huntingdonshire - Special Needs,Residential Care
Cambridgeshire County Council,13-Feb-20,51301313600,"-1,872.59",GLENHOLME HEALTHCARE LTD,CARE ESTABLISHMENT,LD - Hunts Locality - Cost of Care,LD - Huntingdonshire - Special Needs,Residential Care
Cambridgeshire County Council,13-Feb-20,51301313600,"-1,872.59",GLENHOLME HEALTHCARE LTD,CARE ESTABLISHMENT,LD - Hunts Locality - Cost of Care,LD - Huntingdonshire - Special Needs,Residential Care
Cambridgeshire County Council,13-Feb-20,51301313600,"-1,872.59",GLENHOLME HEALTHCARE LTD,CARE ESTABLISHMENT,LD - Hunts Locality - Cost of Care,LD - Huntingdonshire - Special Needs,Residential Care
Cambridgeshire County Council,13-Feb-20,51301313600,"-1,872.59",GLENHOLME HEALTHCARE LTD,CARE ESTABLISHMENT,LD - Hunts Locality - Cost of Care,LD - Huntingdonshire - Special Needs,Residential Care
Cambridgeshire County Council,13-Feb-20,51301313600,"-1,872.59",GLENHOLME HEALTHCARE LTD,CARE ESTABLISHMENT,LD - Hunts Locality - Cost of Care,LD - Huntingdonshire - Special Needs,Residential Care
Cambridgeshire County Council,13-Feb-20,51301313600,"-1,872.59",GLENHOLME HEALTHCARE LTD,CARE ESTABLISHMENT,LD - Hunts Locality - Cost of Care,LD - Huntingdonshire - Special Needs,Residential Care
Cambridgeshire County Council,13-Feb-20,51301313600,"-1,872.59",GLENHOLME HEALTHCARE LTD,CARE ESTABLISHMENT,LD - Hunts Locality - Cost of Care,LD - Huntingdonshire - Special Needs,Residential Care
Cambridgeshire County Council,13-Feb-20,51301313600,"-1,872.59",GLENHOLME HEALTHCARE LTD,CARE ESTABLISHMENT,LD - Hunts Locality - Cost of Care,LD - Huntingdonshire - Special Needs,Residential Care
Cambridgeshire County Council,13-Feb-20,51301313600,"-1,872.59",GLENHOLME HEALTHCARE LTD,CARE ESTABLISHMENT,LD - Hunts Locality - Cost of Care,LD - Huntingdonshire - Special Needs,Residential Care
Cambridgeshire County Council,13-Feb-20,51301313600,"-1,872.59",GLENHOLME HEALTHCARE LTD,CARE ESTABLISHMENT,LD - Hunts Locality - Cost of Care,LD - Huntingdonshire - Special Needs,Residential Care
Cambridgeshire County Council,13-Feb-20,51301313600,"-1,872.59",GLENHOLME HEALTHCARE LTD,CARE ESTABLISHMENT,LD - Hunts Locality - Cost of Care,LD - Huntingdonshire - Special Needs,Residential Care
Cambridgeshire County Council,13-Feb-20,51301313600,"-1,872.59",GLENHOLME HEALTHCARE LTD,CARE ESTABLISHMENT,LD - Hunts Locality - Cost of Care,LD - Huntingdonshire - Special Needs,Residential Care
Cambridgeshire County Council,13-Feb-20,51301313600,"-1,872.59",GLENHOLME HEALTHCARE LTD,CARE ESTABLISHMENT,LD - Hunts Locality - Cost of Care,LD - Huntingdonshire - Special Needs,Residential Care
Cambridgeshire County Council,13-Feb-20,51301313600,"-1,872.59",GLENHOLME HEALTHCARE LTD,CARE ESTABLISHMENT,LD - Hunts Locality - Cost of Care,LD - Huntingdonshire - Special Needs,Residential Care
Cambridgeshire County Council,13-Feb-20,51301313600,"-1,872.59",GLENHOLME HEALTHCARE LTD,CARE ESTABLISHMENT,LD - Hunts Locality - Cost of Care,LD - Huntingdonshire - Special Needs,Residential Care
Cambridgeshire County Council,13-Feb-20,51301313600,"-1,872.59",GLENHOLME HEALTHCARE LTD,CARE ESTABLISHMENT,LD - Hunts Locality - Cost of Care,LD - Huntingdonshire - Special Needs,Residential Care
Cambridgeshire County Council,13-Feb-20,51301313603,"-1,871.30",GLENHOLME HEALTHCARE LTD,CARE ESTABLISHMENT,LD - Young Adults Team,LD - Young Adults - Special Needs,Residential Care
Cambridgeshire County Council,20-Feb-20,51301317433,"-1,868.51",CARETECH COMMUNITY SERVICES LTD (161 WOOTTON RD),CARE ESTABLISHMENT,LD - Hunts Locality - Cost of Care,LD - Huntingdonshire - Care,Residential Care
Cambridgeshire County Council,20-Feb-20,51301317433,"-1,868.51",CARETECH COMMUNITY SERVICES LTD (161 WOOTTON RD),CARE ESTABLISHMENT,LD - Hunts Locality - Cost of Care,LD - Huntingdonshire - Care,Residential Care
Cambridgeshire County Council,20-Feb-20,51301317433,"-1,868.51",CARETECH COMMUNITY SERVICES LTD (161 WOOTTON RD),CARE ESTABLISHMENT,LD - Hunts Locality - Cost of Care,LD - Huntingdonshire - Care,Residential Care
Cambridgeshire County Council,20-Feb-20,51301317433,"-1,868.51",CARETECH COMMUNITY SERVICES LTD (161 WOOTTON RD),CARE ESTABLISHMENT,LD - Hunts Locality - Cost of Care,LD - Huntingdonshire - Care,Residential Care
Cambridgeshire County Council,20-Feb-20,51301317433,"-1,868.51",CARETECH COMMUNITY SERVICES LTD (161 WOOTTON RD),CARE ESTABLISHMENT,LD - Hunts Locality - Cost of Care,LD - Huntingdonshire - Care,Residential Care
Cambridgeshire County Council,20-Feb-20,51301317433,"-1,868.51",CARETECH COMMUNITY SERVICES LTD (161 WOOTTON RD),CARE ESTABLISHMENT,LD - Hunts Locality - Cost of Care,LD - Huntingdonshire - Care,Residential Care
Cambridgeshire County Council,20-Feb-20,51301317433,"-1,868.51",CARETECH COMMUNITY SERVICES LTD (161 WOOTTON RD),CARE ESTABLISHMENT,LD - Hunts Locality - Cost of Care,LD - Huntingdonshire - Care,Residential Care
Cambridgeshire County Council,20-Feb-20,51301317433,"-1,868.51",CARETECH COMMUNITY SERVICES LTD (161 WOOTTON RD),CARE ESTABLISHMENT,LD - Hunts Locality - Cost of Care,LD - Huntingdonshire - Care,Residential Care
Cambridgeshire County Council,20-Feb-20,51301317433,"-1,868.51",CARETECH COMMUNITY SERVICES LTD (161 WOOTTON RD),CARE ESTABLISHMENT,LD - Hunts Locality - Cost of Care,LD - Huntingdonshire - Care,Residential Care
Cambridgeshire County Council,20-Feb-20,51301317433,"-1,868.51",CARETECH COMMUNITY SERVICES LTD (161 WOOTTON RD),CARE ESTABLISHMENT,LD - Hunts Locality - Cost of Care,LD - Huntingdonshire - Care,Residential Care
Cambridgeshire County Council,20-Feb-20,51301317433,"-1,868.51",CARETECH COMMUNITY SERVICES LTD (161 WOOTTON RD),CARE ESTABLISHMENT,LD - Hunts Locality - Cost of Care,LD - Huntingdonshire - Care,Residential Care
Cambridgeshire County Council,20-Feb-20,51301317433,"-1,868.51",CARETECH COMMUNITY SERVICES LTD (161 WOOTTON RD),CARE ESTABLISHMENT,LD - Hunts Locality - Cost of Care,LD - Huntingdonshire - Care,Residential Care
Cambridgeshire County Council,20-Feb-20,51301317433,"-1,868.51",CARETECH COMMUNITY SERVICES LTD (161 WOOTTON RD),CARE ESTABLISHMENT,LD - Hunts Locality - Cost of Care,LD - Huntingdonshire - Care,Residential Care
Cambridgeshire County Council,20-Feb-20,51301317433,"-1,868.51",CARETECH COMMUNITY SERVICES LTD (161 WOOTTON RD),CARE ESTABLISHMENT,LD - Hunts Locality - Cost of Care,LD - Huntingdonshire - Care,Residential Care
Cambridgeshire County Council,20-Feb-20,51301317433,"-1,868.51",CARETECH COMMUNITY SERVICES LTD (161 WOOTTON RD),CARE ESTABLISHMENT,LD - Hunts Locality - Cost of Care,LD - Huntingdonshire - Care,Residential Care
Cambridgeshire County Council,20-Feb-20,51301317433,"-1,868.51",CARETECH COMMUNITY SERVICES LTD (161 WOOTTON RD),CARE ESTABLISHMENT,LD - Hunts Locality - Cost of Care,LD - Huntingdonshire - Care,Residential Care
Cambridgeshire County Council,20-Feb-20,51301317433,"-1,868.51",CARETECH COMMUNITY SERVICES LTD (161 WOOTTON RD),CARE ESTABLISHMENT,LD - Hunts Locality - Cost of Care,LD - Huntingdonshire - Care,Residential Care
Cambridgeshire County Council,20-Feb-20,51301317433,"-1,868.51",CARETECH COMMUNITY SERVICES LTD (161 WOOTTON RD),CARE ESTABLISHMENT,LD - Hunts Locality - Cost of Care,LD - Huntingdonshire - Care,Residential Care
Cambridgeshire County Council,20-Feb-20,51301317433,"-1,868.51",CARETECH COMMUNITY SERVICES LTD (161 WOOTTON RD),CARE ESTABLISHMENT,LD - Hunts Locality - Cost of Care,LD - Huntingdonshire - Care,Residential Care
